Workbook

Sheet Main
N2: Clinical calculators are tools used by professionals, in conjunction with clinical judgement, in order to make complex medical decisions
N3: This calculator is not a substitute for advanced knowledge in drug dosing
R5: Acknowledgements
G17: Vancomycin Empiric Dosing | R17: Vancomycin Two-level Dosing
L40: Edit Default Values

Sheet EmpiricVANCOMYCINcalc
R1: Reset this Calculator
R3: View Patient Note
G5: Vancomycin Empiric Calculator | R5: Back to Main Menu
B9: Patient Information | O9: Dosing Variables
B10: Age | G10: years | P10: Desired AUC | T10: 500 | V10: Usual range 400-600 mcg*h/mL
B11: Gender | P11: Desired Cmax | T11: 35 | V11: Usual range 30-40 mcg/mL
B12: SCr | G12: mg/dL | P12: Desired Cmin | T12: 12.5 | V12: Usual range 10-20 mcg/mL
B13: Height | G13: cm | I13: =IF(G13="inches",E13,E13/2.54) -> 0 | J13: =I13*2.54 -> 0 | P13: Vd coefficient | T13: 0.65 | V13: Usual range 0.6-1 L/kg
B14: Actual Body Weight | D14: TBW | G14: kg | I14: =IF(G14="kg",E14,E14/2.2) -> 0 | P14: Weight to calculate Vd | T14: TBW | V14: =IF(T15>0,T15,IF(T14<1,"",VLOOKUP(T14,D14:F21,2,FALSE))) -> 0 | W14: kg | X14: =IF(ISERROR(I14>DLsheet!H7*EmpiricVANCOMYCINcalc!E16),"TBW",IF(EmpiricVANCOMYCINcalc!I14>DLsheet!H6*EmpiricVANCOMYCINcalc!E16,"AdjBW","TBW")) -> TBW | Y14: recommended to calculate Vd for this patient
D15: AdjBW | E15: =IF(E14<1,"",IF(I14>DLsheet!H6*EmpiricVANCOMYCINcalc!E16,EmpiricVANCOMYCINcalc!E16+DLsheet!H7*(EmpiricVANCOMYCINcalc!E14-EmpiricVANCOMYCINcalc!E16),"")) ->  | G15: kg | I15: =CONCATENATE("IBW + ",DLsheet!H7,"* (TBW - IBW) If TBW more than ",DLsheet!G6*100,"% overweight") -> IBW + 0.4* (TBW - IBW) If TBW more than 30% overweight | P15: Manual Dosing Weight (override) | V15: kg
D16: IBW | E16: =IF(E14<1,"",IF(E11="Male",50+2.3*(I13-60),45.5+2.3*(I13-60))) ->  | G16: kg | I16: M: 2.3*(inches over 60)+50 F: 2.3*(inches over 60)+45.5 | P16: Ke equation | T16: CrCl*0.00083+0.0044 | V16: See comment
D17: LBW | E17: =IF(E14<1,"",IF(E11="Male",L17,M17)) ->  | G17: kg | I17: James Formula | L17: =1.1*I14-128*I14*I14/J13/J13 ->  | M17: =1.07*I14-148*I14*I14/J13/J13 ->  | P17: Weight to calculate CrCl & Ke | T17: CrCl TBW | V17: =IF(T18>0,T18,IF(T17<1,"",VLOOKUP(T17,D14:F20,2,FALSE))) ->  | W17: mL/min | X17: =IF(ISERROR(I14>DLsheet!H6*EmpiricVANCOMYCINcalc!E16),"CrCl TBW",IF(EmpiricVANCOMYCINcalc!I14>DLsheet!H6*EmpiricVANCOMYCINcalc!E16,"CrCl AdjBW",IF(I14<E16,"CrCl TBW","CrCl IBW"))) -> CrCl TBW | Y17: recommended to calculate CrCl for this patient
D18: CrCl TBW | E18: =IF(E14<1,"",IF(E11="Male",(140-E10)*E14/72/E12,0.85*(140-E10)*E14/72/E12)) ->  | G18: mL/min | I18: (140-Age)*TBW/[72*SCr] (females * 0.85) | P18: Manual CrCl (override) | V18: mL/min
D19: CrCl AdjBW | E19: =IF(E15="","",IF(E11="Male",(140-E10)*E15/72/E12,0.85*(140-E10)*E15/72/E12)) ->  | G19: mL/min | I19: (140-Age)*AdjBW/[72*SCr] (females * 0.85) | P19: Infusion time | T19: 1 | V19: hours
D20: CrCl IBW | E20: =IF(E14<1,"",IF(E11="Male",(140-E10)*E16/72/E12,0.85*(140-E10)*E16/72/E12)) ->  | G20: mL/min | I20: (140-Age)*IBW/[72*SCr] (females * 0.85)
K21: CrCl*0.0016 | L21: =V17*0.0016 ->  | P21: Ke equation comment: | S21: =IF(T16<1,"",VLOOKUP(T16,DLsheet!K14:L16,2,FALSE)) -> Less aggressive equation. Study included patienst with varying degrees of renal dysfunction. Consider in patients with significant comorbidities (e.g. long-standing DM, CHF, CKD).
K22: CrCl*0.00083+0.0044 | L22: =V17*0.00083+0.0044 -> 
K23: CrCl/Vd | L23: =V17/E26*60/1000 -> 
B25: Calculated PK Parameters | O25: Dosing Variables
D26: Vd | E26: =IF(E14<1,"",T13*V14) ->  | H26: L | I26: =CONCATENATE(ROUND(V14,1),"kg * ",T13," L/kg") -> 0kg * 0.65 L/kg | P26: Dose | Q26: =EmpWorksheet!AB1 ->  | T26: mg
D27: Ke | E27: =IF(E14<1,"",VLOOKUP(T16,K21:L23,2,FALSE)) ->  | H27: h-1 | I27: =CONCATENATE("CrCl = ",ROUND(V17,1)," Ke equation = ",T16) ->  | P27: Interval | Q27: =EmpWorksheet!AC1 ->  | T27: hours
D28: t 1/2 | E28: =IF(E14<1,"",ROUND(0.693/E27,1)) ->  | H28: hours | I28: =CONCATENATE("ln(2)/", ROUND(E27,3)) ->  | P28: Infusion Time | Q28: =VLOOKUP(Q26,DLsheet!E13:F21,2,FALSE) ->  | T28: hours
D29: Calculated total daily dose | E29: =IF(E14<1,"",T10*E27*E26) ->  | H29: mg | I29: =CONCATENATE("(Desired AUC)*(Ke)*(Vd) = ",T10," * ",ROUND(E27,3)," * ",ROUND(E26,1)) ->  | P29: Calculated AUC | Q29: =Q26*24/Q27/E27/E26 ->  | T29: mcg*h/mL
D30: Calculated dose | E30: =IF(E14<1,"",E29/(24/E31)) ->  | H30: mg | I30: Total daily dose / (24/[calculated interval]) | P30: Calculated Css max | Q30: =(Q26/E26)/(1-EXP(-E27*Q27)) ->  | T30: mcg/mL
D31: Calculated interval | E31: =IF(E14<1,"",(LN(T12/T11)/-E27)+T19) ->  | H31: hours | I31: (ln[desired trough]/[desired peak] / [-Ke]) + infusion time | P31: Calculated Css min | Q31: =Q30*EXP(-E27*(Q27-Q28)) ->  | T31: mcg/mL
Q33: Alternative Dosing Regimens
S34: EstAUC | T34: Cmax | U34: Cmin
P35: 1 | Q35: =CONCATENATE(EmpWorksheet!AB1,"mg IV q",EmpWorksheet!AC1,"h") ->  | S35: =ROUND(EmpWorksheet!AG1,1) ->  | T35: =ROUND(EmpWorksheet!AE1,1) ->  | U35: =ROUND(EmpWorksheet!AF1,1) -> 
P36: 2 | Q36: =CONCATENATE(EmpWorksheet!AB2,"mg IV q",EmpWorksheet!AC2,"h") ->  | S36: =ROUND(EmpWorksheet!AG2,1) ->  | T36: =ROUND(EmpWorksheet!AE2,1) ->  | U36: =ROUND(EmpWorksheet!AF2,1) -> 
P37: 3 | Q37: =CONCATENATE(EmpWorksheet!AB3,"mg IV q",EmpWorksheet!AC3,"h") ->  | S37: =ROUND(EmpWorksheet!AG3,1) ->  | T37: =ROUND(EmpWorksheet!AE3,1) ->  | U37: =ROUND(EmpWorksheet!AF3,1) -> 

Sheet EmpiricNote
B2: =DLsheet!L53 ->  | K2: Back to Main Menu
K5: Back to Empiric Calculator

Sheet EmpWorksheet
A1: =EmpiricVANCOMYCINcalc!E27 ->  | B1: =EmpiricVANCOMYCINcalc!E26 ->  | C1: 8 | D1: 12 | E1: 18 | F1: 24 | G1: 36 | H1: 48 | J1: Cmax Error | K1: Cmin Error | L1: AUC Error | M1: Total Error | N1: Daily dose | O1: Dose | P1: interval | Q1: Usable interval | R1: Infusion | S1: Cmax | T1: Cmin | U1: AUC | Y1: Best | Z1: Min | AA1: =MIN(M2:M46) ->  | AB1: =VLOOKUP(AA1,M:R,3,FALSE) ->  | AC1: =VLOOKUP(AA1,M:R,4,FALSE) ->  | AD1: =VLOOKUP(AA1,M:R,5,FALSE) ->  | AE1: =VLOOKUP(AA1,M:U,7,FALSE) ->  | AF1: =VLOOKUP(AA1,M:U,8,FALSE) ->  | AG1: =VLOOKUP(AA1,M:U,9,FALSE) -> 
A2: -0.5 | B2: 0 | C2: 0 | D2: 0 | E2: 0 | F2: 0 | G2: 0 | H2: 0 | J2: =((S2-EmpiricVANCOMYCINcalc!$T$11)^2)/EmpiricVANCOMYCINcalc!$T$11 ->  | K2: =((T2-EmpiricVANCOMYCINcalc!$T$12)^2)/EmpiricVANCOMYCINcalc!$T$12 ->  | L2: =((U2-EmpiricVANCOMYCINcalc!$T$10)^2)/EmpiricVANCOMYCINcalc!$T$10 ->  | M2: =IF(Q2="Yes",SUM(J2:L2),"") ->  | N2: =O2*24/P2 -> 250 | O2: 500 | P2: 48 | Q2: =VLOOKUP(P2,DLsheet!$I$15:$J$20,2,FALSE) -> Yes | R2: =VLOOKUP(O2,DLsheet!$E$13:$F$21,2,FALSE) -> 0.5 | S2: =O2/$B$1/(1-EXP(-$A$1*P2)) ->  | T2: =S2*EXP(-$A$1*(P2-R2)) ->  | U2: =O2*24/P2/$B$1/$A$1 ->  | Y2: 2nd Best | Z2: Second | AA2: =SMALL(M2:M46,2) ->  | AB2: =VLOOKUP(AA2,M:R,3,FALSE) ->  | AC2: =VLOOKUP(AA2,M:R,4,FALSE) ->  | AD2: =VLOOKUP(AA2,M:R,5,FALSE) ->  | AE2: =VLOOKUP(AA2,M:U,7,FALSE) ->  | AF2: =VLOOKUP(AA2,M:U,8,FALSE) ->  | AG2: =VLOOKUP(AA2,M:U,9,FALSE) -> 
A3: 0 | B3: =HLOOKUP(EmpiricVANCOMYCINcalc!$Q$27,EmpWorksheet!$C$1:$H$100,I3,FALSE) ->  | C3: =EmpiricVANCOMYCINcalc!Q26/EmpiricVANCOMYCINcalc!E26 ->  | D3: =EmpiricVANCOMYCINcalc!Q26/EmpiricVANCOMYCINcalc!E26 ->  | E3: =EmpiricVANCOMYCINcalc!Q26/EmpiricVANCOMYCINcalc!E26 ->  | F3: =EmpiricVANCOMYCINcalc!Q26/EmpiricVANCOMYCINcalc!E26 ->  | G3: =EmpiricVANCOMYCINcalc!Q26/EmpiricVANCOMYCINcalc!E26 ->  | H3: =EmpiricVANCOMYCINcalc!Q26/EmpiricVANCOMYCINcalc!E26 ->  | I3: 3 | J3: =((S3-EmpiricVANCOMYCINcalc!$T$11)^2)/EmpiricVANCOMYCINcalc!$T$11 ->  | K3: =((T3-EmpiricVANCOMYCINcalc!$T$12)^2)/EmpiricVANCOMYCINcalc!$T$12 ->  | L3: =((U3-EmpiricVANCOMYCINcalc!$T$10)^2)/EmpiricVANCOMYCINcalc!$T$10 ->  | M3: =IF(Q3="Yes",SUM(J3:L3),"") ->  | N3: 333.3333333 | O3: 500 | P3: 36 | Q3: =VLOOKUP(P3,DLsheet!$I$15:$J$20,2,FALSE) -> No | R3: =VLOOKUP(O3,DLsheet!$E$13:$F$21,2,FALSE) -> 0.5 | Y3: 3rd Best | Z3: Third | AA3: =SMALL(M2:M46,3) ->  | AB3: =VLOOKUP(AA3,M:R,3,FALSE) ->  | AC3: =VLOOKUP(AA3,M:R,4,FALSE) ->  | AD3: =VLOOKUP(AA3,M:R,5,FALSE) ->  | AE3: =VLOOKUP(AA3,M:U,7,FALSE) ->  | AF3: =VLOOKUP(AA3,M:U,8,FALSE) ->  | AG3: =VLOOKUP(AA3,M:U,9,FALSE) -> 
A4: 0.5 | B4: =HLOOKUP(EmpiricVANCOMYCINcalc!$Q$27,EmpWorksheet!$C$1:$H$100,I4,FALSE) ->  | C4: =$C$3*EXP(-$A$1*EmpWorksheet!$A4) ->  | D4: =$C$3*EXP(-$A$1*EmpWorksheet!$A4) ->  | E4: =$C$3*EXP(-$A$1*EmpWorksheet!$A4) ->  | F4: =$C$3*EXP(-$A$1*EmpWorksheet!$A4) ->  | G4: =$C$3*EXP(-$A$1*EmpWorksheet!$A4) ->  | H4: =$C$3*EXP(-$A$1*EmpWorksheet!$A4) ->  | I4: 4 | J4: =((S4-EmpiricVANCOMYCINcalc!$T$11)^2)/EmpiricVANCOMYCINcalc!$T$11 ->  | K4: =((T4-EmpiricVANCOMYCINcalc!$T$12)^2)/EmpiricVANCOMYCINcalc!$T$12 ->  | L4: =((U4-EmpiricVANCOMYCINcalc!$T$10)^2)/EmpiricVANCOMYCINcalc!$T$10 ->  | N4: 375 | O4: 750 | P4: 48 | Q4: =VLOOKUP(P4,DLsheet!$I$15:$J$20,2,FALSE) -> Yes | R4: =VLOOKUP(O4,DLsheet!$E$13:$F$21,2,FALSE) -> 1
A5: 1 | B5: =HLOOKUP(EmpiricVANCOMYCINcalc!$Q$27,EmpWorksheet!$C$1:$H$100,I5,FALSE) ->  | C5: =$C$3*EXP(-$A$1*EmpWorksheet!$A5) ->  | D5: =$C$3*EXP(-$A$1*EmpWorksheet!$A5) ->  | E5: =$C$3*EXP(-$A$1*EmpWorksheet!$A5) ->  | F5: =$C$3*EXP(-$A$1*EmpWorksheet!$A5) ->  | G5: =$C$3*EXP(-$A$1*EmpWorksheet!$A5) ->  | H5: =$C$3*EXP(-$A$1*EmpWorksheet!$A5) ->  | I5: 5 | J5: =((S5-EmpiricVANCOMYCINcalc!$T$11)^2)/EmpiricVANCOMYCINcalc!$T$11 ->  | K5: =((T5-EmpiricVANCOMYCINcalc!$T$12)^2)/EmpiricVANCOMYCINcalc!$T$12 ->  | L5: =((U5-EmpiricVANCOMYCINcalc!$T$10)^2)/EmpiricVANCOMYCINcalc!$T$10 ->  | N5: 500 | O5: 500 | P5: 24 | Q5: =VLOOKUP(P5,DLsheet!$I$15:$J$20,2,FALSE) -> Yes | R5: =VLOOKUP(O5,DLsheet!$E$13:$F$21,2,FALSE) -> 0.5
A6: 1.5 | B6: =HLOOKUP(EmpiricVANCOMYCINcalc!$Q$27,EmpWorksheet!$C$1:$H$100,I6,FALSE) ->  | C6: =$C$3*EXP(-$A$1*EmpWorksheet!$A6) ->  | D6: =$C$3*EXP(-$A$1*EmpWorksheet!$A6) ->  | E6: =$C$3*EXP(-$A$1*EmpWorksheet!$A6) ->  | F6: =$C$3*EXP(-$A$1*EmpWorksheet!$A6) ->  | G6: =$C$3*EXP(-$A$1*EmpWorksheet!$A6) ->  | H6: =$C$3*EXP(-$A$1*EmpWorksheet!$A6) ->  | I6: 6 | J6: =((S6-EmpiricVANCOMYCINcalc!$T$11)^2)/EmpiricVANCOMYCINcalc!$T$11 ->  | K6: =((T6-EmpiricVANCOMYCINcalc!$T$12)^2)/EmpiricVANCOMYCINcalc!$T$12 ->  | L6: =((U6-EmpiricVANCOMYCINcalc!$T$10)^2)/EmpiricVANCOMYCINcalc!$T$10 ->  | N6: 500 | O6: 750 | P6: 36 | Q6: =VLOOKUP(P6,DLsheet!$I$15:$J$20,2,FALSE) -> No | R6: =VLOOKUP(O6,DLsheet!$E$13:$F$21,2,FALSE) -> 1
A7: 2 | B7: =HLOOKUP(EmpiricVANCOMYCINcalc!$Q$27,EmpWorksheet!$C$1:$H$100,I7,FALSE) ->  | C7: =$C$3*EXP(-$A$1*EmpWorksheet!$A7) ->  | D7: =$C$3*EXP(-$A$1*EmpWorksheet!$A7) ->  | E7: =$C$3*EXP(-$A$1*EmpWorksheet!$A7) ->  | F7: =$C$3*EXP(-$A$1*EmpWorksheet!$A7) ->  | G7: =$C$3*EXP(-$A$1*EmpWorksheet!$A7) ->  | H7: =$C$3*EXP(-$A$1*EmpWorksheet!$A7) ->  | I7: 7 | J7: =((S7-EmpiricVANCOMYCINcalc!$T$11)^2)/EmpiricVANCOMYCINcalc!$T$11 ->  | K7: =((T7-EmpiricVANCOMYCINcalc!$T$12)^2)/EmpiricVANCOMYCINcalc!$T$12 ->  | L7: =((U7-EmpiricVANCOMYCINcalc!$T$10)^2)/EmpiricVANCOMYCINcalc!$T$10 ->  | N7: 500 | O7: 1000 | P7: 48 | Q7: =VLOOKUP(P7,DLsheet!$I$15:$J$20,2,FALSE) -> Yes | R7: =VLOOKUP(O7,DLsheet!$E$13:$F$21,2,FALSE) -> 1
A8: 2.5 | B8: =HLOOKUP(EmpiricVANCOMYCINcalc!$Q$27,EmpWorksheet!$C$1:$H$100,I8,FALSE) ->  | C8: =$C$3*EXP(-$A$1*EmpWorksheet!$A8) ->  | D8: =$C$3*EXP(-$A$1*EmpWorksheet!$A8) ->  | E8: =$C$3*EXP(-$A$1*EmpWorksheet!$A8) ->  | F8: =$C$3*EXP(-$A$1*EmpWorksheet!$A8) ->  | G8: =$C$3*EXP(-$A$1*EmpWorksheet!$A8) ->  | H8: =$C$3*EXP(-$A$1*EmpWorksheet!$A8) ->  | I8: 8 | J8: =((S8-EmpiricVANCOMYCINcalc!$T$11)^2)/EmpiricVANCOMYCINcalc!$T$11 ->  | K8: =((T8-EmpiricVANCOMYCINcalc!$T$12)^2)/EmpiricVANCOMYCINcalc!$T$12 ->  | L8: =((U8-EmpiricVANCOMYCINcalc!$T$10)^2)/EmpiricVANCOMYCINcalc!$T$10 ->  | N8: 625 | O8: 1250 | P8: 48 | Q8: =VLOOKUP(P8,DLsheet!$I$15:$J$20,2,FALSE) -> Yes | R8: =VLOOKUP(O8,DLsheet!$E$13:$F$21,2,FALSE) -> 1.5
A9: 3 | B9: =HLOOKUP(EmpiricVANCOMYCINcalc!$Q$27,EmpWorksheet!$C$1:$H$100,I9,FALSE) ->  | C9: =$C$3*EXP(-$A$1*EmpWorksheet!$A9) ->  | D9: =$C$3*EXP(-$A$1*EmpWorksheet!$A9) ->  | E9: =$C$3*EXP(-$A$1*EmpWorksheet!$A9) ->  | F9: =$C$3*EXP(-$A$1*EmpWorksheet!$A9) ->  | G9: =$C$3*EXP(-$A$1*EmpWorksheet!$A9) ->  | H9: =$C$3*EXP(-$A$1*EmpWorksheet!$A9) ->  | I9: 9 | J9: =((S9-EmpiricVANCOMYCINcalc!$T$11)^2)/EmpiricVANCOMYCINcalc!$T$11 ->  | K9: =((T9-EmpiricVANCOMYCINcalc!$T$12)^2)/EmpiricVANCOMYCINcalc!$T$12 ->  | L9: =((U9-EmpiricVANCOMYCINcalc!$T$10)^2)/EmpiricVANCOMYCINcalc!$T$10 ->  | N9: 666.6666667 | O9: 500 | P9: 18 | Q9: =VLOOKUP(P9,DLsheet!$I$15:$J$20,2,FALSE) -> No | R9: =VLOOKUP(O9,DLsheet!$E$13:$F$21,2,FALSE) -> 0.5
A10: 3.5 | B10: =HLOOKUP(EmpiricVANCOMYCINcalc!$Q$27,EmpWorksheet!$C$1:$H$100,I10,FALSE) ->  | C10: =$C$3*EXP(-$A$1*EmpWorksheet!$A10) ->  | D10: =$C$3*EXP(-$A$1*EmpWorksheet!$A10) ->  | E10: =$C$3*EXP(-$A$1*EmpWorksheet!$A10) ->  | F10: =$C$3*EXP(-$A$1*EmpWorksheet!$A10) ->  | G10: =$C$3*EXP(-$A$1*EmpWorksheet!$A10) ->  | H10: =$C$3*EXP(-$A$1*EmpWorksheet!$A10) ->  | I10: 10 | J10: =((S10-EmpiricVANCOMYCINcalc!$T$11)^2)/EmpiricVANCOMYCINcalc!$T$11 ->  | K10: =((T10-EmpiricVANCOMYCINcalc!$T$12)^2)/EmpiricVANCOMYCINcalc!$T$12 ->  | L10: =((U10-EmpiricVANCOMYCINcalc!$T$10)^2)/EmpiricVANCOMYCINcalc!$T$10 ->  | N10: 666.6666667 | O10: 1000 | P10: 36 | Q10: =VLOOKUP(P10,DLsheet!$I$15:$J$20,2,FALSE) -> No | R10: =VLOOKUP(O10,DLsheet!$E$13:$F$21,2,FALSE) -> 1
A11: 4 | B11: =HLOOKUP(EmpiricVANCOMYCINcalc!$Q$27,EmpWorksheet!$C$1:$H$100,I11,FALSE) ->  | C11: =$C$3*EXP(-$A$1*EmpWorksheet!$A11) ->  | D11: =$C$3*EXP(-$A$1*EmpWorksheet!$A11) ->  | E11: =$C$3*EXP(-$A$1*EmpWorksheet!$A11) ->  | F11: =$C$3*EXP(-$A$1*EmpWorksheet!$A11) ->  | G11: =$C$3*EXP(-$A$1*EmpWorksheet!$A11) ->  | H11: =$C$3*EXP(-$A$1*EmpWorksheet!$A11) ->  | I11: 11 | J11: =((S11-EmpiricVANCOMYCINcalc!$T$11)^2)/EmpiricVANCOMYCINcalc!$T$11 ->  | K11: =((T11-EmpiricVANCOMYCINcalc!$T$12)^2)/EmpiricVANCOMYCINcalc!$T$12 ->  | L11: =((U11-EmpiricVANCOMYCINcalc!$T$10)^2)/EmpiricVANCOMYCINcalc!$T$10 ->  | N11: 750 | O11: 750 | P11: 24 | Q11: =VLOOKUP(P11,DLsheet!$I$15:$J$20,2,FALSE) -> Yes | R11: =VLOOKUP(O11,DLsheet!$E$13:$F$21,2,FALSE) -> 1
A12: 4.5 | B12: =HLOOKUP(EmpiricVANCOMYCINcalc!$Q$27,EmpWorksheet!$C$1:$H$100,I12,FALSE) ->  | C12: =$C$3*EXP(-$A$1*EmpWorksheet!$A12) ->  | D12: =$C$3*EXP(-$A$1*EmpWorksheet!$A12) ->  | E12: =$C$3*EXP(-$A$1*EmpWorksheet!$A12) ->  | F12: =$C$3*EXP(-$A$1*EmpWorksheet!$A12) ->  | G12: =$C$3*EXP(-$A$1*EmpWorksheet!$A12) ->  | H12: =$C$3*EXP(-$A$1*EmpWorksheet!$A12) ->  | I12: 12 | J12: =((S12-EmpiricVANCOMYCINcalc!$T$11)^2)/EmpiricVANCOMYCINcalc!$T$11 ->  | K12: =((T12-EmpiricVANCOMYCINcalc!$T$12)^2)/EmpiricVANCOMYCINcalc!$T$12 ->  | L12: =((U12-EmpiricVANCOMYCINcalc!$T$10)^2)/EmpiricVANCOMYCINcalc!$T$10 ->  | N12: 750 | O12: 1500 | P12: 48 | Q12: =VLOOKUP(P12,DLsheet!$I$15:$J$20,2,FALSE) -> Yes | R12: =VLOOKUP(O12,DLsheet!$E$13:$F$21,2,FALSE) -> 1.5
A13: 5 | B13: =HLOOKUP(EmpiricVANCOMYCINcalc!$Q$27,EmpWorksheet!$C$1:$H$100,I13,FALSE) ->  | C13: =$C$3*EXP(-$A$1*EmpWorksheet!$A13) ->  | D13: =$C$3*EXP(-$A$1*EmpWorksheet!$A13) ->  | E13: =$C$3*EXP(-$A$1*EmpWorksheet!$A13) ->  | F13: =$C$3*EXP(-$A$1*EmpWorksheet!$A13) ->  | G13: =$C$3*EXP(-$A$1*EmpWorksheet!$A13) ->  | H13: =$C$3*EXP(-$A$1*EmpWorksheet!$A13) ->  | I13: 13 | J13: =((S13-EmpiricVANCOMYCINcalc!$T$11)^2)/EmpiricVANCOMYCINcalc!$T$11 ->  | K13: =((T13-EmpiricVANCOMYCINcalc!$T$12)^2)/EmpiricVANCOMYCINcalc!$T$12 ->  | L13: =((U13-EmpiricVANCOMYCINcalc!$T$10)^2)/EmpiricVANCOMYCINcalc!$T$10 ->  | N13: 833.3333333 | O13: 1250 | P13: 36 | Q13: =VLOOKUP(P13,DLsheet!$I$15:$J$20,2,FALSE) -> No | R13: =VLOOKUP(O13,DLsheet!$E$13:$F$21,2,FALSE) -> 1.5
A14: 5.5 | B14: =HLOOKUP(EmpiricVANCOMYCINcalc!$Q$27,EmpWorksheet!$C$1:$H$100,I14,FALSE) ->  | C14: =$C$3*EXP(-$A$1*EmpWorksheet!$A14) ->  | D14: =$C$3*EXP(-$A$1*EmpWorksheet!$A14) ->  | E14: =$C$3*EXP(-$A$1*EmpWorksheet!$A14) ->  | F14: =$C$3*EXP(-$A$1*EmpWorksheet!$A14) ->  | G14: =$C$3*EXP(-$A$1*EmpWorksheet!$A14) ->  | H14: =$C$3*EXP(-$A$1*EmpWorksheet!$A14) ->  | I14: 14 | J14: =((S14-EmpiricVANCOMYCINcalc!$T$11)^2)/EmpiricVANCOMYCINcalc!$T$11 ->  | K14: =((T14-EmpiricVANCOMYCINcalc!$T$12)^2)/EmpiricVANCOMYCINcalc!$T$12 ->  | L14: =((U14-EmpiricVANCOMYCINcalc!$T$10)^2)/EmpiricVANCOMYCINcalc!$T$10 ->  | N14: 875 | O14: 1750 | P14: 48 | Q14: =VLOOKUP(P14,DLsheet!$I$15:$J$20,2,FALSE) -> Yes | R14: =VLOOKUP(O14,DLsheet!$E$13:$F$21,2,FALSE) -> 2
A15: 6 | B15: =HLOOKUP(EmpiricVANCOMYCINcalc!$Q$27,EmpWorksheet!$C$1:$H$100,I15,FALSE) ->  | C15: =$C$3*EXP(-$A$1*EmpWorksheet!$A15) ->  | D15: =$C$3*EXP(-$A$1*EmpWorksheet!$A15) ->  | E15: =$C$3*EXP(-$A$1*EmpWorksheet!$A15) ->  | F15: =$C$3*EXP(-$A$1*EmpWorksheet!$A15) ->  | G15: =$C$3*EXP(-$A$1*EmpWorksheet!$A15) ->  | H15: =$C$3*EXP(-$A$1*EmpWorksheet!$A15) ->  | I15: 15 | J15: =((S15-EmpiricVANCOMYCINcalc!$T$11)^2)/EmpiricVANCOMYCINcalc!$T$11 ->  | K15: =((T15-EmpiricVANCOMYCINcalc!$T$12)^2)/EmpiricVANCOMYCINcalc!$T$12 ->  | L15: =((U15-EmpiricVANCOMYCINcalc!$T$10)^2)/EmpiricVANCOMYCINcalc!$T$10 ->  | N15: 1000 | O15: 500 | P15: 12 | Q15: =VLOOKUP(P15,DLsheet!$I$15:$J$20,2,FALSE) -> Yes | R15: =VLOOKUP(O15,DLsheet!$E$13:$F$21,2,FALSE) -> 0.5
A16: 6.5 | B16: =HLOOKUP(EmpiricVANCOMYCINcalc!$Q$27,EmpWorksheet!$C$1:$H$100,I16,FALSE) ->  | C16: =$C$3*EXP(-$A$1*EmpWorksheet!$A16) ->  | D16: =$C$3*EXP(-$A$1*EmpWorksheet!$A16) ->  | E16: =$C$3*EXP(-$A$1*EmpWorksheet!$A16) ->  | F16: =$C$3*EXP(-$A$1*EmpWorksheet!$A16) ->  | G16: =$C$3*EXP(-$A$1*EmpWorksheet!$A16) ->  | H16: =$C$3*EXP(-$A$1*EmpWorksheet!$A16) ->  | I16: 16 | J16: =((S16-EmpiricVANCOMYCINcalc!$T$11)^2)/EmpiricVANCOMYCINcalc!$T$11 ->  | K16: =((T16-EmpiricVANCOMYCINcalc!$T$12)^2)/EmpiricVANCOMYCINcalc!$T$12 ->  | L16: =((U16-EmpiricVANCOMYCINcalc!$T$10)^2)/EmpiricVANCOMYCINcalc!$T$10 ->  | N16: 1000 | O16: 750 | P16: 18 | Q16: =VLOOKUP(P16,DLsheet!$I$15:$J$20,2,FALSE) -> No | R16: =VLOOKUP(O16,DLsheet!$E$13:$F$21,2,FALSE) -> 1
A17: 7 | B17: =HLOOKUP(EmpiricVANCOMYCINcalc!$Q$27,EmpWorksheet!$C$1:$H$100,I17,FALSE) ->  | C17: =$C$3*EXP(-$A$1*EmpWorksheet!$A17) ->  | D17: =$C$3*EXP(-$A$1*EmpWorksheet!$A17) ->  | E17: =$C$3*EXP(-$A$1*EmpWorksheet!$A17) ->  | F17: =$C$3*EXP(-$A$1*EmpWorksheet!$A17) ->  | G17: =$C$3*EXP(-$A$1*EmpWorksheet!$A17) ->  | H17: =$C$3*EXP(-$A$1*EmpWorksheet!$A17) ->  | I17: 17 | J17: =((S17-EmpiricVANCOMYCINcalc!$T$11)^2)/EmpiricVANCOMYCINcalc!$T$11 ->  | K17: =((T17-EmpiricVANCOMYCINcalc!$T$12)^2)/EmpiricVANCOMYCINcalc!$T$12 ->  | L17: =((U17-EmpiricVANCOMYCINcalc!$T$10)^2)/EmpiricVANCOMYCINcalc!$T$10 ->  | N17: 1000 | O17: 1000 | P17: 24 | Q17: =VLOOKUP(P17,DLsheet!$I$15:$J$20,2,FALSE) -> Yes | R17: =VLOOKUP(O17,DLsheet!$E$13:$F$21,2,FALSE) -> 1
A18: 7.5 | B18: =HLOOKUP(EmpiricVANCOMYCINcalc!$Q$27,EmpWorksheet!$C$1:$H$100,I18,FALSE) ->  | C18: =$C$3*EXP(-$A$1*EmpWorksheet!$A18) ->  | D18: =$C$3*EXP(-$A$1*EmpWorksheet!$A18) ->  | E18: =$C$3*EXP(-$A$1*EmpWorksheet!$A18) ->  | F18: =$C$3*EXP(-$A$1*EmpWorksheet!$A18) ->  | G18: =$C$3*EXP(-$A$1*EmpWorksheet!$A18) ->  | H18: =$C$3*EXP(-$A$1*EmpWorksheet!$A18) ->  | I18: 18 | J18: =((S18-EmpiricVANCOMYCINcalc!$T$11)^2)/EmpiricVANCOMYCINcalc!$T$11 ->  | K18: =((T18-EmpiricVANCOMYCINcalc!$T$12)^2)/EmpiricVANCOMYCINcalc!$T$12 ->  | L18: =((U18-EmpiricVANCOMYCINcalc!$T$10)^2)/EmpiricVANCOMYCINcalc!$T$10 ->  | N18: 1000 | O18: 1500 | P18: 36 | Q18: =VLOOKUP(P18,DLsheet!$I$15:$J$20,2,FALSE) -> No | R18: =VLOOKUP(O18,DLsheet!$E$13:$F$21,2,FALSE) -> 1.5
A19: 8 | B19: =HLOOKUP(EmpiricVANCOMYCINcalc!$Q$27,EmpWorksheet!$C$1:$H$100,I19,FALSE) ->  | C19: =$C$3*EXP(-$A$1*EmpWorksheet!$A19) ->  | D19: =$C$3*EXP(-$A$1*EmpWorksheet!$A19) ->  | E19: =$C$3*EXP(-$A$1*EmpWorksheet!$A19) ->  | F19: =$C$3*EXP(-$A$1*EmpWorksheet!$A19) ->  | G19: =$C$3*EXP(-$A$1*EmpWorksheet!$A19) ->  | H19: =$C$3*EXP(-$A$1*EmpWorksheet!$A19) ->  | I19: 19 | J19: =((S19-EmpiricVANCOMYCINcalc!$T$11)^2)/EmpiricVANCOMYCINcalc!$T$11 ->  | K19: =((T19-EmpiricVANCOMYCINcalc!$T$12)^2)/EmpiricVANCOMYCINcalc!$T$12 ->  | L19: =((U19-EmpiricVANCOMYCINcalc!$T$10)^2)/EmpiricVANCOMYCINcalc!$T$10 ->  | N19: 1000 | O19: 2000 | P19: 48 | Q19: =VLOOKUP(P19,DLsheet!$I$15:$J$20,2,FALSE) -> Yes | R19: =VLOOKUP(O19,DLsheet!$E$13:$F$21,2,FALSE) -> 2
A20: 8.5 | B20: =HLOOKUP(EmpiricVANCOMYCINcalc!$Q$27,EmpWorksheet!$C$1:$H$100,I20,FALSE) ->  | C20: =C19+C3 ->  | D20: =$C$3*EXP(-$A$1*EmpWorksheet!$A20) ->  | E20: =$C$3*EXP(-$A$1*EmpWorksheet!$A20) ->  | F20: =$C$3*EXP(-$A$1*EmpWorksheet!$A20) ->  | G20: =$C$3*EXP(-$A$1*EmpWorksheet!$A20) ->  | H20: =$C$3*EXP(-$A$1*EmpWorksheet!$A20) ->  | I20: 20 | J20: =((S20-EmpiricVANCOMYCINcalc!$T$11)^2)/EmpiricVANCOMYCINcalc!$T$11 ->  | K20: =((T20-EmpiricVANCOMYCINcalc!$T$12)^2)/EmpiricVANCOMYCINcalc!$T$12 ->  | L20: =((U20-EmpiricVANCOMYCINcalc!$T$10)^2)/EmpiricVANCOMYCINcalc!$T$10 ->  | N20: 1125 | O20: 2250 | P20: 48 | Q20: =VLOOKUP(P20,DLsheet!$I$15:$J$20,2,FALSE) -> Yes | R20: =VLOOKUP(O20,DLsheet!$E$13:$F$21,2,FALSE) -> 2.5
A21: 9 | B21: =HLOOKUP(EmpiricVANCOMYCINcalc!$Q$27,EmpWorksheet!$C$1:$H$100,I21,FALSE) ->  | C21: =$C$20*EXP(-$A$1*(A21-8.5)) ->  | D21: =$C$3*EXP(-$A$1*EmpWorksheet!$A21) ->  | E21: =$C$3*EXP(-$A$1*EmpWorksheet!$A21) ->  | F21: =$C$3*EXP(-$A$1*EmpWorksheet!$A21) ->  | G21: =$C$3*EXP(-$A$1*EmpWorksheet!$A21) ->  | H21: =$C$3*EXP(-$A$1*EmpWorksheet!$A21) ->  | I21: 21 | J21: =((S21-EmpiricVANCOMYCINcalc!$T$11)^2)/EmpiricVANCOMYCINcalc!$T$11 ->  | K21: =((T21-EmpiricVANCOMYCINcalc!$T$12)^2)/EmpiricVANCOMYCINcalc!$T$12 ->  | L21: =((U21-EmpiricVANCOMYCINcalc!$T$10)^2)/EmpiricVANCOMYCINcalc!$T$10 ->  | N21: 1166.666667 | O21: 1750 | P21: 36 | Q21: =VLOOKUP(P21,DLsheet!$I$15:$J$20,2,FALSE) -> No | R21: =VLOOKUP(O21,DLsheet!$E$13:$F$21,2,FALSE) -> 2
A22: 9.5 | B22: =HLOOKUP(EmpiricVANCOMYCINcalc!$Q$27,EmpWorksheet!$C$1:$H$100,I22,FALSE) ->  | D22: =$C$3*EXP(-$A$1*EmpWorksheet!$A22) ->  | E22: =$C$3*EXP(-$A$1*EmpWorksheet!$A22) ->  | F22: =$C$3*EXP(-$A$1*EmpWorksheet!$A22) ->  | G22: =$C$3*EXP(-$A$1*EmpWorksheet!$A22) ->  | H22: =$C$3*EXP(-$A$1*EmpWorksheet!$A22) ->  | I22: 22 | J22: =((S22-EmpiricVANCOMYCINcalc!$T$11)^2)/EmpiricVANCOMYCINcalc!$T$11 ->  | K22: =((T22-EmpiricVANCOMYCINcalc!$T$12)^2)/EmpiricVANCOMYCINcalc!$T$12 ->  | L22: =((U22-EmpiricVANCOMYCINcalc!$T$10)^2)/EmpiricVANCOMYCINcalc!$T$10 ->  | N22: 1250 | O22: 1250 | P22: 24 | Q22: =VLOOKUP(P22,DLsheet!$I$15:$J$20,2,FALSE) -> Yes | R22: =VLOOKUP(O22,DLsheet!$E$13:$F$21,2,FALSE) -> 1.5
A23: 10 | B23: =HLOOKUP(EmpiricVANCOMYCINcalc!$Q$27,EmpWorksheet!$C$1:$H$100,I23,FALSE) ->  | D23: =$C$3*EXP(-$A$1*EmpWorksheet!$A23) ->  | E23: =$C$3*EXP(-$A$1*EmpWorksheet!$A23) ->  | F23: =$C$3*EXP(-$A$1*EmpWorksheet!$A23) ->  | G23: =$C$3*EXP(-$A$1*EmpWorksheet!$A23) ->  | H23: =$C$3*EXP(-$A$1*EmpWorksheet!$A23) ->  | I23: 23 | J23: =((S23-EmpiricVANCOMYCINcalc!$T$11)^2)/EmpiricVANCOMYCINcalc!$T$11 ->  | K23: =((T23-EmpiricVANCOMYCINcalc!$T$12)^2)/EmpiricVANCOMYCINcalc!$T$12 ->  | L23: =((U23-EmpiricVANCOMYCINcalc!$T$10)^2)/EmpiricVANCOMYCINcalc!$T$10 ->  | N23: 1250 | O23: 2500 | P23: 48 | Q23: =VLOOKUP(P23,DLsheet!$I$15:$J$20,2,FALSE) -> Yes | R23: =VLOOKUP(O23,DLsheet!$E$13:$F$21,2,FALSE) -> 2.5
A24: 10.5 | B24: =HLOOKUP(EmpiricVANCOMYCINcalc!$Q$27,EmpWorksheet!$C$1:$H$100,I24,FALSE) ->  | D24: =$C$3*EXP(-$A$1*EmpWorksheet!$A24) ->  | E24: =$C$3*EXP(-$A$1*EmpWorksheet!$A24) ->  | F24: =$C$3*EXP(-$A$1*EmpWorksheet!$A24) ->  | G24: =$C$3*EXP(-$A$1*EmpWorksheet!$A24) ->  | H24: =$C$3*EXP(-$A$1*EmpWorksheet!$A24) ->  | I24: 24 | J24: =((S24-EmpiricVANCOMYCINcalc!$T$11)^2)/EmpiricVANCOMYCINcalc!$T$11 ->  | K24: =((T24-EmpiricVANCOMYCINcalc!$T$12)^2)/EmpiricVANCOMYCINcalc!$T$12 ->  | L24: =((U24-EmpiricVANCOMYCINcalc!$T$10)^2)/EmpiricVANCOMYCINcalc!$T$10 ->  | N24: 1333.333333 | O24: 1000 | P24: 18 | Q24: =VLOOKUP(P24,DLsheet!$I$15:$J$20,2,FALSE) -> No | R24: =VLOOKUP(O24,DLsheet!$E$13:$F$21,2,FALSE) -> 1
A25: 11 | B25: =HLOOKUP(EmpiricVANCOMYCINcalc!$Q$27,EmpWorksheet!$C$1:$H$100,I25,FALSE) ->  | D25: =$C$3*EXP(-$A$1*EmpWorksheet!$A25) ->  | E25: =$C$3*EXP(-$A$1*EmpWorksheet!$A25) ->  | F25: =$C$3*EXP(-$A$1*EmpWorksheet!$A25) ->  | G25: =$C$3*EXP(-$A$1*EmpWorksheet!$A25) ->  | H25: =$C$3*EXP(-$A$1*EmpWorksheet!$A25) ->  | I25: 25 | J25: =((S25-EmpiricVANCOMYCINcalc!$T$11)^2)/EmpiricVANCOMYCINcalc!$T$11 ->  | K25: =((T25-EmpiricVANCOMYCINcalc!$T$12)^2)/EmpiricVANCOMYCINcalc!$T$12 ->  | L25: =((U25-EmpiricVANCOMYCINcalc!$T$10)^2)/EmpiricVANCOMYCINcalc!$T$10 ->  | N25: 1333.333333 | O25: 2000 | P25: 36 | Q25: =VLOOKUP(P25,DLsheet!$I$15:$J$20,2,FALSE) -> No | R25: =VLOOKUP(O25,DLsheet!$E$13:$F$21,2,FALSE) -> 2
A26: 11.5 | B26: =HLOOKUP(EmpiricVANCOMYCINcalc!$Q$27,EmpWorksheet!$C$1:$H$100,I26,FALSE) ->  | D26: =$C$3*EXP(-$A$1*EmpWorksheet!$A26) ->  | E26: =$C$3*EXP(-$A$1*EmpWorksheet!$A26) ->  | F26: =$C$3*EXP(-$A$1*EmpWorksheet!$A26) ->  | G26: =$C$3*EXP(-$A$1*EmpWorksheet!$A26) ->  | H26: =$C$3*EXP(-$A$1*EmpWorksheet!$A26) ->  | I26: 26 | J26: =((S26-EmpiricVANCOMYCINcalc!$T$11)^2)/EmpiricVANCOMYCINcalc!$T$11 ->  | K26: =((T26-EmpiricVANCOMYCINcalc!$T$12)^2)/EmpiricVANCOMYCINcalc!$T$12 ->  | L26: =((U26-EmpiricVANCOMYCINcalc!$T$10)^2)/EmpiricVANCOMYCINcalc!$T$10 ->  | N26: 1500 | O26: 500 | P26: 8 | Q26: =VLOOKUP(P26,DLsheet!$I$15:$J$20,2,FALSE) -> Yes | R26: =VLOOKUP(O26,DLsheet!$E$13:$F$21,2,FALSE) -> 0.5
A27: 12 | B27: =HLOOKUP(EmpiricVANCOMYCINcalc!$Q$27,EmpWorksheet!$C$1:$H$100,I27,FALSE) ->  | D27: =$C$3*EXP(-$A$1*EmpWorksheet!$A27) ->  | E27: =$C$3*EXP(-$A$1*EmpWorksheet!$A27) ->  | F27: =$C$3*EXP(-$A$1*EmpWorksheet!$A27) ->  | G27: =$C$3*EXP(-$A$1*EmpWorksheet!$A27) ->  | H27: =$C$3*EXP(-$A$1*EmpWorksheet!$A27) ->  | I27: 27 | J27: =((S27-EmpiricVANCOMYCINcalc!$T$11)^2)/EmpiricVANCOMYCINcalc!$T$11 ->  | K27: =((T27-EmpiricVANCOMYCINcalc!$T$12)^2)/EmpiricVANCOMYCINcalc!$T$12 ->  | L27: =((U27-EmpiricVANCOMYCINcalc!$T$10)^2)/EmpiricVANCOMYCINcalc!$T$10 ->  | N27: 1500 | O27: 750 | P27: 12 | Q27: =VLOOKUP(P27,DLsheet!$I$15:$J$20,2,FALSE) -> Yes | R27: =VLOOKUP(O27,DLsheet!$E$13:$F$21,2,FALSE) -> 1
A28: 12.5 | B28: =HLOOKUP(EmpiricVANCOMYCINcalc!$Q$27,EmpWorksheet!$C$1:$H$100,I28,FALSE) ->  | D28: =D27+D3 ->  | E28: =$C$3*EXP(-$A$1*EmpWorksheet!$A28) ->  | F28: =$C$3*EXP(-$A$1*EmpWorksheet!$A28) ->  | G28: =$C$3*EXP(-$A$1*EmpWorksheet!$A28) ->  | H28: =$C$3*EXP(-$A$1*EmpWorksheet!$A28) ->  | I28: 28 | J28: =((S28-EmpiricVANCOMYCINcalc!$T$11)^2)/EmpiricVANCOMYCINcalc!$T$11 ->  | K28: =((T28-EmpiricVANCOMYCINcalc!$T$12)^2)/EmpiricVANCOMYCINcalc!$T$12 ->  | L28: =((U28-EmpiricVANCOMYCINcalc!$T$10)^2)/EmpiricVANCOMYCINcalc!$T$10 ->  | N28: 1500 | O28: 1500 | P28: 24 | Q28: =VLOOKUP(P28,DLsheet!$I$15:$J$20,2,FALSE) -> Yes | R28: =VLOOKUP(O28,DLsheet!$E$13:$F$21,2,FALSE) -> 1.5
A29: 13 | B29: =HLOOKUP(EmpiricVANCOMYCINcalc!$Q$27,EmpWorksheet!$C$1:$H$100,I29,FALSE) ->  | D29: =$D$28*EXP(-$A$1*(A29-12.5)) ->  | E29: =$C$3*EXP(-$A$1*EmpWorksheet!$A29) ->  | F29: =$C$3*EXP(-$A$1*EmpWorksheet!$A29) ->  | G29: =$C$3*EXP(-$A$1*EmpWorksheet!$A29) ->  | H29: =$C$3*EXP(-$A$1*EmpWorksheet!$A29) ->  | I29: 29 | J29: =((S29-EmpiricVANCOMYCINcalc!$T$11)^2)/EmpiricVANCOMYCINcalc!$T$11 ->  | K29: =((T29-EmpiricVANCOMYCINcalc!$T$12)^2)/EmpiricVANCOMYCINcalc!$T$12 ->  | L29: =((U29-EmpiricVANCOMYCINcalc!$T$10)^2)/EmpiricVANCOMYCINcalc!$T$10 ->  | N29: 1500 | O29: 2250 | P29: 36 | Q29: =VLOOKUP(P29,DLsheet!$I$15:$J$20,2,FALSE) -> No | R29: =VLOOKUP(O29,DLsheet!$E$13:$F$21,2,FALSE) -> 2.5
A30: 13.5 | B30: =HLOOKUP(EmpiricVANCOMYCINcalc!$Q$27,EmpWorksheet!$C$1:$H$100,I30,FALSE) ->  | E30: =$C$3*EXP(-$A$1*EmpWorksheet!$A30) ->  | F30: =$C$3*EXP(-$A$1*EmpWorksheet!$A30) ->  | G30: =$C$3*EXP(-$A$1*EmpWorksheet!$A30) ->  | H30: =$C$3*EXP(-$A$1*EmpWorksheet!$A30) ->  | I30: 30 | J30: =((S30-EmpiricVANCOMYCINcalc!$T$11)^2)/EmpiricVANCOMYCINcalc!$T$11 ->  | K30: =((T30-EmpiricVANCOMYCINcalc!$T$12)^2)/EmpiricVANCOMYCINcalc!$T$12 ->  | L30: =((U30-EmpiricVANCOMYCINcalc!$T$10)^2)/EmpiricVANCOMYCINcalc!$T$10 ->  | N30: 1666.666667 | O30: 1250 | P30: 18 | Q30: =VLOOKUP(P30,DLsheet!$I$15:$J$20,2,FALSE) -> No | R30: =VLOOKUP(O30,DLsheet!$E$13:$F$21,2,FALSE) -> 1.5
A31: 14 | B31: =HLOOKUP(EmpiricVANCOMYCINcalc!$Q$27,EmpWorksheet!$C$1:$H$100,I31,FALSE) ->  | E31: =$C$3*EXP(-$A$1*EmpWorksheet!$A31) ->  | F31: =$C$3*EXP(-$A$1*EmpWorksheet!$A31) ->  | G31: =$C$3*EXP(-$A$1*EmpWorksheet!$A31) ->  | H31: =$C$3*EXP(-$A$1*EmpWorksheet!$A31) ->  | I31: 31 | J31: =((S31-EmpiricVANCOMYCINcalc!$T$11)^2)/EmpiricVANCOMYCINcalc!$T$11 ->  | K31: =((T31-EmpiricVANCOMYCINcalc!$T$12)^2)/EmpiricVANCOMYCINcalc!$T$12 ->  | L31: =((U31-EmpiricVANCOMYCINcalc!$T$10)^2)/EmpiricVANCOMYCINcalc!$T$10 ->  | N31: 1666.666667 | O31: 2500 | P31: 36 | Q31: =VLOOKUP(P31,DLsheet!$I$15:$J$20,2,FALSE) -> No | R31: =VLOOKUP(O31,DLsheet!$E$13:$F$21,2,FALSE) -> 2.5
A32: 14.5 | B32: =HLOOKUP(EmpiricVANCOMYCINcalc!$Q$27,EmpWorksheet!$C$1:$H$100,I32,FALSE) ->  | E32: =$C$3*EXP(-$A$1*EmpWorksheet!$A32) ->  | F32: =$C$3*EXP(-$A$1*EmpWorksheet!$A32) ->  | G32: =$C$3*EXP(-$A$1*EmpWorksheet!$A32) ->  | H32: =$C$3*EXP(-$A$1*EmpWorksheet!$A32) ->  | I32: 32 | J32: =((S32-EmpiricVANCOMYCINcalc!$T$11)^2)/EmpiricVANCOMYCINcalc!$T$11 ->  | K32: =((T32-EmpiricVANCOMYCINcalc!$T$12)^2)/EmpiricVANCOMYCINcalc!$T$12 ->  | L32: =((U32-EmpiricVANCOMYCINcalc!$T$10)^2)/EmpiricVANCOMYCINcalc!$T$10 ->  | N32: 1750 | O32: 1750 | P32: 24 | Q32: =VLOOKUP(P32,DLsheet!$I$15:$J$20,2,FALSE) -> Yes | R32: =VLOOKUP(O32,DLsheet!$E$13:$F$21,2,FALSE) -> 2
A33: 15 | B33: =HLOOKUP(EmpiricVANCOMYCINcalc!$Q$27,EmpWorksheet!$C$1:$H$100,I33,FALSE) ->  | E33: =$C$3*EXP(-$A$1*EmpWorksheet!$A33) ->  | F33: =$C$3*EXP(-$A$1*EmpWorksheet!$A33) ->  | G33: =$C$3*EXP(-$A$1*EmpWorksheet!$A33) ->  | H33: =$C$3*EXP(-$A$1*EmpWorksheet!$A33) ->  | I33: 33 | J33: =((S33-EmpiricVANCOMYCINcalc!$T$11)^2)/EmpiricVANCOMYCINcalc!$T$11 ->  | K33: =((T33-EmpiricVANCOMYCINcalc!$T$12)^2)/EmpiricVANCOMYCINcalc!$T$12 ->  | L33: =((U33-EmpiricVANCOMYCINcalc!$T$10)^2)/EmpiricVANCOMYCINcalc!$T$10 ->  | N33: 2000 | O33: 1000 | P33: 12 | Q33: =VLOOKUP(P33,DLsheet!$I$15:$J$20,2,FALSE) -> Yes | R33: =VLOOKUP(O33,DLsheet!$E$13:$F$21,2,FALSE) -> 1
A34: 15.5 | B34: =HLOOKUP(EmpiricVANCOMYCINcalc!$Q$27,EmpWorksheet!$C$1:$H$100,I34,FALSE) ->  | E34: =$C$3*EXP(-$A$1*EmpWorksheet!$A34) ->  | F34: =$C$3*EXP(-$A$1*EmpWorksheet!$A34) ->  | G34: =$C$3*EXP(-$A$1*EmpWorksheet!$A34) ->  | H34: =$C$3*EXP(-$A$1*EmpWorksheet!$A34) ->  | I34: 34 | J34: =((S34-EmpiricVANCOMYCINcalc!$T$11)^2)/EmpiricVANCOMYCINcalc!$T$11 ->  | K34: =((T34-EmpiricVANCOMYCINcalc!$T$12)^2)/EmpiricVANCOMYCINcalc!$T$12 ->  | L34: =((U34-EmpiricVANCOMYCINcalc!$T$10)^2)/EmpiricVANCOMYCINcalc!$T$10 ->  | N34: =O34*24/P34 -> 2000 | O34: 1500 | P34: 18 | Q34: =VLOOKUP(P34,DLsheet!$I$15:$J$20,2,FALSE) -> No | R34: =VLOOKUP(O34,DLsheet!$E$13:$F$21,2,FALSE) -> 1.5 | S34: =O34/$B$1/(1-EXP(-$A$1*P34)) ->  | T34: =S34*EXP(-$A$1*(P34-R34)) ->  | U34: =O34*24/P34/$B$1/$A$1 -> 
A35: 16 | B35: =HLOOKUP(EmpiricVANCOMYCINcalc!$Q$27,EmpWorksheet!$C$1:$H$100,I35,FALSE) ->  | E35: =$C$3*EXP(-$A$1*EmpWorksheet!$A35) ->  | F35: =$C$3*EXP(-$A$1*EmpWorksheet!$A35) ->  | G35: =$C$3*EXP(-$A$1*EmpWorksheet!$A35) ->  | H35: =$C$3*EXP(-$A$1*EmpWorksheet!$A35) ->  | I35: 35 | J35: =((S35-EmpiricVANCOMYCINcalc!$T$11)^2)/EmpiricVANCOMYCINcalc!$T$11 ->  | K35: =((T35-EmpiricVANCOMYCINcalc!$T$12)^2)/EmpiricVANCOMYCINcalc!$T$12 ->  | L35: =((U35-EmpiricVANCOMYCINcalc!$T$10)^2)/EmpiricVANCOMYCINcalc!$T$10 ->  | N35: 2000 | O35: 2000 | P35: 24 | Q35: =VLOOKUP(P35,DLsheet!$I$15:$J$20,2,FALSE) -> Yes | R35: =VLOOKUP(O35,DLsheet!$E$13:$F$21,2,FALSE) -> 2
A36: 16.5 | B36: =HLOOKUP(EmpiricVANCOMYCINcalc!$Q$27,EmpWorksheet!$C$1:$H$100,I36,FALSE) ->  | C36: =C35+C3 ->  | E36: =$C$3*EXP(-$A$1*EmpWorksheet!$A36) ->  | F36: =$C$3*EXP(-$A$1*EmpWorksheet!$A36) ->  | G36: =$C$3*EXP(-$A$1*EmpWorksheet!$A36) ->  | H36: =$C$3*EXP(-$A$1*EmpWorksheet!$A36) ->  | I36: 36 | J36: =((S36-EmpiricVANCOMYCINcalc!$T$11)^2)/EmpiricVANCOMYCINcalc!$T$11 ->  | K36: =((T36-EmpiricVANCOMYCINcalc!$T$12)^2)/EmpiricVANCOMYCINcalc!$T$12 ->  | L36: =((U36-EmpiricVANCOMYCINcalc!$T$10)^2)/EmpiricVANCOMYCINcalc!$T$10 ->  | N36: 2250 | O36: 750 | P36: 8 | Q36: =VLOOKUP(P36,DLsheet!$I$15:$J$20,2,FALSE) -> Yes | R36: =VLOOKUP(O36,DLsheet!$E$13:$F$21,2,FALSE) -> 1
A37: 17 | B37: =HLOOKUP(EmpiricVANCOMYCINcalc!$Q$27,EmpWorksheet!$C$1:$H$100,I37,FALSE) ->  | C37: =$C$36*EXP(-$A$1*(A37-16.5)) ->  | E37: =$C$3*EXP(-$A$1*EmpWorksheet!$A37) ->  | F37: =$C$3*EXP(-$A$1*EmpWorksheet!$A37) ->  | G37: =$C$3*EXP(-$A$1*EmpWorksheet!$A37) ->  | H37: =$C$3*EXP(-$A$1*EmpWorksheet!$A37) ->  | I37: 37 | J37: =((S37-EmpiricVANCOMYCINcalc!$T$11)^2)/EmpiricVANCOMYCINcalc!$T$11 ->  | K37: =((T37-EmpiricVANCOMYCINcalc!$T$12)^2)/EmpiricVANCOMYCINcalc!$T$12 ->  | L37: =((U37-EmpiricVANCOMYCINcalc!$T$10)^2)/EmpiricVANCOMYCINcalc!$T$10 ->  | N37: 2250 | O37: 2250 | P37: 24 | Q37: =VLOOKUP(P37,DLsheet!$I$15:$J$20,2,FALSE) -> Yes | R37: =VLOOKUP(O37,DLsheet!$E$13:$F$21,2,FALSE) -> 2.5
A38: 17.5 | B38: =HLOOKUP(EmpiricVANCOMYCINcalc!$Q$27,EmpWorksheet!$C$1:$H$100,I38,FALSE) ->  | E38: =$C$3*EXP(-$A$1*EmpWorksheet!$A38) ->  | F38: =$C$3*EXP(-$A$1*EmpWorksheet!$A38) ->  | G38: =$C$3*EXP(-$A$1*EmpWorksheet!$A38) ->  | H38: =$C$3*EXP(-$A$1*EmpWorksheet!$A38) ->  | I38: 38 | J38: =((S38-EmpiricVANCOMYCINcalc!$T$11)^2)/EmpiricVANCOMYCINcalc!$T$11 ->  | K38: =((T38-EmpiricVANCOMYCINcalc!$T$12)^2)/EmpiricVANCOMYCINcalc!$T$12 ->  | L38: =((U38-EmpiricVANCOMYCINcalc!$T$10)^2)/EmpiricVANCOMYCINcalc!$T$10 ->  | N38: 2333.333333 | O38: 1750 | P38: 18 | Q38: =VLOOKUP(P38,DLsheet!$I$15:$J$20,2,FALSE) -> No | R38: =VLOOKUP(O38,DLsheet!$E$13:$F$21,2,FALSE) -> 2
A39: 18 | B39: =HLOOKUP(EmpiricVANCOMYCINcalc!$Q$27,EmpWorksheet!$C$1:$H$100,I39,FALSE) ->  | E39: =$C$3*EXP(-$A$1*EmpWorksheet!$A39) ->  | F39: =$C$3*EXP(-$A$1*EmpWorksheet!$A39) ->  | G39: =$C$3*EXP(-$A$1*EmpWorksheet!$A39) ->  | H39: =$C$3*EXP(-$A$1*EmpWorksheet!$A39) ->  | I39: 39 | J39: =((S39-EmpiricVANCOMYCINcalc!$T$11)^2)/EmpiricVANCOMYCINcalc!$T$11 ->  | K39: =((T39-EmpiricVANCOMYCINcalc!$T$12)^2)/EmpiricVANCOMYCINcalc!$T$12 ->  | L39: =((U39-EmpiricVANCOMYCINcalc!$T$10)^2)/EmpiricVANCOMYCINcalc!$T$10 ->  | N39: 2500 | O39: 1250 | P39: 12 | Q39: =VLOOKUP(P39,DLsheet!$I$15:$J$20,2,FALSE) -> Yes | R39: =VLOOKUP(O39,DLsheet!$E$13:$F$21,2,FALSE) -> 1.5
A40: 18.5 | B40: =HLOOKUP(EmpiricVANCOMYCINcalc!$Q$27,EmpWorksheet!$C$1:$H$100,I40,FALSE) ->  | E40: =E39+E3 ->  | F40: =$C$3*EXP(-$A$1*EmpWorksheet!$A40) ->  | G40: =$C$3*EXP(-$A$1*EmpWorksheet!$A40) ->  | H40: =$C$3*EXP(-$A$1*EmpWorksheet!$A40) ->  | I40: 40 | J40: =((S40-EmpiricVANCOMYCINcalc!$T$11)^2)/EmpiricVANCOMYCINcalc!$T$11 ->  | K40: =((T40-EmpiricVANCOMYCINcalc!$T$12)^2)/EmpiricVANCOMYCINcalc!$T$12 ->  | L40: =((U40-EmpiricVANCOMYCINcalc!$T$10)^2)/EmpiricVANCOMYCINcalc!$T$10 ->  | N40: 2500 | O40: 2500 | P40: 24 | Q40: =VLOOKUP(P40,DLsheet!$I$15:$J$20,2,FALSE) -> Yes | R40: =VLOOKUP(O40,DLsheet!$E$13:$F$21,2,FALSE) -> 2.5
A41: 19 | B41: =HLOOKUP(EmpiricVANCOMYCINcalc!$Q$27,EmpWorksheet!$C$1:$H$100,I41,FALSE) ->  | E41: =$E$40*EXP(-$A$1*(A41-18.5)) ->  | F41: =$C$3*EXP(-$A$1*EmpWorksheet!$A41) ->  | G41: =$C$3*EXP(-$A$1*EmpWorksheet!$A41) ->  | H41: =$C$3*EXP(-$A$1*EmpWorksheet!$A41) ->  | I41: 41 | J41: =((S41-EmpiricVANCOMYCINcalc!$T$11)^2)/EmpiricVANCOMYCINcalc!$T$11 ->  | K41: =((T41-EmpiricVANCOMYCINcalc!$T$12)^2)/EmpiricVANCOMYCINcalc!$T$12 ->  | L41: =((U41-EmpiricVANCOMYCINcalc!$T$10)^2)/EmpiricVANCOMYCINcalc!$T$10 ->  | N41: 2666.666667 | O41: 2000 | P41: 18 | Q41: =VLOOKUP(P41,DLsheet!$I$15:$J$20,2,FALSE) -> No | R41: =VLOOKUP(O41,DLsheet!$E$13:$F$21,2,FALSE) -> 2
A42: 19.5 | B42: =HLOOKUP(EmpiricVANCOMYCINcalc!$Q$27,EmpWorksheet!$C$1:$H$100,I42,FALSE) ->  | F42: =$C$3*EXP(-$A$1*EmpWorksheet!$A42) ->  | G42: =$C$3*EXP(-$A$1*EmpWorksheet!$A42) ->  | H42: =$C$3*EXP(-$A$1*EmpWorksheet!$A42) ->  | I42: 42 | J42: =((S42-EmpiricVANCOMYCINcalc!$T$11)^2)/EmpiricVANCOMYCINcalc!$T$11 ->  | K42: =((T42-EmpiricVANCOMYCINcalc!$T$12)^2)/EmpiricVANCOMYCINcalc!$T$12 ->  | L42: =((U42-EmpiricVANCOMYCINcalc!$T$10)^2)/EmpiricVANCOMYCINcalc!$T$10 ->  | N42: 3000 | O42: 1000 | P42: 8 | Q42: =VLOOKUP(P42,DLsheet!$I$15:$J$20,2,FALSE) -> Yes | R42: =VLOOKUP(O42,DLsheet!$E$13:$F$21,2,FALSE) -> 1
A43: 20 | B43: =HLOOKUP(EmpiricVANCOMYCINcalc!$Q$27,EmpWorksheet!$C$1:$H$100,I43,FALSE) ->  | F43: =$C$3*EXP(-$A$1*EmpWorksheet!$A43) ->  | G43: =$C$3*EXP(-$A$1*EmpWorksheet!$A43) ->  | H43: =$C$3*EXP(-$A$1*EmpWorksheet!$A43) ->  | I43: 43 | J43: =((S43-EmpiricVANCOMYCINcalc!$T$11)^2)/EmpiricVANCOMYCINcalc!$T$11 ->  | K43: =((T43-EmpiricVANCOMYCINcalc!$T$12)^2)/EmpiricVANCOMYCINcalc!$T$12 ->  | L43: =((U43-EmpiricVANCOMYCINcalc!$T$10)^2)/EmpiricVANCOMYCINcalc!$T$10 ->  | N43: 3000 | O43: 1500 | P43: 12 | Q43: =VLOOKUP(P43,DLsheet!$I$15:$J$20,2,FALSE) -> Yes | R43: =VLOOKUP(O43,DLsheet!$E$13:$F$21,2,FALSE) -> 1.5
A44: 20.5 | B44: =HLOOKUP(EmpiricVANCOMYCINcalc!$Q$27,EmpWorksheet!$C$1:$H$100,I44,FALSE) ->  | F44: =$C$3*EXP(-$A$1*EmpWorksheet!$A44) ->  | G44: =$C$3*EXP(-$A$1*EmpWorksheet!$A44) ->  | H44: =$C$3*EXP(-$A$1*EmpWorksheet!$A44) ->  | I44: 44 | J44: =((S44-EmpiricVANCOMYCINcalc!$T$11)^2)/EmpiricVANCOMYCINcalc!$T$11 ->  | K44: =((T44-EmpiricVANCOMYCINcalc!$T$12)^2)/EmpiricVANCOMYCINcalc!$T$12 ->  | L44: =((U44-EmpiricVANCOMYCINcalc!$T$10)^2)/EmpiricVANCOMYCINcalc!$T$10 ->  | N44: 3000 | O44: 2250 | P44: 18 | Q44: =VLOOKUP(P44,DLsheet!$I$15:$J$20,2,FALSE) -> No | R44: =VLOOKUP(O44,DLsheet!$E$13:$F$21,2,FALSE) -> 2.5
A45: 21 | B45: =HLOOKUP(EmpiricVANCOMYCINcalc!$Q$27,EmpWorksheet!$C$1:$H$100,I45,FALSE) ->  | F45: =$C$3*EXP(-$A$1*EmpWorksheet!$A45) ->  | G45: =$C$3*EXP(-$A$1*EmpWorksheet!$A45) ->  | H45: =$C$3*EXP(-$A$1*EmpWorksheet!$A45) ->  | I45: 45 | J45: =((S45-EmpiricVANCOMYCINcalc!$T$11)^2)/EmpiricVANCOMYCINcalc!$T$11 ->  | K45: =((T45-EmpiricVANCOMYCINcalc!$T$12)^2)/EmpiricVANCOMYCINcalc!$T$12 ->  | L45: =((U45-EmpiricVANCOMYCINcalc!$T$10)^2)/EmpiricVANCOMYCINcalc!$T$10 ->  | N45: 3500 | O45: 1750 | P45: 12 | Q45: =VLOOKUP(P45,DLsheet!$I$15:$J$20,2,FALSE) -> Yes | R45: =VLOOKUP(O45,DLsheet!$E$13:$F$21,2,FALSE) -> 2
A46: 21.5 | B46: =HLOOKUP(EmpiricVANCOMYCINcalc!$Q$27,EmpWorksheet!$C$1:$H$100,I46,FALSE) ->  | F46: =$C$3*EXP(-$A$1*EmpWorksheet!$A46) ->  | G46: =$C$3*EXP(-$A$1*EmpWorksheet!$A46) ->  | H46: =$C$3*EXP(-$A$1*EmpWorksheet!$A46) ->  | I46: 46 | J46: =((S46-EmpiricVANCOMYCINcalc!$T$11)^2)/EmpiricVANCOMYCINcalc!$T$11 ->  | K46: =((T46-EmpiricVANCOMYCINcalc!$T$12)^2)/EmpiricVANCOMYCINcalc!$T$12 ->  | L46: =((U46-EmpiricVANCOMYCINcalc!$T$10)^2)/EmpiricVANCOMYCINcalc!$T$10 ->  | N46: 3750 | O46: 1250 | P46: 8 | Q46: =VLOOKUP(P46,DLsheet!$I$15:$J$20,2,FALSE) -> Yes | R46: =VLOOKUP(O46,DLsheet!$E$13:$F$21,2,FALSE) -> 1.5
A47: 22 | B47: =HLOOKUP(EmpiricVANCOMYCINcalc!$Q$27,EmpWorksheet!$C$1:$H$100,I47,FALSE) ->  | F47: =$C$3*EXP(-$A$1*EmpWorksheet!$A47) ->  | G47: =$C$3*EXP(-$A$1*EmpWorksheet!$A47) ->  | H47: =$C$3*EXP(-$A$1*EmpWorksheet!$A47) ->  | I47: 47 | J47: =((S47-EmpiricVANCOMYCINcalc!$T$11)^2)/EmpiricVANCOMYCINcalc!$T$11 ->  | K47: =((T47-EmpiricVANCOMYCINcalc!$T$12)^2)/EmpiricVANCOMYCINcalc!$T$12 ->  | L47: =((U47-EmpiricVANCOMYCINcalc!$T$10)^2)/EmpiricVANCOMYCINcalc!$T$10 ->  | N47: 4000 | O47: 2000 | P47: 12 | Q47: =VLOOKUP(P47,DLsheet!$I$15:$J$20,2,FALSE) -> Yes | R47: =VLOOKUP(O47,DLsheet!$E$13:$F$21,2,FALSE) -> 2
A48: 22.5 | B48: =HLOOKUP(EmpiricVANCOMYCINcalc!$Q$27,EmpWorksheet!$C$1:$H$100,I48,FALSE) ->  | F48: =$C$3*EXP(-$A$1*EmpWorksheet!$A48) ->  | G48: =$C$3*EXP(-$A$1*EmpWorksheet!$A48) ->  | H48: =$C$3*EXP(-$A$1*EmpWorksheet!$A48) ->  | I48: 48 | J48: =((S48-EmpiricVANCOMYCINcalc!$T$11)^2)/EmpiricVANCOMYCINcalc!$T$11 ->  | K48: =((T48-EmpiricVANCOMYCINcalc!$T$12)^2)/EmpiricVANCOMYCINcalc!$T$12 ->  | L48: =((U48-EmpiricVANCOMYCINcalc!$T$10)^2)/EmpiricVANCOMYCINcalc!$T$10 ->  | N48: 4500 | O48: 1500 | P48: 8 | Q48: =VLOOKUP(P48,DLsheet!$I$15:$J$20,2,FALSE) -> Yes | R48: =VLOOKUP(O48,DLsheet!$E$13:$F$21,2,FALSE) -> 1.5
A49: 23 | B49: =HLOOKUP(EmpiricVANCOMYCINcalc!$Q$27,EmpWorksheet!$C$1:$H$100,I49,FALSE) ->  | F49: =$C$3*EXP(-$A$1*EmpWorksheet!$A49) ->  | G49: =$C$3*EXP(-$A$1*EmpWorksheet!$A49) ->  | H49: =$C$3*EXP(-$A$1*EmpWorksheet!$A49) ->  | I49: 49 | J49: =((S49-EmpiricVANCOMYCINcalc!$T$11)^2)/EmpiricVANCOMYCINcalc!$T$11 ->  | K49: =((T49-EmpiricVANCOMYCINcalc!$T$12)^2)/EmpiricVANCOMYCINcalc!$T$12 ->  | L49: =((U49-EmpiricVANCOMYCINcalc!$T$10)^2)/EmpiricVANCOMYCINcalc!$T$10 ->  | N49: 4500 | O49: 2250 | P49: 12 | Q49: =VLOOKUP(P49,DLsheet!$I$15:$J$20,2,FALSE) -> Yes | R49: =VLOOKUP(O49,DLsheet!$E$13:$F$21,2,FALSE) -> 2.5
A50: 23.5 | B50: =HLOOKUP(EmpiricVANCOMYCINcalc!$Q$27,EmpWorksheet!$C$1:$H$100,I50,FALSE) ->  | F50: =$C$3*EXP(-$A$1*EmpWorksheet!$A50) ->  | G50: =$C$3*EXP(-$A$1*EmpWorksheet!$A50) ->  | H50: =$C$3*EXP(-$A$1*EmpWorksheet!$A50) ->  | I50: 50 | J50: =((S50-EmpiricVANCOMYCINcalc!$T$11)^2)/EmpiricVANCOMYCINcalc!$T$11 ->  | K50: =((T50-EmpiricVANCOMYCINcalc!$T$12)^2)/EmpiricVANCOMYCINcalc!$T$12 ->  | L50: =((U50-EmpiricVANCOMYCINcalc!$T$10)^2)/EmpiricVANCOMYCINcalc!$T$10 ->  | N50: 5000 | O50: 2500 | P50: 12 | Q50: =VLOOKUP(P50,DLsheet!$I$15:$J$20,2,FALSE) -> Yes | R50: =VLOOKUP(O50,DLsheet!$E$13:$F$21,2,FALSE) -> 2.5
A51: 24 | B51: =HLOOKUP(EmpiricVANCOMYCINcalc!$Q$27,EmpWorksheet!$C$1:$H$100,I51,FALSE) ->  | F51: =$C$3*EXP(-$A$1*EmpWorksheet!$A51) ->  | G51: =$C$3*EXP(-$A$1*EmpWorksheet!$A51) ->  | H51: =$C$3*EXP(-$A$1*EmpWorksheet!$A51) ->  | I51: 51 | J51: =((S51-EmpiricVANCOMYCINcalc!$T$11)^2)/EmpiricVANCOMYCINcalc!$T$11 ->  | K51: =((T51-EmpiricVANCOMYCINcalc!$T$12)^2)/EmpiricVANCOMYCINcalc!$T$12 ->  | L51: =((U51-EmpiricVANCOMYCINcalc!$T$10)^2)/EmpiricVANCOMYCINcalc!$T$10 ->  | N51: 5250 | O51: 1750 | P51: 8 | Q51: =VLOOKUP(P51,DLsheet!$I$15:$J$20,2,FALSE) -> Yes | R51: =VLOOKUP(O51,DLsheet!$E$13:$F$21,2,FALSE) -> 2
A52: 24.5 | B52: =HLOOKUP(EmpiricVANCOMYCINcalc!$Q$27,EmpWorksheet!$C$1:$H$100,I52,FALSE) ->  | C52: =C51+C3 ->  | D52: =D51+D3 ->  | F52: =F51+F3 ->  | G52: =$C$3*EXP(-$A$1*EmpWorksheet!$A52) ->  | H52: =$C$3*EXP(-$A$1*EmpWorksheet!$A52) ->  | I52: 52 | J52: =((S52-EmpiricVANCOMYCINcalc!$T$11)^2)/EmpiricVANCOMYCINcalc!$T$11 ->  | K52: =((T52-EmpiricVANCOMYCINcalc!$T$12)^2)/EmpiricVANCOMYCINcalc!$T$12 ->  | L52: =((U52-EmpiricVANCOMYCINcalc!$T$10)^2)/EmpiricVANCOMYCINcalc!$T$10 ->  | N52: 6000 | O52: 2000 | P52: 8 | Q52: =VLOOKUP(P52,DLsheet!$I$15:$J$20,2,FALSE) -> Yes | R52: =VLOOKUP(O52,DLsheet!$E$13:$F$21,2,FALSE) -> 2
A53: 25 | B53: =HLOOKUP(EmpiricVANCOMYCINcalc!$Q$27,EmpWorksheet!$C$1:$H$100,I53,FALSE) ->  | C53: =$C$52*EXP(-$A$1*(A53-24.5)) ->  | D53: =$D$52*EXP(-$A$1*(A53-24.5)) ->  | F53: =$F$52*EXP(-$A$1*(A53-24.5)) ->  | G53: =$C$3*EXP(-$A$1*EmpWorksheet!$A53) ->  | H53: =$C$3*EXP(-$A$1*EmpWorksheet!$A53) ->  | I53: 53 | J53: =((S53-EmpiricVANCOMYCINcalc!$T$11)^2)/EmpiricVANCOMYCINcalc!$T$11 ->  | K53: =((T53-EmpiricVANCOMYCINcalc!$T$12)^2)/EmpiricVANCOMYCINcalc!$T$12 ->  | L53: =((U53-EmpiricVANCOMYCINcalc!$T$10)^2)/EmpiricVANCOMYCINcalc!$T$10 ->  | N53: 6750 | O53: 2250 | P53: 8 | Q53: =VLOOKUP(P53,DLsheet!$I$15:$J$20,2,FALSE) -> Yes | R53: =VLOOKUP(O53,DLsheet!$E$13:$F$21,2,FALSE) -> 2.5
A54: 25.5 | B54: =HLOOKUP(EmpiricVANCOMYCINcalc!$Q$27,EmpWorksheet!$C$1:$H$100,I54,FALSE) ->  | G54: =$C$3*EXP(-$A$1*EmpWorksheet!$A54) ->  | H54: =$C$3*EXP(-$A$1*EmpWorksheet!$A54) ->  | I54: 54 | J54: =((S54-EmpiricVANCOMYCINcalc!$T$11)^2)/EmpiricVANCOMYCINcalc!$T$11 ->  | K54: =((T54-EmpiricVANCOMYCINcalc!$T$12)^2)/EmpiricVANCOMYCINcalc!$T$12 ->  | L54: =((U54-EmpiricVANCOMYCINcalc!$T$10)^2)/EmpiricVANCOMYCINcalc!$T$10 ->  | N54: 7500 | O54: 2500 | P54: 8 | Q54: =VLOOKUP(P54,DLsheet!$I$15:$J$20,2,FALSE) -> Yes | R54: =VLOOKUP(O54,DLsheet!$E$13:$F$21,2,FALSE) -> 2.5
A55: 26 | B55: =HLOOKUP(EmpiricVANCOMYCINcalc!$Q$27,EmpWorksheet!$C$1:$H$100,I55,FALSE) ->  | G55: =$C$3*EXP(-$A$1*EmpWorksheet!$A55) ->  | H55: =$C$3*EXP(-$A$1*EmpWorksheet!$A55) ->  | I55: 55 | Q55: =VLOOKUP(P55,DLsheet!$I$15:$J$20,2,FALSE) -> 
A56: 26.5 | B56: =HLOOKUP(EmpiricVANCOMYCINcalc!$Q$27,EmpWorksheet!$C$1:$H$100,I56,FALSE) ->  | G56: =$C$3*EXP(-$A$1*EmpWorksheet!$A56) ->  | H56: =$C$3*EXP(-$A$1*EmpWorksheet!$A56) ->  | I56: 56 | Q56: =VLOOKUP(P56,DLsheet!$I$15:$J$20,2,FALSE) -> 
A57: 27 | B57: =HLOOKUP(EmpiricVANCOMYCINcalc!$Q$27,EmpWorksheet!$C$1:$H$100,I57,FALSE) ->  | G57: =$C$3*EXP(-$A$1*EmpWorksheet!$A57) ->  | H57: =$C$3*EXP(-$A$1*EmpWorksheet!$A57) ->  | I57: 57 | Q57: =VLOOKUP(P57,DLsheet!$I$15:$J$20,2,FALSE) -> 
A58: 27.5 | B58: =HLOOKUP(EmpiricVANCOMYCINcalc!$Q$27,EmpWorksheet!$C$1:$H$100,I58,FALSE) ->  | G58: =$C$3*EXP(-$A$1*EmpWorksheet!$A58) ->  | H58: =$C$3*EXP(-$A$1*EmpWorksheet!$A58) ->  | I58: 58 | Q58: =VLOOKUP(P58,DLsheet!$I$15:$J$20,2,FALSE) -> 
A59: 28 | B59: =HLOOKUP(EmpiricVANCOMYCINcalc!$Q$27,EmpWorksheet!$C$1:$H$100,I59,FALSE) ->  | G59: =$C$3*EXP(-$A$1*EmpWorksheet!$A59) ->  | H59: =$C$3*EXP(-$A$1*EmpWorksheet!$A59) ->  | I59: 59 | Q59: =VLOOKUP(P59,DLsheet!$I$15:$J$20,2,FALSE) -> 
A60: 28.5 | B60: =HLOOKUP(EmpiricVANCOMYCINcalc!$Q$27,EmpWorksheet!$C$1:$H$100,I60,FALSE) ->  | G60: =$C$3*EXP(-$A$1*EmpWorksheet!$A60) ->  | H60: =$C$3*EXP(-$A$1*EmpWorksheet!$A60) ->  | I60: 60 | Q60: =VLOOKUP(P60,DLsheet!$I$15:$J$20,2,FALSE) -> 
A61: 29 | B61: =HLOOKUP(EmpiricVANCOMYCINcalc!$Q$27,EmpWorksheet!$C$1:$H$100,I61,FALSE) ->  | G61: =$C$3*EXP(-$A$1*EmpWorksheet!$A61) ->  | H61: =$C$3*EXP(-$A$1*EmpWorksheet!$A61) ->  | I61: 61 | Q61: =VLOOKUP(P61,DLsheet!$I$15:$J$20,2,FALSE) -> 
A62: 29.5 | B62: =HLOOKUP(EmpiricVANCOMYCINcalc!$Q$27,EmpWorksheet!$C$1:$H$100,I62,FALSE) ->  | G62: =$C$3*EXP(-$A$1*EmpWorksheet!$A62) ->  | H62: =$C$3*EXP(-$A$1*EmpWorksheet!$A62) ->  | I62: 62 | Q62: =VLOOKUP(P62,DLsheet!$I$15:$J$20,2,FALSE) -> 
A63: 30 | B63: =HLOOKUP(EmpiricVANCOMYCINcalc!$Q$27,EmpWorksheet!$C$1:$H$100,I63,FALSE) ->  | G63: =$C$3*EXP(-$A$1*EmpWorksheet!$A63) ->  | H63: =$C$3*EXP(-$A$1*EmpWorksheet!$A63) ->  | I63: 63 | Q63: =VLOOKUP(P63,DLsheet!$I$15:$J$20,2,FALSE) -> 
A64: 30.5 | B64: =HLOOKUP(EmpiricVANCOMYCINcalc!$Q$27,EmpWorksheet!$C$1:$H$100,I64,FALSE) ->  | G64: =$C$3*EXP(-$A$1*EmpWorksheet!$A64) ->  | H64: =$C$3*EXP(-$A$1*EmpWorksheet!$A64) ->  | I64: 64 | Q64: =VLOOKUP(P64,DLsheet!$I$15:$J$20,2,FALSE) -> 
A65: 31 | B65: =HLOOKUP(EmpiricVANCOMYCINcalc!$Q$27,EmpWorksheet!$C$1:$H$100,I65,FALSE) ->  | G65: =$C$3*EXP(-$A$1*EmpWorksheet!$A65) ->  | H65: =$C$3*EXP(-$A$1*EmpWorksheet!$A65) ->  | I65: 65 | Q65: =VLOOKUP(P65,DLsheet!$I$15:$J$20,2,FALSE) -> 
A66: 31.5 | B66: =HLOOKUP(EmpiricVANCOMYCINcalc!$Q$27,EmpWorksheet!$C$1:$H$100,I66,FALSE) ->  | G66: =$C$3*EXP(-$A$1*EmpWorksheet!$A66) ->  | H66: =$C$3*EXP(-$A$1*EmpWorksheet!$A66) ->  | I66: 66 | Q66: =VLOOKUP(P66,DLsheet!$I$15:$J$20,2,FALSE) -> 
A67: 32 | B67: =HLOOKUP(EmpiricVANCOMYCINcalc!$Q$27,EmpWorksheet!$C$1:$H$100,I67,FALSE) ->  | G67: =$C$3*EXP(-$A$1*EmpWorksheet!$A67) ->  | H67: =$C$3*EXP(-$A$1*EmpWorksheet!$A67) ->  | I67: 67 | Q67: =VLOOKUP(P67,DLsheet!$I$15:$J$20,2,FALSE) -> 
A68: 32.5 | B68: =HLOOKUP(EmpiricVANCOMYCINcalc!$Q$27,EmpWorksheet!$C$1:$H$100,I68,FALSE) ->  | C68: =$C$67+C3 ->  | E68: =E3+E67 ->  | G68: =$C$3*EXP(-$A$1*EmpWorksheet!$A68) ->  | H68: =$C$3*EXP(-$A$1*EmpWorksheet!$A68) ->  | I68: 68 | Q68: =VLOOKUP(P68,DLsheet!$I$15:$J$20,2,FALSE) -> 
A69: 33 | B69: =HLOOKUP(EmpiricVANCOMYCINcalc!$Q$27,EmpWorksheet!$C$1:$H$100,I69,FALSE) ->  | C69: =$C$68*EXP(-$A$1*(A69-32.5)) ->  | E69: =$E$68*EXP(-$A$1*(A69-32.5)) ->  | G69: =$C$3*EXP(-$A$1*EmpWorksheet!$A69) ->  | H69: =$C$3*EXP(-$A$1*EmpWorksheet!$A69) ->  | I69: 69 | Q69: =VLOOKUP(P69,DLsheet!$I$15:$J$20,2,FALSE) -> 
A70: 33.5 | B70: =HLOOKUP(EmpiricVANCOMYCINcalc!$Q$27,EmpWorksheet!$C$1:$H$100,I70,FALSE) ->  | G70: =$C$3*EXP(-$A$1*EmpWorksheet!$A70) ->  | H70: =$C$3*EXP(-$A$1*EmpWorksheet!$A70) ->  | I70: 70 | Q70: =VLOOKUP(P70,DLsheet!$I$15:$J$20,2,FALSE) -> 
A71: 34 | B71: =HLOOKUP(EmpiricVANCOMYCINcalc!$Q$27,EmpWorksheet!$C$1:$H$100,I71,FALSE) ->  | G71: =$C$3*EXP(-$A$1*EmpWorksheet!$A71) ->  | H71: =$C$3*EXP(-$A$1*EmpWorksheet!$A71) ->  | I71: 71 | Q71: =VLOOKUP(P71,DLsheet!$I$15:$J$20,2,FALSE) -> 
A72: 34.5 | B72: =HLOOKUP(EmpiricVANCOMYCINcalc!$Q$27,EmpWorksheet!$C$1:$H$100,I72,FALSE) ->  | G72: =$C$3*EXP(-$A$1*EmpWorksheet!$A72) ->  | H72: =$C$3*EXP(-$A$1*EmpWorksheet!$A72) ->  | I72: 72 | Q72: =VLOOKUP(P72,DLsheet!$I$15:$J$20,2,FALSE) -> 
A73: 35 | B73: =HLOOKUP(EmpiricVANCOMYCINcalc!$Q$27,EmpWorksheet!$C$1:$H$100,I73,FALSE) ->  | G73: =$C$3*EXP(-$A$1*EmpWorksheet!$A73) ->  | H73: =$C$3*EXP(-$A$1*EmpWorksheet!$A73) ->  | I73: 73 | Q73: =VLOOKUP(P73,DLsheet!$I$15:$J$20,2,FALSE) -> 
A74: 35.5 | B74: =HLOOKUP(EmpiricVANCOMYCINcalc!$Q$27,EmpWorksheet!$C$1:$H$100,I74,FALSE) ->  | G74: =$C$3*EXP(-$A$1*EmpWorksheet!$A74) ->  | H74: =$C$3*EXP(-$A$1*EmpWorksheet!$A74) ->  | I74: 74 | Q74: =VLOOKUP(P74,DLsheet!$I$15:$J$20,2,FALSE) -> 
A75: 36 | B75: =HLOOKUP(EmpiricVANCOMYCINcalc!$Q$27,EmpWorksheet!$C$1:$H$100,I75,FALSE) ->  | G75: =G3+G74 ->  | H75: =$C$3*EXP(-$A$1*EmpWorksheet!$A75) ->  | I75: 75 | Q75: =VLOOKUP(P75,DLsheet!$I$15:$J$20,2,FALSE) -> 
A76: 36.5 | B76: =HLOOKUP(EmpiricVANCOMYCINcalc!$Q$27,EmpWorksheet!$C$1:$H$100,I76,FALSE) ->  | D76: =D3+D75 ->  | G76: =$G$75*EXP(-$A$1*(A76-36)) ->  | H76: =$C$3*EXP(-$A$1*EmpWorksheet!$A76) ->  | I76: 76 | Q76: =VLOOKUP(P76,DLsheet!$I$15:$J$20,2,FALSE) -> 
A77: 37 | B77: =HLOOKUP(EmpiricVANCOMYCINcalc!$Q$27,EmpWorksheet!$C$1:$H$100,I77,FALSE) ->  | D77: =$D$76*EXP(-$A$1*(A77-36.5)) ->  | H77: =$C$3*EXP(-$A$1*EmpWorksheet!$A77) ->  | I77: 77 | Q77: =VLOOKUP(P77,DLsheet!$I$15:$J$20,2,FALSE) -> 
A78: 37.5 | B78: =HLOOKUP(EmpiricVANCOMYCINcalc!$Q$27,EmpWorksheet!$C$1:$H$100,I78,FALSE) ->  | H78: =$C$3*EXP(-$A$1*EmpWorksheet!$A78) ->  | I78: 78 | Q78: =VLOOKUP(P78,DLsheet!$I$15:$J$20,2,FALSE) -> 
A79: 38 | B79: =HLOOKUP(EmpiricVANCOMYCINcalc!$Q$27,EmpWorksheet!$C$1:$H$100,I79,FALSE) ->  | H79: =$C$3*EXP(-$A$1*EmpWorksheet!$A79) ->  | I79: 79 | Q79: =VLOOKUP(P79,DLsheet!$I$15:$J$20,2,FALSE) -> 
A80: 38.5 | B80: =HLOOKUP(EmpiricVANCOMYCINcalc!$Q$27,EmpWorksheet!$C$1:$H$100,I80,FALSE) ->  | H80: =$C$3*EXP(-$A$1*EmpWorksheet!$A80) ->  | I80: 80 | Q80: =VLOOKUP(P80,DLsheet!$I$15:$J$20,2,FALSE) -> 
A81: 39 | B81: =HLOOKUP(EmpiricVANCOMYCINcalc!$Q$27,EmpWorksheet!$C$1:$H$100,I81,FALSE) ->  | H81: =$C$3*EXP(-$A$1*EmpWorksheet!$A81) ->  | I81: 81 | Q81: =VLOOKUP(P81,DLsheet!$I$15:$J$20,2,FALSE) -> 
A82: 39.5 | B82: =HLOOKUP(EmpiricVANCOMYCINcalc!$Q$27,EmpWorksheet!$C$1:$H$100,I82,FALSE) ->  | H82: =$C$3*EXP(-$A$1*EmpWorksheet!$A82) ->  | I82: 82 | Q82: =VLOOKUP(P82,DLsheet!$I$15:$J$20,2,FALSE) -> 
A83: 40 | B83: =HLOOKUP(EmpiricVANCOMYCINcalc!$Q$27,EmpWorksheet!$C$1:$H$100,I83,FALSE) ->  | H83: =$C$3*EXP(-$A$1*EmpWorksheet!$A83) ->  | I83: 83 | Q83: =VLOOKUP(P83,DLsheet!$I$15:$J$20,2,FALSE) -> 
A84: 40.5 | B84: =HLOOKUP(EmpiricVANCOMYCINcalc!$Q$27,EmpWorksheet!$C$1:$H$100,I84,FALSE) ->  | C84: =$C$3+C83 ->  | H84: =$C$3*EXP(-$A$1*EmpWorksheet!$A84) ->  | I84: 84 | Q84: =VLOOKUP(P84,DLsheet!$I$15:$J$20,2,FALSE) -> 
A85: 41 | B85: =HLOOKUP(EmpiricVANCOMYCINcalc!$Q$27,EmpWorksheet!$C$1:$H$100,I85,FALSE) ->  | C85: =$C$84*EXP(-$A$1*(A85-40.5)) ->  | H85: =$C$3*EXP(-$A$1*EmpWorksheet!$A85) ->  | I85: 85 | Q85: =VLOOKUP(P85,DLsheet!$I$15:$J$20,2,FALSE) -> 
A86: 41.5 | B86: =HLOOKUP(EmpiricVANCOMYCINcalc!$Q$27,EmpWorksheet!$C$1:$H$100,I86,FALSE) ->  | H86: =$C$3*EXP(-$A$1*EmpWorksheet!$A86) ->  | I86: 86 | Q86: =VLOOKUP(P86,DLsheet!$I$15:$J$20,2,FALSE) -> 
A87: 42 | B87: =HLOOKUP(EmpiricVANCOMYCINcalc!$Q$27,EmpWorksheet!$C$1:$H$100,I87,FALSE) ->  | H87: =$C$3*EXP(-$A$1*EmpWorksheet!$A87) ->  | I87: 87 | Q87: =VLOOKUP(P87,DLsheet!$I$15:$J$20,2,FALSE) -> 
A88: 42.5 | B88: =HLOOKUP(EmpiricVANCOMYCINcalc!$Q$27,EmpWorksheet!$C$1:$H$100,I88,FALSE) ->  | H88: =$C$3*EXP(-$A$1*EmpWorksheet!$A88) ->  | I88: 88 | Q88: =VLOOKUP(P88,DLsheet!$I$15:$J$20,2,FALSE) -> 
A89: 43 | B89: =HLOOKUP(EmpiricVANCOMYCINcalc!$Q$27,EmpWorksheet!$C$1:$H$100,I89,FALSE) ->  | H89: =$C$3*EXP(-$A$1*EmpWorksheet!$A89) ->  | I89: 89 | Q89: =VLOOKUP(P89,DLsheet!$I$15:$J$20,2,FALSE) -> 
A90: 43.5 | B90: =HLOOKUP(EmpiricVANCOMYCINcalc!$Q$27,EmpWorksheet!$C$1:$H$100,I90,FALSE) ->  | H90: =$C$3*EXP(-$A$1*EmpWorksheet!$A90) ->  | I90: 90 | Q90: =VLOOKUP(P90,DLsheet!$I$15:$J$20,2,FALSE) -> 
A91: 44 | B91: =HLOOKUP(EmpiricVANCOMYCINcalc!$Q$27,EmpWorksheet!$C$1:$H$100,I91,FALSE) ->  | H91: =$C$3*EXP(-$A$1*EmpWorksheet!$A91) ->  | I91: 91 | Q91: =VLOOKUP(P91,DLsheet!$I$15:$J$20,2,FALSE) -> 
A92: 44.5 | B92: =HLOOKUP(EmpiricVANCOMYCINcalc!$Q$27,EmpWorksheet!$C$1:$H$100,I92,FALSE) ->  | H92: =$C$3*EXP(-$A$1*EmpWorksheet!$A92) ->  | I92: 92 | Q92: =VLOOKUP(P92,DLsheet!$I$15:$J$20,2,FALSE) -> 
A93: 45 | B93: =HLOOKUP(EmpiricVANCOMYCINcalc!$Q$27,EmpWorksheet!$C$1:$H$100,I93,FALSE) ->  | H93: =$C$3*EXP(-$A$1*EmpWorksheet!$A93) ->  | I93: 93 | Q93: =VLOOKUP(P93,DLsheet!$I$15:$J$20,2,FALSE) -> 
A94: 45.5 | B94: =HLOOKUP(EmpiricVANCOMYCINcalc!$Q$27,EmpWorksheet!$C$1:$H$100,I94,FALSE) ->  | H94: =$C$3*EXP(-$A$1*EmpWorksheet!$A94) ->  | I94: 94 | Q94: =VLOOKUP(P94,DLsheet!$I$15:$J$20,2,FALSE) -> 
A95: 46 | B95: =HLOOKUP(EmpiricVANCOMYCINcalc!$Q$27,EmpWorksheet!$C$1:$H$100,I95,FALSE) ->  | H95: =$C$3*EXP(-$A$1*EmpWorksheet!$A95) ->  | I95: 95 | Q95: =VLOOKUP(P95,DLsheet!$I$15:$J$20,2,FALSE) -> 
A96: 46.5 | B96: =HLOOKUP(EmpiricVANCOMYCINcalc!$Q$27,EmpWorksheet!$C$1:$H$100,I96,FALSE) ->  | H96: =$C$3*EXP(-$A$1*EmpWorksheet!$A96) ->  | I96: 96 | Q96: =VLOOKUP(P96,DLsheet!$I$15:$J$20,2,FALSE) -> 
A97: 47 | B97: =HLOOKUP(EmpiricVANCOMYCINcalc!$Q$27,EmpWorksheet!$C$1:$H$100,I97,FALSE) ->  | H97: =$C$3*EXP(-$A$1*EmpWorksheet!$A97) ->  | I97: 97 | Q97: =VLOOKUP(P97,DLsheet!$I$15:$J$20,2,FALSE) -> 
A98: 47.5 | B98: =HLOOKUP(EmpiricVANCOMYCINcalc!$Q$27,EmpWorksheet!$C$1:$H$100,I98,FALSE) ->  | H98: =$C$3*EXP(-$A$1*EmpWorksheet!$A98) ->  | I98: 98 | Q98: =VLOOKUP(P98,DLsheet!$I$15:$J$20,2,FALSE) -> 
A99: 48 | H99: =$C$3*EXP(-$A$1*EmpWorksheet!$A99) ->  | I99: 99 | Q99: =VLOOKUP(P99,DLsheet!$I$15:$J$20,2,FALSE) -> 
A100: 48.5 | D100: =D99+D3 ->  | F100: =F99+F3 ->  | H100: =$C$3*EXP(-$A$1*EmpWorksheet!$A100) ->  | I100: 100 | Q100: =VLOOKUP(P100,DLsheet!$I$15:$J$20,2,FALSE) -> 

Sheet TwoLevelVANCOMYCINcalc
R1: Reset this Calculator
R3: View Patient Note
G5: Vancomycin Two-Level Calculator | R5: Back to Main Menu
B9: Current Dosing Information | K9: Dosing Variables
B10: First dose or steady state | E10: Steady State | L10: Desired AUC | M10: 500 | P10: Usual range 400-600 mcg*h/mL
B11: Dose | G11: mg | L11: Desired Cmax | M11: 35 | P11: Usual range 30-40 mcg/mL
B12: Dosing interval | G12: hrs | L12: Desired Cmin | M12: 12.5 | P12: Usual range 10-20 mcg/mL
B13: Duration of Infusion | G13: hrs | I13: =E13/24 -> 00:00:00 | L13: Infusion time | M13: 1 | P13: hours
B14: Date/Time of recent dose | E14: =TODAY() -> 2021-06-17 | F14: 06:00:00 | G14: =E14+F14 -> 2021-06-17T06:00:00 | L14: Calculated Total Daily Dose | M14: =M10*E23*E27 ->  | P14: mg over 24 hours
L15: Calculated dose | M15: =M14/(24/M16) ->  | P15: mg
B16: Level 1 result | G16: mcg/mL | I16: =(G17-(G14+I13))*24 -> 6 | L16: Calculated interval | M16: =LN(M12/M11)/-E23+M13 ->  | P16: hr
B17: Date/Time of Level 1 | E17: =TODAY() -> 2021-06-17 | F17: 12:00:00 | G17: =E17+F17 -> 2021-06-17T12:00:00 | I17: =(G20-G17)*24 -> 6
B19: Level 2 result | G19: mcg/mL
B20: Date/Time of Level 2 | E20: =TODAY() -> 2021-06-17 | F20: 18:00:00 | G20: =E20+F20 -> 2021-06-17T18:00:00
B22: Calculated PK Parameters | K22: AUC-based Dosing Regimen
D23: Ke | E23: =IF(E11=0,"",(LN(E16/E19))/I17) ->  | G23: hr-1 | L23: Dose | M23: =TLKworksheet!AB1 ->  | P23: mg
D24: t 1/2 | E24: =IF(E23="","",LN(2)/E23) ->  | G24: hr-1 | L24: Interval | M24: =TLKworksheet!AC1 ->  | P24: hours
D25: Cmax for this interval | E25: =IF(E23="","",E16/(EXP(-E23*I16))) ->  | G25: mcg/mL | L25: Infusion Time | M25: =VLOOKUP(M23,DLsheet!E13:F21,2,FALSE) ->  | P25: hours
B26: =IF(G14="inches",E14,E14/2.54) -> 17466.14173 | D26: Cmin for this interval | E26: =IF(E12="","",IF(E12="N/A","",E25*EXP(-E23*(E12-E13)))) ->  | G26: mcg/mL | I26: =(E11/E13)*(1-EXP(-E23*E13))/(E23*E25) ->  | L26: Calculated AUC | M26: =M23*24/M24/E23/E27 ->  | P26: mcg*h/mL
D27: Vd | E27: =IF(E10="First Dose",I26,IF(E10="Steady state",I27,"")) ->  | G27: L | I27: =(E11/E13)*(1-EXP(-E23*E13))/(E23*E25*(1-EXP(-E23*E12))) ->  | L27: Calculated Css max | M27: =(M23/E27)/(1-EXP(-E23*M24)) ->  | P27: mcg/mL
D28: Vancomycin CL | E28: =IF(E10="First Dose",E23*I26*1000/60,IF(E10="Steady State",E23*I27*1000/60,"")) ->  | G28: mL/min | L28: Calculated Css min | M28: =M27*EXP(-E23*(M24-M25)) ->  | P28: mcg/mL
D29: Steady state AUC | E29: =IF(E12="","",IF(E12="N/A","",E11*(24/E12)/(E28*60/1000))) ->  | G29: mcg*h/mL
D30: at currrent dose/interval | M30: Alternative Dosing Regimens
O31: EstAUC | P31: Cmax | Q31: Cmin
L32: 1 | M32: =CONCATENATE(TLKworksheet!AB1,"mg IV q",TLKworksheet!AC1,"h") ->  | O32: =ROUND(TLKworksheet!AG1,1) ->  | P32: =ROUND(TLKworksheet!AE1,1) ->  | Q32: =ROUND(TLKworksheet!AF1,1) -> 
L33: 2 | M33: =CONCATENATE(TLKworksheet!AB2,"mg IV q",TLKworksheet!AC2,"h") ->  | O33: =ROUND(TLKworksheet!AG2,1) ->  | P33: =ROUND(TLKworksheet!AE2,1) ->  | Q33: =ROUND(TLKworksheet!AF2,1) -> 
L34: 3 | M34: =CONCATENATE(TLKworksheet!AB3,"mg IV q",TLKworksheet!AC3,"h") ->  | O34: =ROUND(TLKworksheet!AG3,1) ->  | P34: =ROUND(TLKworksheet!AE3,1) ->  | Q34: =ROUND(TLKworksheet!AF3,1) -> 

Sheet TLKnote
B2: =DLsheet!V53 ->  | K2: Back to Main Menu
K5: Back to Two-Level Calculator

Sheet TLKworksheet
A1: =TwoLevelVANCOMYCINcalc!E23 ->  | B1: =TwoLevelVANCOMYCINcalc!E27 ->  | C1: 8 | D1: 12 | E1: 18 | F1: 24 | G1: 36 | H1: 48 | J1: Cmax Error | K1: Cmin Error | L1: AUC Error | M1: Total Error | N1: Daily dose | O1: Dose | P1: interval | Q1: Usable interval | R1: Infusion | S1: Cmax | T1: Cmin | U1: AUC | Y1: Best | Z1: Min | AA1: =MIN(M2:M46) ->  | AB1: =VLOOKUP(AA1,M:R,3,FALSE) ->  | AC1: =VLOOKUP(AA1,M:R,4,FALSE) ->  | AD1: =VLOOKUP(AA1,M:R,5,FALSE) ->  | AE1: =VLOOKUP(AA1,M:U,7,FALSE) ->  | AF1: =VLOOKUP(AA1,M:U,8,FALSE) ->  | AG1: =VLOOKUP(AA1,M:U,9,FALSE) -> 
A2: -0.5 | B2: 0 | C2: 0 | D2: 0 | E2: 0 | F2: 0 | G2: 0 | H2: 0 | J2: =((S2-TwoLevelVANCOMYCINcalc!$M$11)^2)/TwoLevelVANCOMYCINcalc!$M$11 ->  | K2: =((T2-TwoLevelVANCOMYCINcalc!$M$12)^2)/TwoLevelVANCOMYCINcalc!$M$12 ->  | L2: =((U2-TwoLevelVANCOMYCINcalc!$M$10)^2)/TwoLevelVANCOMYCINcalc!$M$10 ->  | M2: =IF(Q2="Yes",SUM(J2:L2),"") ->  | N2: =O2*24/P2 -> 250 | O2: 500 | P2: 48 | Q2: =VLOOKUP(P2,DLsheet!$I$15:$J$20,2,FALSE) -> Yes | R2: =VLOOKUP(O2,DLsheet!$E$13:$F$21,2,FALSE) -> 0.5 | S2: =O2/$B$1/(1-EXP(-$A$1*P2)) ->  | T2: =S2*EXP(-$A$1*(P2-R2)) ->  | U2: =O2*24/P2/$B$1/$A$1 ->  | Y2: 2nd Best | Z2: Second | AA2: =SMALL(M2:M46,2) ->  | AB2: =VLOOKUP(AA2,M:R,3,FALSE) ->  | AC2: =VLOOKUP(AA2,M:R,4,FALSE) ->  | AD2: =VLOOKUP(AA2,M:R,5,FALSE) ->  | AE2: =VLOOKUP(AA2,M:U,7,FALSE) ->  | AF2: =VLOOKUP(AA2,M:U,8,FALSE) ->  | AG2: =VLOOKUP(AA2,M:U,9,FALSE) -> 
A3: 0 | B3: =HLOOKUP(TwoLevelVANCOMYCINcalc!$M$24,TLKworksheet!$C$1:$H$100,I3,FALSE) ->  | C3: =TwoLevelVANCOMYCINcalc!M23/TwoLevelVANCOMYCINcalc!E27 ->  | D3: =TwoLevelVANCOMYCINcalc!M23/TwoLevelVANCOMYCINcalc!E27 ->  | E3: =TwoLevelVANCOMYCINcalc!M23/TwoLevelVANCOMYCINcalc!E27 ->  | F3: =TwoLevelVANCOMYCINcalc!M23/TwoLevelVANCOMYCINcalc!E27 ->  | G3: =TwoLevelVANCOMYCINcalc!M23/TwoLevelVANCOMYCINcalc!E27 ->  | H3: =TwoLevelVANCOMYCINcalc!M23/TwoLevelVANCOMYCINcalc!E27 ->  | I3: 3 | J3: =((S3-TwoLevelVANCOMYCINcalc!$M$11)^2)/TwoLevelVANCOMYCINcalc!$M$11 ->  | K3: =((T3-TwoLevelVANCOMYCINcalc!$M$12)^2)/TwoLevelVANCOMYCINcalc!$M$12 ->  | L3: =((U3-TwoLevelVANCOMYCINcalc!$M$10)^2)/TwoLevelVANCOMYCINcalc!$M$10 ->  | M3: =IF(Q3="Yes",SUM(J3:L3),"") ->  | N3: 333.3333333 | O3: 500 | P3: 36 | Q3: =VLOOKUP(P3,DLsheet!$I$15:$J$20,2,FALSE) -> No | R3: =VLOOKUP(O3,DLsheet!$E$13:$F$21,2,FALSE) -> 0.5 | Y3: 3rd Best | Z3: Third | AA3: =SMALL(M2:M46,3) ->  | AB3: =VLOOKUP(AA3,M:R,3,FALSE) ->  | AC3: =VLOOKUP(AA3,M:R,4,FALSE) ->  | AD3: =VLOOKUP(AA3,M:R,5,FALSE) ->  | AE3: =VLOOKUP(AA3,M:U,7,FALSE) ->  | AF3: =VLOOKUP(AA3,M:U,8,FALSE) ->  | AG3: =VLOOKUP(AA3,M:U,9,FALSE) -> 
A4: 0.5 | B4: =HLOOKUP(TwoLevelVANCOMYCINcalc!$M$24,TLKworksheet!$C$1:$H$100,I4,FALSE) ->  | C4: =$C$3*EXP(-$A$1*TLKworksheet!$A4) ->  | D4: =$C$3*EXP(-$A$1*TLKworksheet!$A4) ->  | E4: =$C$3*EXP(-$A$1*TLKworksheet!$A4) ->  | F4: =$C$3*EXP(-$A$1*TLKworksheet!$A4) ->  | G4: =$C$3*EXP(-$A$1*TLKworksheet!$A4) ->  | H4: =$C$3*EXP(-$A$1*TLKworksheet!$A4) ->  | I4: 4 | J4: =((S4-TwoLevelVANCOMYCINcalc!$M$11)^2)/TwoLevelVANCOMYCINcalc!$M$11 ->  | K4: =((T4-TwoLevelVANCOMYCINcalc!$M$12)^2)/TwoLevelVANCOMYCINcalc!$M$12 ->  | L4: =((U4-TwoLevelVANCOMYCINcalc!$M$10)^2)/TwoLevelVANCOMYCINcalc!$M$10 ->  | N4: 375 | O4: 750 | P4: 48 | Q4: =VLOOKUP(P4,DLsheet!$I$15:$J$20,2,FALSE) -> Yes | R4: =VLOOKUP(O4,DLsheet!$E$13:$F$21,2,FALSE) -> 1
A5: 1 | B5: =HLOOKUP(TwoLevelVANCOMYCINcalc!$M$24,TLKworksheet!$C$1:$H$100,I5,FALSE) ->  | C5: =$C$3*EXP(-$A$1*TLKworksheet!$A5) ->  | D5: =$C$3*EXP(-$A$1*TLKworksheet!$A5) ->  | E5: =$C$3*EXP(-$A$1*TLKworksheet!$A5) ->  | F5: =$C$3*EXP(-$A$1*TLKworksheet!$A5) ->  | G5: =$C$3*EXP(-$A$1*TLKworksheet!$A5) ->  | H5: =$C$3*EXP(-$A$1*TLKworksheet!$A5) ->  | I5: 5 | J5: =((S5-TwoLevelVANCOMYCINcalc!$M$11)^2)/TwoLevelVANCOMYCINcalc!$M$11 ->  | K5: =((T5-TwoLevelVANCOMYCINcalc!$M$12)^2)/TwoLevelVANCOMYCINcalc!$M$12 ->  | L5: =((U5-TwoLevelVANCOMYCINcalc!$M$10)^2)/TwoLevelVANCOMYCINcalc!$M$10 ->  | N5: 500 | O5: 500 | P5: 24 | Q5: =VLOOKUP(P5,DLsheet!$I$15:$J$20,2,FALSE) -> Yes | R5: =VLOOKUP(O5,DLsheet!$E$13:$F$21,2,FALSE) -> 0.5
A6: 1.5 | B6: =HLOOKUP(TwoLevelVANCOMYCINcalc!$M$24,TLKworksheet!$C$1:$H$100,I6,FALSE) ->  | C6: =$C$3*EXP(-$A$1*TLKworksheet!$A6) ->  | D6: =$C$3*EXP(-$A$1*TLKworksheet!$A6) ->  | E6: =$C$3*EXP(-$A$1*TLKworksheet!$A6) ->  | F6: =$C$3*EXP(-$A$1*TLKworksheet!$A6) ->  | G6: =$C$3*EXP(-$A$1*TLKworksheet!$A6) ->  | H6: =$C$3*EXP(-$A$1*TLKworksheet!$A6) ->  | I6: 6 | J6: =((S6-TwoLevelVANCOMYCINcalc!$M$11)^2)/TwoLevelVANCOMYCINcalc!$M$11 ->  | K6: =((T6-TwoLevelVANCOMYCINcalc!$M$12)^2)/TwoLevelVANCOMYCINcalc!$M$12 ->  | L6: =((U6-TwoLevelVANCOMYCINcalc!$M$10)^2)/TwoLevelVANCOMYCINcalc!$M$10 ->  | N6: 500 | O6: 750 | P6: 36 | Q6: =VLOOKUP(P6,DLsheet!$I$15:$J$20,2,FALSE) -> No | R6: =VLOOKUP(O6,DLsheet!$E$13:$F$21,2,FALSE) -> 1
A7: 2 | B7: =HLOOKUP(TwoLevelVANCOMYCINcalc!$M$24,TLKworksheet!$C$1:$H$100,I7,FALSE) ->  | C7: =$C$3*EXP(-$A$1*TLKworksheet!$A7) ->  | D7: =$C$3*EXP(-$A$1*TLKworksheet!$A7) ->  | E7: =$C$3*EXP(-$A$1*TLKworksheet!$A7) ->  | F7: =$C$3*EXP(-$A$1*TLKworksheet!$A7) ->  | G7: =$C$3*EXP(-$A$1*TLKworksheet!$A7) ->  | H7: =$C$3*EXP(-$A$1*TLKworksheet!$A7) ->  | I7: 7 | J7: =((S7-TwoLevelVANCOMYCINcalc!$M$11)^2)/TwoLevelVANCOMYCINcalc!$M$11 ->  | K7: =((T7-TwoLevelVANCOMYCINcalc!$M$12)^2)/TwoLevelVANCOMYCINcalc!$M$12 ->  | L7: =((U7-TwoLevelVANCOMYCINcalc!$M$10)^2)/TwoLevelVANCOMYCINcalc!$M$10 ->  | N7: 500 | O7: 1000 | P7: 48 | Q7: =VLOOKUP(P7,DLsheet!$I$15:$J$20,2,FALSE) -> Yes | R7: =VLOOKUP(O7,DLsheet!$E$13:$F$21,2,FALSE) -> 1
A8: 2.5 | B8: =HLOOKUP(TwoLevelVANCOMYCINcalc!$M$24,TLKworksheet!$C$1:$H$100,I8,FALSE) ->  | C8: =$C$3*EXP(-$A$1*TLKworksheet!$A8) ->  | D8: =$C$3*EXP(-$A$1*TLKworksheet!$A8) ->  | E8: =$C$3*EXP(-$A$1*TLKworksheet!$A8) ->  | F8: =$C$3*EXP(-$A$1*TLKworksheet!$A8) ->  | G8: =$C$3*EXP(-$A$1*TLKworksheet!$A8) ->  | H8: =$C$3*EXP(-$A$1*TLKworksheet!$A8) ->  | I8: 8 | J8: =((S8-TwoLevelVANCOMYCINcalc!$M$11)^2)/TwoLevelVANCOMYCINcalc!$M$11 ->  | K8: =((T8-TwoLevelVANCOMYCINcalc!$M$12)^2)/TwoLevelVANCOMYCINcalc!$M$12 ->  | L8: =((U8-TwoLevelVANCOMYCINcalc!$M$10)^2)/TwoLevelVANCOMYCINcalc!$M$10 ->  | N8: 625 | O8: 1250 | P8: 48 | Q8: =VLOOKUP(P8,DLsheet!$I$15:$J$20,2,FALSE) -> Yes | R8: =VLOOKUP(O8,DLsheet!$E$13:$F$21,2,FALSE) -> 1.5
A9: 3 | B9: =HLOOKUP(TwoLevelVANCOMYCINcalc!$M$24,TLKworksheet!$C$1:$H$100,I9,FALSE) ->  | C9: =$C$3*EXP(-$A$1*TLKworksheet!$A9) ->  | D9: =$C$3*EXP(-$A$1*TLKworksheet!$A9) ->  | E9: =$C$3*EXP(-$A$1*TLKworksheet!$A9) ->  | F9: =$C$3*EXP(-$A$1*TLKworksheet!$A9) ->  | G9: =$C$3*EXP(-$A$1*TLKworksheet!$A9) ->  | H9: =$C$3*EXP(-$A$1*TLKworksheet!$A9) ->  | I9: 9 | J9: =((S9-TwoLevelVANCOMYCINcalc!$M$11)^2)/TwoLevelVANCOMYCINcalc!$M$11 ->  | K9: =((T9-TwoLevelVANCOMYCINcalc!$M$12)^2)/TwoLevelVANCOMYCINcalc!$M$12 ->  | L9: =((U9-TwoLevelVANCOMYCINcalc!$M$10)^2)/TwoLevelVANCOMYCINcalc!$M$10 ->  | N9: 666.6666667 | O9: 1000 | P9: 36 | Q9: =VLOOKUP(P9,DLsheet!$I$15:$J$20,2,FALSE) -> No | R9: =VLOOKUP(O9,DLsheet!$E$13:$F$21,2,FALSE) -> 1
A10: 3.5 | B10: =HLOOKUP(TwoLevelVANCOMYCINcalc!$M$24,TLKworksheet!$C$1:$H$100,I10,FALSE) ->  | C10: =$C$3*EXP(-$A$1*TLKworksheet!$A10) ->  | D10: =$C$3*EXP(-$A$1*TLKworksheet!$A10) ->  | E10: =$C$3*EXP(-$A$1*TLKworksheet!$A10) ->  | F10: =$C$3*EXP(-$A$1*TLKworksheet!$A10) ->  | G10: =$C$3*EXP(-$A$1*TLKworksheet!$A10) ->  | H10: =$C$3*EXP(-$A$1*TLKworksheet!$A10) ->  | I10: 10 | J10: =((S10-TwoLevelVANCOMYCINcalc!$M$11)^2)/TwoLevelVANCOMYCINcalc!$M$11 ->  | K10: =((T10-TwoLevelVANCOMYCINcalc!$M$12)^2)/TwoLevelVANCOMYCINcalc!$M$12 ->  | L10: =((U10-TwoLevelVANCOMYCINcalc!$M$10)^2)/TwoLevelVANCOMYCINcalc!$M$10 ->  | N10: 750 | O10: 750 | P10: 24 | Q10: =VLOOKUP(P10,DLsheet!$I$15:$J$20,2,FALSE) -> Yes | R10: =VLOOKUP(O10,DLsheet!$E$13:$F$21,2,FALSE) -> 1
A11: 4 | B11: =HLOOKUP(TwoLevelVANCOMYCINcalc!$M$24,TLKworksheet!$C$1:$H$100,I11,FALSE) ->  | C11: =$C$3*EXP(-$A$1*TLKworksheet!$A11) ->  | D11: =$C$3*EXP(-$A$1*TLKworksheet!$A11) ->  | E11: =$C$3*EXP(-$A$1*TLKworksheet!$A11) ->  | F11: =$C$3*EXP(-$A$1*TLKworksheet!$A11) ->  | G11: =$C$3*EXP(-$A$1*TLKworksheet!$A11) ->  | H11: =$C$3*EXP(-$A$1*TLKworksheet!$A11) ->  | I11: 11 | J11: =((S11-TwoLevelVANCOMYCINcalc!$M$11)^2)/TwoLevelVANCOMYCINcalc!$M$11 ->  | K11: =((T11-TwoLevelVANCOMYCINcalc!$M$12)^2)/TwoLevelVANCOMYCINcalc!$M$12 ->  | L11: =((U11-TwoLevelVANCOMYCINcalc!$M$10)^2)/TwoLevelVANCOMYCINcalc!$M$10 ->  | N11: 750 | O11: 1500 | P11: 48 | Q11: =VLOOKUP(P11,DLsheet!$I$15:$J$20,2,FALSE) -> Yes | R11: =VLOOKUP(O11,DLsheet!$E$13:$F$21,2,FALSE) -> 1.5
A12: 4.5 | B12: =HLOOKUP(TwoLevelVANCOMYCINcalc!$M$24,TLKworksheet!$C$1:$H$100,I12,FALSE) ->  | C12: =$C$3*EXP(-$A$1*TLKworksheet!$A12) ->  | D12: =$C$3*EXP(-$A$1*TLKworksheet!$A12) ->  | E12: =$C$3*EXP(-$A$1*TLKworksheet!$A12) ->  | F12: =$C$3*EXP(-$A$1*TLKworksheet!$A12) ->  | G12: =$C$3*EXP(-$A$1*TLKworksheet!$A12) ->  | H12: =$C$3*EXP(-$A$1*TLKworksheet!$A12) ->  | I12: 12 | J12: =((S12-TwoLevelVANCOMYCINcalc!$M$11)^2)/TwoLevelVANCOMYCINcalc!$M$11 ->  | K12: =((T12-TwoLevelVANCOMYCINcalc!$M$12)^2)/TwoLevelVANCOMYCINcalc!$M$12 ->  | L12: =((U12-TwoLevelVANCOMYCINcalc!$M$10)^2)/TwoLevelVANCOMYCINcalc!$M$10 ->  | N12: 833.3333333 | O12: 1250 | P12: 36 | Q12: =VLOOKUP(P12,DLsheet!$I$15:$J$20,2,FALSE) -> No | R12: =VLOOKUP(O12,DLsheet!$E$13:$F$21,2,FALSE) -> 1.5
A13: 5 | B13: =HLOOKUP(TwoLevelVANCOMYCINcalc!$M$24,TLKworksheet!$C$1:$H$100,I13,FALSE) ->  | C13: =$C$3*EXP(-$A$1*TLKworksheet!$A13) ->  | D13: =$C$3*EXP(-$A$1*TLKworksheet!$A13) ->  | E13: =$C$3*EXP(-$A$1*TLKworksheet!$A13) ->  | F13: =$C$3*EXP(-$A$1*TLKworksheet!$A13) ->  | G13: =$C$3*EXP(-$A$1*TLKworksheet!$A13) ->  | H13: =$C$3*EXP(-$A$1*TLKworksheet!$A13) ->  | I13: 13 | J13: =((S13-TwoLevelVANCOMYCINcalc!$M$11)^2)/TwoLevelVANCOMYCINcalc!$M$11 ->  | K13: =((T13-TwoLevelVANCOMYCINcalc!$M$12)^2)/TwoLevelVANCOMYCINcalc!$M$12 ->  | L13: =((U13-TwoLevelVANCOMYCINcalc!$M$10)^2)/TwoLevelVANCOMYCINcalc!$M$10 ->  | N13: 875 | O13: 1750 | P13: 48 | Q13: =VLOOKUP(P13,DLsheet!$I$15:$J$20,2,FALSE) -> Yes | R13: =VLOOKUP(O13,DLsheet!$E$13:$F$21,2,FALSE) -> 2
A14: 5.5 | B14: =HLOOKUP(TwoLevelVANCOMYCINcalc!$M$24,TLKworksheet!$C$1:$H$100,I14,FALSE) ->  | C14: =$C$3*EXP(-$A$1*TLKworksheet!$A14) ->  | D14: =$C$3*EXP(-$A$1*TLKworksheet!$A14) ->  | E14: =$C$3*EXP(-$A$1*TLKworksheet!$A14) ->  | F14: =$C$3*EXP(-$A$1*TLKworksheet!$A14) ->  | G14: =$C$3*EXP(-$A$1*TLKworksheet!$A14) ->  | H14: =$C$3*EXP(-$A$1*TLKworksheet!$A14) ->  | I14: 14 | J14: =((S14-TwoLevelVANCOMYCINcalc!$M$11)^2)/TwoLevelVANCOMYCINcalc!$M$11 ->  | K14: =((T14-TwoLevelVANCOMYCINcalc!$M$12)^2)/TwoLevelVANCOMYCINcalc!$M$12 ->  | L14: =((U14-TwoLevelVANCOMYCINcalc!$M$10)^2)/TwoLevelVANCOMYCINcalc!$M$10 ->  | N14: 1000 | O14: 500 | P14: 12 | Q14: =VLOOKUP(P14,DLsheet!$I$15:$J$20,2,FALSE) -> Yes | R14: =VLOOKUP(O14,DLsheet!$E$13:$F$21,2,FALSE) -> 0.5
A15: 6 | B15: =HLOOKUP(TwoLevelVANCOMYCINcalc!$M$24,TLKworksheet!$C$1:$H$100,I15,FALSE) ->  | C15: =$C$3*EXP(-$A$1*TLKworksheet!$A15) ->  | D15: =$C$3*EXP(-$A$1*TLKworksheet!$A15) ->  | E15: =$C$3*EXP(-$A$1*TLKworksheet!$A15) ->  | F15: =$C$3*EXP(-$A$1*TLKworksheet!$A15) ->  | G15: =$C$3*EXP(-$A$1*TLKworksheet!$A15) ->  | H15: =$C$3*EXP(-$A$1*TLKworksheet!$A15) ->  | I15: 15 | J15: =((S15-TwoLevelVANCOMYCINcalc!$M$11)^2)/TwoLevelVANCOMYCINcalc!$M$11 ->  | K15: =((T15-TwoLevelVANCOMYCINcalc!$M$12)^2)/TwoLevelVANCOMYCINcalc!$M$12 ->  | L15: =((U15-TwoLevelVANCOMYCINcalc!$M$10)^2)/TwoLevelVANCOMYCINcalc!$M$10 ->  | N15: 1000 | O15: 1000 | P15: 24 | Q15: =VLOOKUP(P15,DLsheet!$I$15:$J$20,2,FALSE) -> Yes | R15: =VLOOKUP(O15,DLsheet!$E$13:$F$21,2,FALSE) -> 1
A16: 6.5 | B16: =HLOOKUP(TwoLevelVANCOMYCINcalc!$M$24,TLKworksheet!$C$1:$H$100,I16,FALSE) ->  | C16: =$C$3*EXP(-$A$1*TLKworksheet!$A16) ->  | D16: =$C$3*EXP(-$A$1*TLKworksheet!$A16) ->  | E16: =$C$3*EXP(-$A$1*TLKworksheet!$A16) ->  | F16: =$C$3*EXP(-$A$1*TLKworksheet!$A16) ->  | G16: =$C$3*EXP(-$A$1*TLKworksheet!$A16) ->  | H16: =$C$3*EXP(-$A$1*TLKworksheet!$A16) ->  | I16: 16 | J16: =((S16-TwoLevelVANCOMYCINcalc!$M$11)^2)/TwoLevelVANCOMYCINcalc!$M$11 ->  | K16: =((T16-TwoLevelVANCOMYCINcalc!$M$12)^2)/TwoLevelVANCOMYCINcalc!$M$12 ->  | L16: =((U16-TwoLevelVANCOMYCINcalc!$M$10)^2)/TwoLevelVANCOMYCINcalc!$M$10 ->  | N16: 1000 | O16: 1500 | P16: 36 | Q16: =VLOOKUP(P16,DLsheet!$I$15:$J$20,2,FALSE) -> No | R16: =VLOOKUP(O16,DLsheet!$E$13:$F$21,2,FALSE) -> 1.5
A17: 7 | B17: =HLOOKUP(TwoLevelVANCOMYCINcalc!$M$24,TLKworksheet!$C$1:$H$100,I17,FALSE) ->  | C17: =$C$3*EXP(-$A$1*TLKworksheet!$A17) ->  | D17: =$C$3*EXP(-$A$1*TLKworksheet!$A17) ->  | E17: =$C$3*EXP(-$A$1*TLKworksheet!$A17) ->  | F17: =$C$3*EXP(-$A$1*TLKworksheet!$A17) ->  | G17: =$C$3*EXP(-$A$1*TLKworksheet!$A17) ->  | H17: =$C$3*EXP(-$A$1*TLKworksheet!$A17) ->  | I17: 17 | J17: =((S17-TwoLevelVANCOMYCINcalc!$M$11)^2)/TwoLevelVANCOMYCINcalc!$M$11 ->  | K17: =((T17-TwoLevelVANCOMYCINcalc!$M$12)^2)/TwoLevelVANCOMYCINcalc!$M$12 ->  | L17: =((U17-TwoLevelVANCOMYCINcalc!$M$10)^2)/TwoLevelVANCOMYCINcalc!$M$10 ->  | N17: 1000 | O17: 2000 | P17: 48 | Q17: =VLOOKUP(P17,DLsheet!$I$15:$J$20,2,FALSE) -> Yes | R17: =VLOOKUP(O17,DLsheet!$E$13:$F$21,2,FALSE) -> 2
A18: 7.5 | B18: =HLOOKUP(TwoLevelVANCOMYCINcalc!$M$24,TLKworksheet!$C$1:$H$100,I18,FALSE) ->  | C18: =$C$3*EXP(-$A$1*TLKworksheet!$A18) ->  | D18: =$C$3*EXP(-$A$1*TLKworksheet!$A18) ->  | E18: =$C$3*EXP(-$A$1*TLKworksheet!$A18) ->  | F18: =$C$3*EXP(-$A$1*TLKworksheet!$A18) ->  | G18: =$C$3*EXP(-$A$1*TLKworksheet!$A18) ->  | H18: =$C$3*EXP(-$A$1*TLKworksheet!$A18) ->  | I18: 18 | J18: =((S18-TwoLevelVANCOMYCINcalc!$M$11)^2)/TwoLevelVANCOMYCINcalc!$M$11 ->  | K18: =((T18-TwoLevelVANCOMYCINcalc!$M$12)^2)/TwoLevelVANCOMYCINcalc!$M$12 ->  | L18: =((U18-TwoLevelVANCOMYCINcalc!$M$10)^2)/TwoLevelVANCOMYCINcalc!$M$10 ->  | N18: 1125 | O18: 2250 | P18: 48 | Q18: =VLOOKUP(P18,DLsheet!$I$15:$J$20,2,FALSE) -> Yes | R18: =VLOOKUP(O18,DLsheet!$E$13:$F$21,2,FALSE) -> 2.5
A19: 8 | B19: =HLOOKUP(TwoLevelVANCOMYCINcalc!$M$24,TLKworksheet!$C$1:$H$100,I19,FALSE) ->  | C19: =$C$3*EXP(-$A$1*TLKworksheet!$A19) ->  | D19: =$C$3*EXP(-$A$1*TLKworksheet!$A19) ->  | E19: =$C$3*EXP(-$A$1*TLKworksheet!$A19) ->  | F19: =$C$3*EXP(-$A$1*TLKworksheet!$A19) ->  | G19: =$C$3*EXP(-$A$1*TLKworksheet!$A19) ->  | H19: =$C$3*EXP(-$A$1*TLKworksheet!$A19) ->  | I19: 19 | J19: =((S19-TwoLevelVANCOMYCINcalc!$M$11)^2)/TwoLevelVANCOMYCINcalc!$M$11 ->  | K19: =((T19-TwoLevelVANCOMYCINcalc!$M$12)^2)/TwoLevelVANCOMYCINcalc!$M$12 ->  | L19: =((U19-TwoLevelVANCOMYCINcalc!$M$10)^2)/TwoLevelVANCOMYCINcalc!$M$10 ->  | N19: 1166.666667 | O19: 1750 | P19: 36 | Q19: =VLOOKUP(P19,DLsheet!$I$15:$J$20,2,FALSE) -> No | R19: =VLOOKUP(O19,DLsheet!$E$13:$F$21,2,FALSE) -> 2
A20: 8.5 | B20: =HLOOKUP(TwoLevelVANCOMYCINcalc!$M$24,TLKworksheet!$C$1:$H$100,I20,FALSE) ->  | C20: =C19+C3 ->  | D20: =$C$3*EXP(-$A$1*TLKworksheet!$A20) ->  | E20: =$C$3*EXP(-$A$1*TLKworksheet!$A20) ->  | F20: =$C$3*EXP(-$A$1*TLKworksheet!$A20) ->  | G20: =$C$3*EXP(-$A$1*TLKworksheet!$A20) ->  | H20: =$C$3*EXP(-$A$1*TLKworksheet!$A20) ->  | I20: 20 | J20: =((S20-TwoLevelVANCOMYCINcalc!$M$11)^2)/TwoLevelVANCOMYCINcalc!$M$11 ->  | K20: =((T20-TwoLevelVANCOMYCINcalc!$M$12)^2)/TwoLevelVANCOMYCINcalc!$M$12 ->  | L20: =((U20-TwoLevelVANCOMYCINcalc!$M$10)^2)/TwoLevelVANCOMYCINcalc!$M$10 ->  | N20: 1250 | O20: 1250 | P20: 24 | Q20: =VLOOKUP(P20,DLsheet!$I$15:$J$20,2,FALSE) -> Yes | R20: =VLOOKUP(O20,DLsheet!$E$13:$F$21,2,FALSE) -> 1.5
A21: 9 | B21: =HLOOKUP(TwoLevelVANCOMYCINcalc!$M$24,TLKworksheet!$C$1:$H$100,I21,FALSE) ->  | C21: =$C$20*EXP(-$A$1*(A21-8.5)) ->  | D21: =$C$3*EXP(-$A$1*TLKworksheet!$A21) ->  | E21: =$C$3*EXP(-$A$1*TLKworksheet!$A21) ->  | F21: =$C$3*EXP(-$A$1*TLKworksheet!$A21) ->  | G21: =$C$3*EXP(-$A$1*TLKworksheet!$A21) ->  | H21: =$C$3*EXP(-$A$1*TLKworksheet!$A21) ->  | I21: 21 | J21: =((S21-TwoLevelVANCOMYCINcalc!$M$11)^2)/TwoLevelVANCOMYCINcalc!$M$11 ->  | K21: =((T21-TwoLevelVANCOMYCINcalc!$M$12)^2)/TwoLevelVANCOMYCINcalc!$M$12 ->  | L21: =((U21-TwoLevelVANCOMYCINcalc!$M$10)^2)/TwoLevelVANCOMYCINcalc!$M$10 ->  | N21: 1250 | O21: 2500 | P21: 48 | Q21: =VLOOKUP(P21,DLsheet!$I$15:$J$20,2,FALSE) -> Yes | R21: =VLOOKUP(O21,DLsheet!$E$13:$F$21,2,FALSE) -> 2.5
A22: 9.5 | B22: =HLOOKUP(TwoLevelVANCOMYCINcalc!$M$24,TLKworksheet!$C$1:$H$100,I22,FALSE) ->  | D22: =$C$3*EXP(-$A$1*TLKworksheet!$A22) ->  | E22: =$C$3*EXP(-$A$1*TLKworksheet!$A22) ->  | F22: =$C$3*EXP(-$A$1*TLKworksheet!$A22) ->  | G22: =$C$3*EXP(-$A$1*TLKworksheet!$A22) ->  | H22: =$C$3*EXP(-$A$1*TLKworksheet!$A22) ->  | I22: 22 | J22: =((S22-TwoLevelVANCOMYCINcalc!$M$11)^2)/TwoLevelVANCOMYCINcalc!$M$11 ->  | K22: =((T22-TwoLevelVANCOMYCINcalc!$M$12)^2)/TwoLevelVANCOMYCINcalc!$M$12 ->  | L22: =((U22-TwoLevelVANCOMYCINcalc!$M$10)^2)/TwoLevelVANCOMYCINcalc!$M$10 ->  | N22: 1333.333333 | O22: 2000 | P22: 36 | Q22: =VLOOKUP(P22,DLsheet!$I$15:$J$20,2,FALSE) -> No | R22: =VLOOKUP(O22,DLsheet!$E$13:$F$21,2,FALSE) -> 2
A23: 10 | B23: =HLOOKUP(TwoLevelVANCOMYCINcalc!$M$24,TLKworksheet!$C$1:$H$100,I23,FALSE) ->  | D23: =$C$3*EXP(-$A$1*TLKworksheet!$A23) ->  | E23: =$C$3*EXP(-$A$1*TLKworksheet!$A23) ->  | F23: =$C$3*EXP(-$A$1*TLKworksheet!$A23) ->  | G23: =$C$3*EXP(-$A$1*TLKworksheet!$A23) ->  | H23: =$C$3*EXP(-$A$1*TLKworksheet!$A23) ->  | I23: 23 | J23: =((S23-TwoLevelVANCOMYCINcalc!$M$11)^2)/TwoLevelVANCOMYCINcalc!$M$11 ->  | K23: =((T23-TwoLevelVANCOMYCINcalc!$M$12)^2)/TwoLevelVANCOMYCINcalc!$M$12 ->  | L23: =((U23-TwoLevelVANCOMYCINcalc!$M$10)^2)/TwoLevelVANCOMYCINcalc!$M$10 ->  | N23: 1500 | O23: 500 | P23: 8 | Q23: =VLOOKUP(P23,DLsheet!$I$15:$J$20,2,FALSE) -> Yes | R23: =VLOOKUP(O23,DLsheet!$E$13:$F$21,2,FALSE) -> 0.5
A24: 10.5 | B24: =HLOOKUP(TwoLevelVANCOMYCINcalc!$M$24,TLKworksheet!$C$1:$H$100,I24,FALSE) ->  | D24: =$C$3*EXP(-$A$1*TLKworksheet!$A24) ->  | E24: =$C$3*EXP(-$A$1*TLKworksheet!$A24) ->  | F24: =$C$3*EXP(-$A$1*TLKworksheet!$A24) ->  | G24: =$C$3*EXP(-$A$1*TLKworksheet!$A24) ->  | H24: =$C$3*EXP(-$A$1*TLKworksheet!$A24) ->  | I24: 24 | J24: =((S24-TwoLevelVANCOMYCINcalc!$M$11)^2)/TwoLevelVANCOMYCINcalc!$M$11 ->  | K24: =((T24-TwoLevelVANCOMYCINcalc!$M$12)^2)/TwoLevelVANCOMYCINcalc!$M$12 ->  | L24: =((U24-TwoLevelVANCOMYCINcalc!$M$10)^2)/TwoLevelVANCOMYCINcalc!$M$10 ->  | N24: 1500 | O24: 750 | P24: 12 | Q24: =VLOOKUP(P24,DLsheet!$I$15:$J$20,2,FALSE) -> Yes | R24: =VLOOKUP(O24,DLsheet!$E$13:$F$21,2,FALSE) -> 1
A25: 11 | B25: =HLOOKUP(TwoLevelVANCOMYCINcalc!$M$24,TLKworksheet!$C$1:$H$100,I25,FALSE) ->  | D25: =$C$3*EXP(-$A$1*TLKworksheet!$A25) ->  | E25: =$C$3*EXP(-$A$1*TLKworksheet!$A25) ->  | F25: =$C$3*EXP(-$A$1*TLKworksheet!$A25) ->  | G25: =$C$3*EXP(-$A$1*TLKworksheet!$A25) ->  | H25: =$C$3*EXP(-$A$1*TLKworksheet!$A25) ->  | I25: 25 | J25: =((S25-TwoLevelVANCOMYCINcalc!$M$11)^2)/TwoLevelVANCOMYCINcalc!$M$11 ->  | K25: =((T25-TwoLevelVANCOMYCINcalc!$M$12)^2)/TwoLevelVANCOMYCINcalc!$M$12 ->  | L25: =((U25-TwoLevelVANCOMYCINcalc!$M$10)^2)/TwoLevelVANCOMYCINcalc!$M$10 ->  | N25: 1500 | O25: 1500 | P25: 24 | Q25: =VLOOKUP(P25,DLsheet!$I$15:$J$20,2,FALSE) -> Yes | R25: =VLOOKUP(O25,DLsheet!$E$13:$F$21,2,FALSE) -> 1.5
A26: 11.5 | B26: =HLOOKUP(TwoLevelVANCOMYCINcalc!$M$24,TLKworksheet!$C$1:$H$100,I26,FALSE) ->  | D26: =$C$3*EXP(-$A$1*TLKworksheet!$A26) ->  | E26: =$C$3*EXP(-$A$1*TLKworksheet!$A26) ->  | F26: =$C$3*EXP(-$A$1*TLKworksheet!$A26) ->  | G26: =$C$3*EXP(-$A$1*TLKworksheet!$A26) ->  | H26: =$C$3*EXP(-$A$1*TLKworksheet!$A26) ->  | I26: 26 | J26: =((S26-TwoLevelVANCOMYCINcalc!$M$11)^2)/TwoLevelVANCOMYCINcalc!$M$11 ->  | K26: =((T26-TwoLevelVANCOMYCINcalc!$M$12)^2)/TwoLevelVANCOMYCINcalc!$M$12 ->  | L26: =((U26-TwoLevelVANCOMYCINcalc!$M$10)^2)/TwoLevelVANCOMYCINcalc!$M$10 ->  | N26: 1500 | O26: 2250 | P26: 36 | Q26: =VLOOKUP(P26,DLsheet!$I$15:$J$20,2,FALSE) -> No | R26: =VLOOKUP(O26,DLsheet!$E$13:$F$21,2,FALSE) -> 2.5
A27: 12 | B27: =HLOOKUP(TwoLevelVANCOMYCINcalc!$M$24,TLKworksheet!$C$1:$H$100,I27,FALSE) ->  | D27: =$C$3*EXP(-$A$1*TLKworksheet!$A27) ->  | E27: =$C$3*EXP(-$A$1*TLKworksheet!$A27) ->  | F27: =$C$3*EXP(-$A$1*TLKworksheet!$A27) ->  | G27: =$C$3*EXP(-$A$1*TLKworksheet!$A27) ->  | H27: =$C$3*EXP(-$A$1*TLKworksheet!$A27) ->  | I27: 27 | J27: =((S27-TwoLevelVANCOMYCINcalc!$M$11)^2)/TwoLevelVANCOMYCINcalc!$M$11 ->  | K27: =((T27-TwoLevelVANCOMYCINcalc!$M$12)^2)/TwoLevelVANCOMYCINcalc!$M$12 ->  | L27: =((U27-TwoLevelVANCOMYCINcalc!$M$10)^2)/TwoLevelVANCOMYCINcalc!$M$10 ->  | N27: 1666.666667 | O27: 2500 | P27: 36 | Q27: =VLOOKUP(P27,DLsheet!$I$15:$J$20,2,FALSE) -> No | R27: =VLOOKUP(O27,DLsheet!$E$13:$F$21,2,FALSE) -> 2.5
A28: 12.5 | B28: =HLOOKUP(TwoLevelVANCOMYCINcalc!$M$24,TLKworksheet!$C$1:$H$100,I28,FALSE) ->  | D28: =D27+D3 ->  | E28: =$C$3*EXP(-$A$1*TLKworksheet!$A28) ->  | F28: =$C$3*EXP(-$A$1*TLKworksheet!$A28) ->  | G28: =$C$3*EXP(-$A$1*TLKworksheet!$A28) ->  | H28: =$C$3*EXP(-$A$1*TLKworksheet!$A28) ->  | I28: 28 | J28: =((S28-TwoLevelVANCOMYCINcalc!$M$11)^2)/TwoLevelVANCOMYCINcalc!$M$11 ->  | K28: =((T28-TwoLevelVANCOMYCINcalc!$M$12)^2)/TwoLevelVANCOMYCINcalc!$M$12 ->  | L28: =((U28-TwoLevelVANCOMYCINcalc!$M$10)^2)/TwoLevelVANCOMYCINcalc!$M$10 ->  | N28: 1750 | O28: 1750 | P28: 24 | Q28: =VLOOKUP(P28,DLsheet!$I$15:$J$20,2,FALSE) -> Yes | R28: =VLOOKUP(O28,DLsheet!$E$13:$F$21,2,FALSE) -> 2
A29: 13 | B29: =HLOOKUP(TwoLevelVANCOMYCINcalc!$M$24,TLKworksheet!$C$1:$H$100,I29,FALSE) ->  | D29: =$D$28*EXP(-$A$1*(A29-12.5)) ->  | E29: =$C$3*EXP(-$A$1*TLKworksheet!$A29) ->  | F29: =$C$3*EXP(-$A$1*TLKworksheet!$A29) ->  | G29: =$C$3*EXP(-$A$1*TLKworksheet!$A29) ->  | H29: =$C$3*EXP(-$A$1*TLKworksheet!$A29) ->  | I29: 29 | J29: =((S29-TwoLevelVANCOMYCINcalc!$M$11)^2)/TwoLevelVANCOMYCINcalc!$M$11 ->  | K29: =((T29-TwoLevelVANCOMYCINcalc!$M$12)^2)/TwoLevelVANCOMYCINcalc!$M$12 ->  | L29: =((U29-TwoLevelVANCOMYCINcalc!$M$10)^2)/TwoLevelVANCOMYCINcalc!$M$10 ->  | N29: 2000 | O29: 1000 | P29: 12 | Q29: =VLOOKUP(P29,DLsheet!$I$15:$J$20,2,FALSE) -> Yes | R29: =VLOOKUP(O29,DLsheet!$E$13:$F$21,2,FALSE) -> 1
A30: 13.5 | B30: =HLOOKUP(TwoLevelVANCOMYCINcalc!$M$24,TLKworksheet!$C$1:$H$100,I30,FALSE) ->  | E30: =$C$3*EXP(-$A$1*TLKworksheet!$A30) ->  | F30: =$C$3*EXP(-$A$1*TLKworksheet!$A30) ->  | G30: =$C$3*EXP(-$A$1*TLKworksheet!$A30) ->  | H30: =$C$3*EXP(-$A$1*TLKworksheet!$A30) ->  | I30: 30 | J30: =((S30-TwoLevelVANCOMYCINcalc!$M$11)^2)/TwoLevelVANCOMYCINcalc!$M$11 ->  | K30: =((T30-TwoLevelVANCOMYCINcalc!$M$12)^2)/TwoLevelVANCOMYCINcalc!$M$12 ->  | L30: =((U30-TwoLevelVANCOMYCINcalc!$M$10)^2)/TwoLevelVANCOMYCINcalc!$M$10 ->  | N30: 2000 | O30: 2000 | P30: 24 | Q30: =VLOOKUP(P30,DLsheet!$I$15:$J$20,2,FALSE) -> Yes | R30: =VLOOKUP(O30,DLsheet!$E$13:$F$21,2,FALSE) -> 2
A31: 14 | B31: =HLOOKUP(TwoLevelVANCOMYCINcalc!$M$24,TLKworksheet!$C$1:$H$100,I31,FALSE) ->  | E31: =$C$3*EXP(-$A$1*TLKworksheet!$A31) ->  | F31: =$C$3*EXP(-$A$1*TLKworksheet!$A31) ->  | G31: =$C$3*EXP(-$A$1*TLKworksheet!$A31) ->  | H31: =$C$3*EXP(-$A$1*TLKworksheet!$A31) ->  | I31: 31 | J31: =((S31-TwoLevelVANCOMYCINcalc!$M$11)^2)/TwoLevelVANCOMYCINcalc!$M$11 ->  | K31: =((T31-TwoLevelVANCOMYCINcalc!$M$12)^2)/TwoLevelVANCOMYCINcalc!$M$12 ->  | L31: =((U31-TwoLevelVANCOMYCINcalc!$M$10)^2)/TwoLevelVANCOMYCINcalc!$M$10 ->  | N31: 2250 | O31: 750 | P31: 8 | Q31: =VLOOKUP(P31,DLsheet!$I$15:$J$20,2,FALSE) -> Yes | R31: =VLOOKUP(O31,DLsheet!$E$13:$F$21,2,FALSE) -> 1
A32: 14.5 | B32: =HLOOKUP(TwoLevelVANCOMYCINcalc!$M$24,TLKworksheet!$C$1:$H$100,I32,FALSE) ->  | E32: =$C$3*EXP(-$A$1*TLKworksheet!$A32) ->  | F32: =$C$3*EXP(-$A$1*TLKworksheet!$A32) ->  | G32: =$C$3*EXP(-$A$1*TLKworksheet!$A32) ->  | H32: =$C$3*EXP(-$A$1*TLKworksheet!$A32) ->  | I32: 32 | J32: =((S32-TwoLevelVANCOMYCINcalc!$M$11)^2)/TwoLevelVANCOMYCINcalc!$M$11 ->  | K32: =((T32-TwoLevelVANCOMYCINcalc!$M$12)^2)/TwoLevelVANCOMYCINcalc!$M$12 ->  | L32: =((U32-TwoLevelVANCOMYCINcalc!$M$10)^2)/TwoLevelVANCOMYCINcalc!$M$10 ->  | N32: 2250 | O32: 2250 | P32: 24 | Q32: =VLOOKUP(P32,DLsheet!$I$15:$J$20,2,FALSE) -> Yes | R32: =VLOOKUP(O32,DLsheet!$E$13:$F$21,2,FALSE) -> 2.5
A33: 15 | B33: =HLOOKUP(TwoLevelVANCOMYCINcalc!$M$24,TLKworksheet!$C$1:$H$100,I33,FALSE) ->  | E33: =$C$3*EXP(-$A$1*TLKworksheet!$A33) ->  | F33: =$C$3*EXP(-$A$1*TLKworksheet!$A33) ->  | G33: =$C$3*EXP(-$A$1*TLKworksheet!$A33) ->  | H33: =$C$3*EXP(-$A$1*TLKworksheet!$A33) ->  | I33: 33 | J33: =((S33-TwoLevelVANCOMYCINcalc!$M$11)^2)/TwoLevelVANCOMYCINcalc!$M$11 ->  | K33: =((T33-TwoLevelVANCOMYCINcalc!$M$12)^2)/TwoLevelVANCOMYCINcalc!$M$12 ->  | L33: =((U33-TwoLevelVANCOMYCINcalc!$M$10)^2)/TwoLevelVANCOMYCINcalc!$M$10 ->  | N33: 2500 | O33: 1250 | P33: 12 | Q33: =VLOOKUP(P33,DLsheet!$I$15:$J$20,2,FALSE) -> Yes | R33: =VLOOKUP(O33,DLsheet!$E$13:$F$21,2,FALSE) -> 1.5
A34: 15.5 | B34: =HLOOKUP(TwoLevelVANCOMYCINcalc!$M$24,TLKworksheet!$C$1:$H$100,I34,FALSE) ->  | E34: =$C$3*EXP(-$A$1*TLKworksheet!$A34) ->  | F34: =$C$3*EXP(-$A$1*TLKworksheet!$A34) ->  | G34: =$C$3*EXP(-$A$1*TLKworksheet!$A34) ->  | H34: =$C$3*EXP(-$A$1*TLKworksheet!$A34) ->  | I34: 34 | J34: =((S34-TwoLevelVANCOMYCINcalc!$M$11)^2)/TwoLevelVANCOMYCINcalc!$M$11 ->  | K34: =((T34-TwoLevelVANCOMYCINcalc!$M$12)^2)/TwoLevelVANCOMYCINcalc!$M$12 ->  | L34: =((U34-TwoLevelVANCOMYCINcalc!$M$10)^2)/TwoLevelVANCOMYCINcalc!$M$10 ->  | N34: 2500 | O34: 2500 | P34: 24 | Q34: =VLOOKUP(P34,DLsheet!$I$15:$J$20,2,FALSE) -> Yes | R34: =VLOOKUP(O34,DLsheet!$E$13:$F$21,2,FALSE) -> 2.5
A35: 16 | B35: =HLOOKUP(TwoLevelVANCOMYCINcalc!$M$24,TLKworksheet!$C$1:$H$100,I35,FALSE) ->  | E35: =$C$3*EXP(-$A$1*TLKworksheet!$A35) ->  | F35: =$C$3*EXP(-$A$1*TLKworksheet!$A35) ->  | G35: =$C$3*EXP(-$A$1*TLKworksheet!$A35) ->  | H35: =$C$3*EXP(-$A$1*TLKworksheet!$A35) ->  | I35: 35 | J35: =((S35-TwoLevelVANCOMYCINcalc!$M$11)^2)/TwoLevelVANCOMYCINcalc!$M$11 ->  | K35: =((T35-TwoLevelVANCOMYCINcalc!$M$12)^2)/TwoLevelVANCOMYCINcalc!$M$12 ->  | L35: =((U35-TwoLevelVANCOMYCINcalc!$M$10)^2)/TwoLevelVANCOMYCINcalc!$M$10 ->  | N35: 3000 | O35: 1000 | P35: 8 | Q35: =VLOOKUP(P35,DLsheet!$I$15:$J$20,2,FALSE) -> Yes | R35: =VLOOKUP(O35,DLsheet!$E$13:$F$21,2,FALSE) -> 1
A36: 16.5 | B36: =HLOOKUP(TwoLevelVANCOMYCINcalc!$M$24,TLKworksheet!$C$1:$H$100,I36,FALSE) ->  | C36: =C35+C3 ->  | E36: =$C$3*EXP(-$A$1*TLKworksheet!$A36) ->  | F36: =$C$3*EXP(-$A$1*TLKworksheet!$A36) ->  | G36: =$C$3*EXP(-$A$1*TLKworksheet!$A36) ->  | H36: =$C$3*EXP(-$A$1*TLKworksheet!$A36) ->  | I36: 36 | J36: =((S36-TwoLevelVANCOMYCINcalc!$M$11)^2)/TwoLevelVANCOMYCINcalc!$M$11 ->  | K36: =((T36-TwoLevelVANCOMYCINcalc!$M$12)^2)/TwoLevelVANCOMYCINcalc!$M$12 ->  | L36: =((U36-TwoLevelVANCOMYCINcalc!$M$10)^2)/TwoLevelVANCOMYCINcalc!$M$10 ->  | N36: 3000 | O36: 1500 | P36: 12 | Q36: =VLOOKUP(P36,DLsheet!$I$15:$J$20,2,FALSE) -> Yes | R36: =VLOOKUP(O36,DLsheet!$E$13:$F$21,2,FALSE) -> 1.5
A37: 17 | B37: =HLOOKUP(TwoLevelVANCOMYCINcalc!$M$24,TLKworksheet!$C$1:$H$100,I37,FALSE) ->  | C37: =$C$36*EXP(-$A$1*(A37-16.5)) ->  | E37: =$C$3*EXP(-$A$1*TLKworksheet!$A37) ->  | F37: =$C$3*EXP(-$A$1*TLKworksheet!$A37) ->  | G37: =$C$3*EXP(-$A$1*TLKworksheet!$A37) ->  | H37: =$C$3*EXP(-$A$1*TLKworksheet!$A37) ->  | I37: 37 | J37: =((S37-TwoLevelVANCOMYCINcalc!$M$11)^2)/TwoLevelVANCOMYCINcalc!$M$11 ->  | K37: =((T37-TwoLevelVANCOMYCINcalc!$M$12)^2)/TwoLevelVANCOMYCINcalc!$M$12 ->  | L37: =((U37-TwoLevelVANCOMYCINcalc!$M$10)^2)/TwoLevelVANCOMYCINcalc!$M$10 ->  | N37: 3500 | O37: 1750 | P37: 12 | Q37: =VLOOKUP(P37,DLsheet!$I$15:$J$20,2,FALSE) -> Yes | R37: =VLOOKUP(O37,DLsheet!$E$13:$F$21,2,FALSE) -> 2
A38: 17.5 | B38: =HLOOKUP(TwoLevelVANCOMYCINcalc!$M$24,TLKworksheet!$C$1:$H$100,I38,FALSE) ->  | E38: =$C$3*EXP(-$A$1*TLKworksheet!$A38) ->  | F38: =$C$3*EXP(-$A$1*TLKworksheet!$A38) ->  | G38: =$C$3*EXP(-$A$1*TLKworksheet!$A38) ->  | H38: =$C$3*EXP(-$A$1*TLKworksheet!$A38) ->  | I38: 38 | J38: =((S38-TwoLevelVANCOMYCINcalc!$M$11)^2)/TwoLevelVANCOMYCINcalc!$M$11 ->  | K38: =((T38-TwoLevelVANCOMYCINcalc!$M$12)^2)/TwoLevelVANCOMYCINcalc!$M$12 ->  | L38: =((U38-TwoLevelVANCOMYCINcalc!$M$10)^2)/TwoLevelVANCOMYCINcalc!$M$10 ->  | N38: 3750 | O38: 1250 | P38: 8 | Q38: =VLOOKUP(P38,DLsheet!$I$15:$J$20,2,FALSE) -> Yes | R38: =VLOOKUP(O38,DLsheet!$E$13:$F$21,2,FALSE) -> 1.5
A39: 18 | B39: =HLOOKUP(TwoLevelVANCOMYCINcalc!$M$24,TLKworksheet!$C$1:$H$100,I39,FALSE) ->  | E39: =$C$3*EXP(-$A$1*TLKworksheet!$A39) ->  | F39: =$C$3*EXP(-$A$1*TLKworksheet!$A39) ->  | G39: =$C$3*EXP(-$A$1*TLKworksheet!$A39) ->  | H39: =$C$3*EXP(-$A$1*TLKworksheet!$A39) ->  | I39: 39 | J39: =((S39-TwoLevelVANCOMYCINcalc!$M$11)^2)/TwoLevelVANCOMYCINcalc!$M$11 ->  | K39: =((T39-TwoLevelVANCOMYCINcalc!$M$12)^2)/TwoLevelVANCOMYCINcalc!$M$12 ->  | L39: =((U39-TwoLevelVANCOMYCINcalc!$M$10)^2)/TwoLevelVANCOMYCINcalc!$M$10 ->  | N39: 4000 | O39: 2000 | P39: 12 | Q39: =VLOOKUP(P39,DLsheet!$I$15:$J$20,2,FALSE) -> Yes | R39: =VLOOKUP(O39,DLsheet!$E$13:$F$21,2,FALSE) -> 2
A40: 18.5 | B40: =HLOOKUP(TwoLevelVANCOMYCINcalc!$M$24,TLKworksheet!$C$1:$H$100,I40,FALSE) ->  | E40: =E39+E3 ->  | F40: =$C$3*EXP(-$A$1*TLKworksheet!$A40) ->  | G40: =$C$3*EXP(-$A$1*TLKworksheet!$A40) ->  | H40: =$C$3*EXP(-$A$1*TLKworksheet!$A40) ->  | I40: 40 | J40: =((S40-TwoLevelVANCOMYCINcalc!$M$11)^2)/TwoLevelVANCOMYCINcalc!$M$11 ->  | K40: =((T40-TwoLevelVANCOMYCINcalc!$M$12)^2)/TwoLevelVANCOMYCINcalc!$M$12 ->  | L40: =((U40-TwoLevelVANCOMYCINcalc!$M$10)^2)/TwoLevelVANCOMYCINcalc!$M$10 ->  | N40: 4500 | O40: 1500 | P40: 8 | Q40: =VLOOKUP(P40,DLsheet!$I$15:$J$20,2,FALSE) -> Yes | R40: =VLOOKUP(O40,DLsheet!$E$13:$F$21,2,FALSE) -> 1.5
A41: 19 | B41: =HLOOKUP(TwoLevelVANCOMYCINcalc!$M$24,TLKworksheet!$C$1:$H$100,I41,FALSE) ->  | E41: =$E$40*EXP(-$A$1*(A41-18.5)) ->  | F41: =$C$3*EXP(-$A$1*TLKworksheet!$A41) ->  | G41: =$C$3*EXP(-$A$1*TLKworksheet!$A41) ->  | H41: =$C$3*EXP(-$A$1*TLKworksheet!$A41) ->  | I41: 41 | J41: =((S41-TwoLevelVANCOMYCINcalc!$M$11)^2)/TwoLevelVANCOMYCINcalc!$M$11 ->  | K41: =((T41-TwoLevelVANCOMYCINcalc!$M$12)^2)/TwoLevelVANCOMYCINcalc!$M$12 ->  | L41: =((U41-TwoLevelVANCOMYCINcalc!$M$10)^2)/TwoLevelVANCOMYCINcalc!$M$10 ->  | N41: 4500 | O41: 2250 | P41: 12 | Q41: =VLOOKUP(P41,DLsheet!$I$15:$J$20,2,FALSE) -> Yes | R41: =VLOOKUP(O41,DLsheet!$E$13:$F$21,2,FALSE) -> 2.5
A42: 19.5 | B42: =HLOOKUP(TwoLevelVANCOMYCINcalc!$M$24,TLKworksheet!$C$1:$H$100,I42,FALSE) ->  | F42: =$C$3*EXP(-$A$1*TLKworksheet!$A42) ->  | G42: =$C$3*EXP(-$A$1*TLKworksheet!$A42) ->  | H42: =$C$3*EXP(-$A$1*TLKworksheet!$A42) ->  | I42: 42 | J42: =((S42-TwoLevelVANCOMYCINcalc!$M$11)^2)/TwoLevelVANCOMYCINcalc!$M$11 ->  | K42: =((T42-TwoLevelVANCOMYCINcalc!$M$12)^2)/TwoLevelVANCOMYCINcalc!$M$12 ->  | L42: =((U42-TwoLevelVANCOMYCINcalc!$M$10)^2)/TwoLevelVANCOMYCINcalc!$M$10 ->  | N42: 5000 | O42: 2500 | P42: 12 | Q42: =VLOOKUP(P42,DLsheet!$I$15:$J$20,2,FALSE) -> Yes | R42: =VLOOKUP(O42,DLsheet!$E$13:$F$21,2,FALSE) -> 2.5
A43: 20 | B43: =HLOOKUP(TwoLevelVANCOMYCINcalc!$M$24,TLKworksheet!$C$1:$H$100,I43,FALSE) ->  | F43: =$C$3*EXP(-$A$1*TLKworksheet!$A43) ->  | G43: =$C$3*EXP(-$A$1*TLKworksheet!$A43) ->  | H43: =$C$3*EXP(-$A$1*TLKworksheet!$A43) ->  | I43: 43 | J43: =((S43-TwoLevelVANCOMYCINcalc!$M$11)^2)/TwoLevelVANCOMYCINcalc!$M$11 ->  | K43: =((T43-TwoLevelVANCOMYCINcalc!$M$12)^2)/TwoLevelVANCOMYCINcalc!$M$12 ->  | L43: =((U43-TwoLevelVANCOMYCINcalc!$M$10)^2)/TwoLevelVANCOMYCINcalc!$M$10 ->  | N43: 5250 | O43: 1750 | P43: 8 | Q43: =VLOOKUP(P43,DLsheet!$I$15:$J$20,2,FALSE) -> Yes | R43: =VLOOKUP(O43,DLsheet!$E$13:$F$21,2,FALSE) -> 2
A44: 20.5 | B44: =HLOOKUP(TwoLevelVANCOMYCINcalc!$M$24,TLKworksheet!$C$1:$H$100,I44,FALSE) ->  | F44: =$C$3*EXP(-$A$1*TLKworksheet!$A44) ->  | G44: =$C$3*EXP(-$A$1*TLKworksheet!$A44) ->  | H44: =$C$3*EXP(-$A$1*TLKworksheet!$A44) ->  | I44: 44 | J44: =((S44-TwoLevelVANCOMYCINcalc!$M$11)^2)/TwoLevelVANCOMYCINcalc!$M$11 ->  | K44: =((T44-TwoLevelVANCOMYCINcalc!$M$12)^2)/TwoLevelVANCOMYCINcalc!$M$12 ->  | L44: =((U44-TwoLevelVANCOMYCINcalc!$M$10)^2)/TwoLevelVANCOMYCINcalc!$M$10 ->  | N44: 6000 | O44: 2000 | P44: 8 | Q44: =VLOOKUP(P44,DLsheet!$I$15:$J$20,2,FALSE) -> Yes | R44: =VLOOKUP(O44,DLsheet!$E$13:$F$21,2,FALSE) -> 2
A45: 21 | B45: =HLOOKUP(TwoLevelVANCOMYCINcalc!$M$24,TLKworksheet!$C$1:$H$100,I45,FALSE) ->  | F45: =$C$3*EXP(-$A$1*TLKworksheet!$A45) ->  | G45: =$C$3*EXP(-$A$1*TLKworksheet!$A45) ->  | H45: =$C$3*EXP(-$A$1*TLKworksheet!$A45) ->  | I45: 45 | J45: =((S45-TwoLevelVANCOMYCINcalc!$M$11)^2)/TwoLevelVANCOMYCINcalc!$M$11 ->  | K45: =((T45-TwoLevelVANCOMYCINcalc!$M$12)^2)/TwoLevelVANCOMYCINcalc!$M$12 ->  | L45: =((U45-TwoLevelVANCOMYCINcalc!$M$10)^2)/TwoLevelVANCOMYCINcalc!$M$10 ->  | N45: 6750 | O45: 2250 | P45: 8 | Q45: =VLOOKUP(P45,DLsheet!$I$15:$J$20,2,FALSE) -> Yes | R45: =VLOOKUP(O45,DLsheet!$E$13:$F$21,2,FALSE) -> 2.5
A46: 21.5 | B46: =HLOOKUP(TwoLevelVANCOMYCINcalc!$M$24,TLKworksheet!$C$1:$H$100,I46,FALSE) ->  | F46: =$C$3*EXP(-$A$1*TLKworksheet!$A46) ->  | G46: =$C$3*EXP(-$A$1*TLKworksheet!$A46) ->  | H46: =$C$3*EXP(-$A$1*TLKworksheet!$A46) ->  | I46: 46 | J46: =((S46-TwoLevelVANCOMYCINcalc!$M$11)^2)/TwoLevelVANCOMYCINcalc!$M$11 ->  | K46: =((T46-TwoLevelVANCOMYCINcalc!$M$12)^2)/TwoLevelVANCOMYCINcalc!$M$12 ->  | L46: =((U46-TwoLevelVANCOMYCINcalc!$M$10)^2)/TwoLevelVANCOMYCINcalc!$M$10 ->  | N46: 7500 | O46: 2500 | P46: 8 | Q46: =VLOOKUP(P46,DLsheet!$I$15:$J$20,2,FALSE) -> Yes | R46: =VLOOKUP(O46,DLsheet!$E$13:$F$21,2,FALSE) -> 2.5
A47: 22 | B47: =HLOOKUP(TwoLevelVANCOMYCINcalc!$M$24,TLKworksheet!$C$1:$H$100,I47,FALSE) ->  | F47: =$C$3*EXP(-$A$1*TLKworksheet!$A47) ->  | G47: =$C$3*EXP(-$A$1*TLKworksheet!$A47) ->  | H47: =$C$3*EXP(-$A$1*TLKworksheet!$A47) ->  | I47: 47 | Q47: =VLOOKUP(P47,DLsheet!$I$15:$J$20,2,FALSE) -> 
A48: 22.5 | B48: =HLOOKUP(TwoLevelVANCOMYCINcalc!$M$24,TLKworksheet!$C$1:$H$100,I48,FALSE) ->  | F48: =$C$3*EXP(-$A$1*TLKworksheet!$A48) ->  | G48: =$C$3*EXP(-$A$1*TLKworksheet!$A48) ->  | H48: =$C$3*EXP(-$A$1*TLKworksheet!$A48) ->  | I48: 48 | Q48: =VLOOKUP(P48,DLsheet!$I$15:$J$20,2,FALSE) -> 
A49: 23 | B49: =HLOOKUP(TwoLevelVANCOMYCINcalc!$M$24,TLKworksheet!$C$1:$H$100,I49,FALSE) ->  | F49: =$C$3*EXP(-$A$1*TLKworksheet!$A49) ->  | G49: =$C$3*EXP(-$A$1*TLKworksheet!$A49) ->  | H49: =$C$3*EXP(-$A$1*TLKworksheet!$A49) ->  | I49: 49 | Q49: =VLOOKUP(P49,DLsheet!$I$15:$J$20,2,FALSE) -> 
A50: 23.5 | B50: =HLOOKUP(TwoLevelVANCOMYCINcalc!$M$24,TLKworksheet!$C$1:$H$100,I50,FALSE) ->  | F50: =$C$3*EXP(-$A$1*TLKworksheet!$A50) ->  | G50: =$C$3*EXP(-$A$1*TLKworksheet!$A50) ->  | H50: =$C$3*EXP(-$A$1*TLKworksheet!$A50) ->  | I50: 50 | Q50: =VLOOKUP(P50,DLsheet!$I$15:$J$20,2,FALSE) -> 
A51: 24 | B51: =HLOOKUP(TwoLevelVANCOMYCINcalc!$M$24,TLKworksheet!$C$1:$H$100,I51,FALSE) ->  | F51: =$C$3*EXP(-$A$1*TLKworksheet!$A51) ->  | G51: =$C$3*EXP(-$A$1*TLKworksheet!$A51) ->  | H51: =$C$3*EXP(-$A$1*TLKworksheet!$A51) ->  | I51: 51 | Q51: =VLOOKUP(P51,DLsheet!$I$15:$J$20,2,FALSE) -> 
A52: 24.5 | B52: =HLOOKUP(TwoLevelVANCOMYCINcalc!$M$24,TLKworksheet!$C$1:$H$100,I52,FALSE) ->  | C52: =C51+C3 ->  | D52: =D51+D3 ->  | F52: =F51+F3 ->  | G52: =$C$3*EXP(-$A$1*TLKworksheet!$A52) ->  | H52: =$C$3*EXP(-$A$1*TLKworksheet!$A52) ->  | I52: 52 | Q52: =VLOOKUP(P52,DLsheet!$I$15:$J$20,2,FALSE) -> 
A53: 25 | B53: =HLOOKUP(TwoLevelVANCOMYCINcalc!$M$24,TLKworksheet!$C$1:$H$100,I53,FALSE) ->  | C53: =$C$52*EXP(-$A$1*(A53-24.5)) ->  | D53: =$D$52*EXP(-$A$1*(A53-24.5)) ->  | F53: =$F$52*EXP(-$A$1*(A53-24.5)) ->  | G53: =$C$3*EXP(-$A$1*TLKworksheet!$A53) ->  | H53: =$C$3*EXP(-$A$1*TLKworksheet!$A53) ->  | I53: 53 | Q53: =VLOOKUP(P53,DLsheet!$I$15:$J$20,2,FALSE) -> 
A54: 25.5 | B54: =HLOOKUP(TwoLevelVANCOMYCINcalc!$M$24,TLKworksheet!$C$1:$H$100,I54,FALSE) ->  | G54: =$C$3*EXP(-$A$1*TLKworksheet!$A54) ->  | H54: =$C$3*EXP(-$A$1*TLKworksheet!$A54) ->  | I54: 54 | Q54: =VLOOKUP(P54,DLsheet!$I$15:$J$20,2,FALSE) -> 
A55: 26 | B55: =HLOOKUP(TwoLevelVANCOMYCINcalc!$M$24,TLKworksheet!$C$1:$H$100,I55,FALSE) ->  | G55: =$C$3*EXP(-$A$1*TLKworksheet!$A55) ->  | H55: =$C$3*EXP(-$A$1*TLKworksheet!$A55) ->  | I55: 55 | Q55: =VLOOKUP(P55,DLsheet!$I$15:$J$20,2,FALSE) -> 
A56: 26.5 | B56: =HLOOKUP(TwoLevelVANCOMYCINcalc!$M$24,TLKworksheet!$C$1:$H$100,I56,FALSE) ->  | G56: =$C$3*EXP(-$A$1*TLKworksheet!$A56) ->  | H56: =$C$3*EXP(-$A$1*TLKworksheet!$A56) ->  | I56: 56 | Q56: =VLOOKUP(P56,DLsheet!$I$15:$J$20,2,FALSE) -> 
A57: 27 | B57: =HLOOKUP(TwoLevelVANCOMYCINcalc!$M$24,TLKworksheet!$C$1:$H$100,I57,FALSE) ->  | G57: =$C$3*EXP(-$A$1*TLKworksheet!$A57) ->  | H57: =$C$3*EXP(-$A$1*TLKworksheet!$A57) ->  | I57: 57 | Q57: =VLOOKUP(P57,DLsheet!$I$15:$J$20,2,FALSE) -> 
A58: 27.5 | B58: =HLOOKUP(TwoLevelVANCOMYCINcalc!$M$24,TLKworksheet!$C$1:$H$100,I58,FALSE) ->  | G58: =$C$3*EXP(-$A$1*TLKworksheet!$A58) ->  | H58: =$C$3*EXP(-$A$1*TLKworksheet!$A58) ->  | I58: 58 | Q58: =VLOOKUP(P58,DLsheet!$I$15:$J$20,2,FALSE) -> 
A59: 28 | B59: =HLOOKUP(TwoLevelVANCOMYCINcalc!$M$24,TLKworksheet!$C$1:$H$100,I59,FALSE) ->  | G59: =$C$3*EXP(-$A$1*TLKworksheet!$A59) ->  | H59: =$C$3*EXP(-$A$1*TLKworksheet!$A59) ->  | I59: 59 | Q59: =VLOOKUP(P59,DLsheet!$I$15:$J$20,2,FALSE) -> 
A60: 28.5 | B60: =HLOOKUP(TwoLevelVANCOMYCINcalc!$M$24,TLKworksheet!$C$1:$H$100,I60,FALSE) ->  | G60: =$C$3*EXP(-$A$1*TLKworksheet!$A60) ->  | H60: =$C$3*EXP(-$A$1*TLKworksheet!$A60) ->  | I60: 60 | Q60: =VLOOKUP(P60,DLsheet!$I$15:$J$20,2,FALSE) -> 
A61: 29 | B61: =HLOOKUP(TwoLevelVANCOMYCINcalc!$M$24,TLKworksheet!$C$1:$H$100,I61,FALSE) ->  | G61: =$C$3*EXP(-$A$1*TLKworksheet!$A61) ->  | H61: =$C$3*EXP(-$A$1*TLKworksheet!$A61) ->  | I61: 61 | Q61: =VLOOKUP(P61,DLsheet!$I$15:$J$20,2,FALSE) -> 
A62: 29.5 | B62: =HLOOKUP(TwoLevelVANCOMYCINcalc!$M$24,TLKworksheet!$C$1:$H$100,I62,FALSE) ->  | G62: =$C$3*EXP(-$A$1*TLKworksheet!$A62) ->  | H62: =$C$3*EXP(-$A$1*TLKworksheet!$A62) ->  | I62: 62 | Q62: =VLOOKUP(P62,DLsheet!$I$15:$J$20,2,FALSE) -> 
A63: 30 | B63: =HLOOKUP(TwoLevelVANCOMYCINcalc!$M$24,TLKworksheet!$C$1:$H$100,I63,FALSE) ->  | G63: =$C$3*EXP(-$A$1*TLKworksheet!$A63) ->  | H63: =$C$3*EXP(-$A$1*TLKworksheet!$A63) ->  | I63: 63 | Q63: =VLOOKUP(P63,DLsheet!$I$15:$J$20,2,FALSE) -> 
A64: 30.5 | B64: =HLOOKUP(TwoLevelVANCOMYCINcalc!$M$24,TLKworksheet!$C$1:$H$100,I64,FALSE) ->  | G64: =$C$3*EXP(-$A$1*TLKworksheet!$A64) ->  | H64: =$C$3*EXP(-$A$1*TLKworksheet!$A64) ->  | I64: 64 | Q64: =VLOOKUP(P64,DLsheet!$I$15:$J$20,2,FALSE) -> 
A65: 31 | B65: =HLOOKUP(TwoLevelVANCOMYCINcalc!$M$24,TLKworksheet!$C$1:$H$100,I65,FALSE) ->  | G65: =$C$3*EXP(-$A$1*TLKworksheet!$A65) ->  | H65: =$C$3*EXP(-$A$1*TLKworksheet!$A65) ->  | I65: 65 | Q65: =VLOOKUP(P65,DLsheet!$I$15:$J$20,2,FALSE) -> 
A66: 31.5 | B66: =HLOOKUP(TwoLevelVANCOMYCINcalc!$M$24,TLKworksheet!$C$1:$H$100,I66,FALSE) ->  | G66: =$C$3*EXP(-$A$1*TLKworksheet!$A66) ->  | H66: =$C$3*EXP(-$A$1*TLKworksheet!$A66) ->  | I66: 66 | Q66: =VLOOKUP(P66,DLsheet!$I$15:$J$20,2,FALSE) -> 
A67: 32 | B67: =HLOOKUP(TwoLevelVANCOMYCINcalc!$M$24,TLKworksheet!$C$1:$H$100,I67,FALSE) ->  | G67: =$C$3*EXP(-$A$1*TLKworksheet!$A67) ->  | H67: =$C$3*EXP(-$A$1*TLKworksheet!$A67) ->  | I67: 67 | Q67: =VLOOKUP(P67,DLsheet!$I$15:$J$20,2,FALSE) -> 
A68: 32.5 | B68: =HLOOKUP(TwoLevelVANCOMYCINcalc!$M$24,TLKworksheet!$C$1:$H$100,I68,FALSE) ->  | C68: =$C$67+C3 ->  | E68: =E3+E67 ->  | G68: =$C$3*EXP(-$A$1*TLKworksheet!$A68) ->  | H68: =$C$3*EXP(-$A$1*TLKworksheet!$A68) ->  | I68: 68 | Q68: =VLOOKUP(P68,DLsheet!$I$15:$J$20,2,FALSE) -> 
A69: 33 | B69: =HLOOKUP(TwoLevelVANCOMYCINcalc!$M$24,TLKworksheet!$C$1:$H$100,I69,FALSE) ->  | C69: =$C$68*EXP(-$A$1*(A69-32.5)) ->  | E69: =$E$68*EXP(-$A$1*(A69-32.5)) ->  | G69: =$C$3*EXP(-$A$1*TLKworksheet!$A69) ->  | H69: =$C$3*EXP(-$A$1*TLKworksheet!$A69) ->  | I69: 69 | Q69: =VLOOKUP(P69,DLsheet!$I$15:$J$20,2,FALSE) -> 
A70: 33.5 | B70: =HLOOKUP(TwoLevelVANCOMYCINcalc!$M$24,TLKworksheet!$C$1:$H$100,I70,FALSE) ->  | G70: =$C$3*EXP(-$A$1*TLKworksheet!$A70) ->  | H70: =$C$3*EXP(-$A$1*TLKworksheet!$A70) ->  | I70: 70 | Q70: =VLOOKUP(P70,DLsheet!$I$15:$J$20,2,FALSE) -> 
A71: 34 | B71: =HLOOKUP(TwoLevelVANCOMYCINcalc!$M$24,TLKworksheet!$C$1:$H$100,I71,FALSE) ->  | G71: =$C$3*EXP(-$A$1*TLKworksheet!$A71) ->  | H71: =$C$3*EXP(-$A$1*TLKworksheet!$A71) ->  | I71: 71 | Q71: =VLOOKUP(P71,DLsheet!$I$15:$J$20,2,FALSE) -> 
A72: 34.5 | B72: =HLOOKUP(TwoLevelVANCOMYCINcalc!$M$24,TLKworksheet!$C$1:$H$100,I72,FALSE) ->  | G72: =$C$3*EXP(-$A$1*TLKworksheet!$A72) ->  | H72: =$C$3*EXP(-$A$1*TLKworksheet!$A72) ->  | I72: 72 | Q72: =VLOOKUP(P72,DLsheet!$I$15:$J$20,2,FALSE) -> 
A73: 35 | B73: =HLOOKUP(TwoLevelVANCOMYCINcalc!$M$24,TLKworksheet!$C$1:$H$100,I73,FALSE) ->  | G73: =$C$3*EXP(-$A$1*TLKworksheet!$A73) ->  | H73: =$C$3*EXP(-$A$1*TLKworksheet!$A73) ->  | I73: 73 | Q73: =VLOOKUP(P73,DLsheet!$I$15:$J$20,2,FALSE) -> 
A74: 35.5 | B74: =HLOOKUP(TwoLevelVANCOMYCINcalc!$M$24,TLKworksheet!$C$1:$H$100,I74,FALSE) ->  | G74: =$C$3*EXP(-$A$1*TLKworksheet!$A74) ->  | H74: =$C$3*EXP(-$A$1*TLKworksheet!$A74) ->  | I74: 74 | Q74: =VLOOKUP(P74,DLsheet!$I$15:$J$20,2,FALSE) -> 
A75: 36 | B75: =HLOOKUP(TwoLevelVANCOMYCINcalc!$M$24,TLKworksheet!$C$1:$H$100,I75,FALSE) ->  | G75: =G3+G74 ->  | H75: =$C$3*EXP(-$A$1*TLKworksheet!$A75) ->  | I75: 75 | Q75: =VLOOKUP(P75,DLsheet!$I$15:$J$20,2,FALSE) -> 
A76: 36.5 | B76: =HLOOKUP(TwoLevelVANCOMYCINcalc!$M$24,TLKworksheet!$C$1:$H$100,I76,FALSE) ->  | D76: =D3+D75 ->  | G76: =$G$75*EXP(-$A$1*(A76-36)) ->  | H76: =$C$3*EXP(-$A$1*TLKworksheet!$A76) ->  | I76: 76 | Q76: =VLOOKUP(P76,DLsheet!$I$15:$J$20,2,FALSE) -> 
A77: 37 | B77: =HLOOKUP(TwoLevelVANCOMYCINcalc!$M$24,TLKworksheet!$C$1:$H$100,I77,FALSE) ->  | D77: =$D$76*EXP(-$A$1*(A77-36.5)) ->  | H77: =$C$3*EXP(-$A$1*TLKworksheet!$A77) ->  | I77: 77 | Q77: =VLOOKUP(P77,DLsheet!$I$15:$J$20,2,FALSE) -> 
A78: 37.5 | B78: =HLOOKUP(TwoLevelVANCOMYCINcalc!$M$24,TLKworksheet!$C$1:$H$100,I78,FALSE) ->  | H78: =$C$3*EXP(-$A$1*TLKworksheet!$A78) ->  | I78: 78 | Q78: =VLOOKUP(P78,DLsheet!$I$15:$J$20,2,FALSE) -> 
A79: 38 | B79: =HLOOKUP(TwoLevelVANCOMYCINcalc!$M$24,TLKworksheet!$C$1:$H$100,I79,FALSE) ->  | H79: =$C$3*EXP(-$A$1*TLKworksheet!$A79) ->  | I79: 79 | Q79: =VLOOKUP(P79,DLsheet!$I$15:$J$20,2,FALSE) -> 
A80: 38.5 | B80: =HLOOKUP(TwoLevelVANCOMYCINcalc!$M$24,TLKworksheet!$C$1:$H$100,I80,FALSE) ->  | H80: =$C$3*EXP(-$A$1*TLKworksheet!$A80) ->  | I80: 80 | Q80: =VLOOKUP(P80,DLsheet!$I$15:$J$20,2,FALSE) -> 
A81: 39 | B81: =HLOOKUP(TwoLevelVANCOMYCINcalc!$M$24,TLKworksheet!$C$1:$H$100,I81,FALSE) ->  | H81: =$C$3*EXP(-$A$1*TLKworksheet!$A81) ->  | I81: 81 | Q81: =VLOOKUP(P81,DLsheet!$I$15:$J$20,2,FALSE) -> 
A82: 39.5 | B82: =HLOOKUP(TwoLevelVANCOMYCINcalc!$M$24,TLKworksheet!$C$1:$H$100,I82,FALSE) ->  | H82: =$C$3*EXP(-$A$1*TLKworksheet!$A82) ->  | I82: 82 | Q82: =VLOOKUP(P82,DLsheet!$I$15:$J$20,2,FALSE) -> 
A83: 40 | B83: =HLOOKUP(TwoLevelVANCOMYCINcalc!$M$24,TLKworksheet!$C$1:$H$100,I83,FALSE) ->  | H83: =$C$3*EXP(-$A$1*TLKworksheet!$A83) ->  | I83: 83 | Q83: =VLOOKUP(P83,DLsheet!$I$15:$J$20,2,FALSE) -> 
A84: 40.5 | B84: =HLOOKUP(TwoLevelVANCOMYCINcalc!$M$24,TLKworksheet!$C$1:$H$100,I84,FALSE) ->  | C84: =$C$3+C83 ->  | H84: =$C$3*EXP(-$A$1*TLKworksheet!$A84) ->  | I84: 84 | Q84: =VLOOKUP(P84,DLsheet!$I$15:$J$20,2,FALSE) -> 
A85: 41 | B85: =HLOOKUP(TwoLevelVANCOMYCINcalc!$M$24,TLKworksheet!$C$1:$H$100,I85,FALSE) ->  | C85: =$C$84*EXP(-$A$1*(A85-40.5)) ->  | H85: =$C$3*EXP(-$A$1*TLKworksheet!$A85) ->  | I85: 85 | Q85: =VLOOKUP(P85,DLsheet!$I$15:$J$20,2,FALSE) -> 
A86: 41.5 | B86: =HLOOKUP(TwoLevelVANCOMYCINcalc!$M$24,TLKworksheet!$C$1:$H$100,I86,FALSE) ->  | H86: =$C$3*EXP(-$A$1*TLKworksheet!$A86) ->  | I86: 86 | Q86: =VLOOKUP(P86,DLsheet!$I$15:$J$20,2,FALSE) -> 
A87: 42 | B87: =HLOOKUP(TwoLevelVANCOMYCINcalc!$M$24,TLKworksheet!$C$1:$H$100,I87,FALSE) ->  | H87: =$C$3*EXP(-$A$1*TLKworksheet!$A87) ->  | I87: 87 | Q87: =VLOOKUP(P87,DLsheet!$I$15:$J$20,2,FALSE) -> 
A88: 42.5 | B88: =HLOOKUP(TwoLevelVANCOMYCINcalc!$M$24,TLKworksheet!$C$1:$H$100,I88,FALSE) ->  | H88: =$C$3*EXP(-$A$1*TLKworksheet!$A88) ->  | I88: 88 | Q88: =VLOOKUP(P88,DLsheet!$I$15:$J$20,2,FALSE) -> 
A89: 43 | B89: =HLOOKUP(TwoLevelVANCOMYCINcalc!$M$24,TLKworksheet!$C$1:$H$100,I89,FALSE) ->  | H89: =$C$3*EXP(-$A$1*TLKworksheet!$A89) ->  | I89: 89 | Q89: =VLOOKUP(P89,DLsheet!$I$15:$J$20,2,FALSE) -> 
A90: 43.5 | B90: =HLOOKUP(TwoLevelVANCOMYCINcalc!$M$24,TLKworksheet!$C$1:$H$100,I90,FALSE) ->  | H90: =$C$3*EXP(-$A$1*TLKworksheet!$A90) ->  | I90: 90 | Q90: =VLOOKUP(P90,DLsheet!$I$15:$J$20,2,FALSE) -> 
A91: 44 | B91: =HLOOKUP(TwoLevelVANCOMYCINcalc!$M$24,TLKworksheet!$C$1:$H$100,I91,FALSE) ->  | H91: =$C$3*EXP(-$A$1*TLKworksheet!$A91) ->  | I91: 91 | Q91: =VLOOKUP(P91,DLsheet!$I$15:$J$20,2,FALSE) -> 
A92: 44.5 | B92: =HLOOKUP(TwoLevelVANCOMYCINcalc!$M$24,TLKworksheet!$C$1:$H$100,I92,FALSE) ->  | H92: =$C$3*EXP(-$A$1*TLKworksheet!$A92) ->  | I92: 92 | Q92: =VLOOKUP(P92,DLsheet!$I$15:$J$20,2,FALSE) -> 
A93: 45 | B93: =HLOOKUP(TwoLevelVANCOMYCINcalc!$M$24,TLKworksheet!$C$1:$H$100,I93,FALSE) ->  | H93: =$C$3*EXP(-$A$1*TLKworksheet!$A93) ->  | I93: 93 | Q93: =VLOOKUP(P93,DLsheet!$I$15:$J$20,2,FALSE) -> 
A94: 45.5 | B94: =HLOOKUP(TwoLevelVANCOMYCINcalc!$M$24,TLKworksheet!$C$1:$H$100,I94,FALSE) ->  | H94: =$C$3*EXP(-$A$1*TLKworksheet!$A94) ->  | I94: 94 | Q94: =VLOOKUP(P94,DLsheet!$I$15:$J$20,2,FALSE) -> 
A95: 46 | B95: =HLOOKUP(TwoLevelVANCOMYCINcalc!$M$24,TLKworksheet!$C$1:$H$100,I95,FALSE) ->  | H95: =$C$3*EXP(-$A$1*TLKworksheet!$A95) ->  | I95: 95 | Q95: =VLOOKUP(P95,DLsheet!$I$15:$J$20,2,FALSE) -> 
A96: 46.5 | B96: =HLOOKUP(TwoLevelVANCOMYCINcalc!$M$24,TLKworksheet!$C$1:$H$100,I96,FALSE) ->  | H96: =$C$3*EXP(-$A$1*TLKworksheet!$A96) ->  | I96: 96 | Q96: =VLOOKUP(P96,DLsheet!$I$15:$J$20,2,FALSE) -> 
A97: 47 | B97: =HLOOKUP(TwoLevelVANCOMYCINcalc!$M$24,TLKworksheet!$C$1:$H$100,I97,FALSE) ->  | H97: =$C$3*EXP(-$A$1*TLKworksheet!$A97) ->  | I97: 97 | Q97: =VLOOKUP(P97,DLsheet!$I$15:$J$20,2,FALSE) -> 
A98: 47.5 | B98: =HLOOKUP(TwoLevelVANCOMYCINcalc!$M$24,TLKworksheet!$C$1:$H$100,I98,FALSE) ->  | H98: =$C$3*EXP(-$A$1*TLKworksheet!$A98) ->  | I98: 98 | Q98: =VLOOKUP(P98,DLsheet!$I$15:$J$20,2,FALSE) -> 
A99: 48 | H99: =$C$3*EXP(-$A$1*TLKworksheet!$A99) ->  | I99: 99 | Q99: =VLOOKUP(P99,DLsheet!$I$15:$J$20,2,FALSE) -> 
A100: 48.5 | D100: =D99+D3 ->  | F100: =F99+F3 ->  | H100: =$C$3*EXP(-$A$1*TLKworksheet!$A100) ->  | I100: 100 | Q100: =VLOOKUP(P100,DLsheet!$I$15:$J$20,2,FALSE) -> 

Sheet EmpiricAMGcalc (hidden)
G5: Aminoglycoside Empiric Calculator | R5: Back to Main Menu
B9: Patient Information | P9: Dosing Variables
B10: Age | E10: 85 | G10: years
B11: Gender | E11: Male | P11: Desired Cmax | T11: =IF(G21="","",VLOOKUP(I21,DLsheet!M112:O117,2,FALSE)) -> 20
B12: SCr | E12: 1.2 | G12: mg/dL | P12: Desired Cmin | T12: =IF(G21="","",VLOOKUP(I21,DLsheet!M112:O117,3,FALSE)) -> 0.25
B13: Height | E13: 165 | G13: cm | I13: =IF(G13="inches",E13,E13/2.54) -> 64.96062992 | J13: =I13*2.54 -> 165 | P13: Vd coefficient | T13: 0.3
B14: Actual Body Weight | D14: TBW | E14: 106 | G14: kg | I14: =IF(G14="kg",E14,E14/2.2) -> 106 | P14: Weight to calculate Vd | T14: TBW | V14: =IF(T15>0,T15,IF(T14<1,"",VLOOKUP(T14,D14:F21,2,FALSE))) -> 106 | W14: =IF(ISERROR(I15>DLsheet!H7*EmpiricAMGcalc!E17),"TBW",IF(EmpiricAMGcalc!I15>DLsheet!H7*EmpiricAMGcalc!E17,"AdjBW","TBW")) -> AdjBW | X14: Recommended for this patient
D15: AdjBW | E15: =IF(E14<1,"",IF(I14>DLsheet!H6*EmpiricAMGcalc!E16,EmpiricAMGcalc!E16+DLsheet!H7*(EmpiricAMGcalc!E14-EmpiricAMGcalc!E16),"")) -> 79.24566929 | G15: kg | I15: =_xlfn.CONCAT("IBW + ",DLsheet!H7,"* (TBW - IBW) If TBW more than ",DLsheet!G6*100,"% overweight") -> IBW + 0.4* (TBW - IBW) If TBW more than 30% overweight | P15: Manual Dosing Weight (override) | W15: kg
D16: IBW | E16: =IF(E14<1,"",IF(E11="Male",50+2.3*(I13-60),45.5+2.3*(I13-60))) -> 61.40944882 | G16: kg | I16: M: 2.3*(inches over 60)+50 F: 2.3*(inches over 60)+45.5 | P16: Ke equation | T16: 0.003*CrCl + 0.01
D17: LBW | E17: =IF(E14<1,"",IF(E11="Male",L17,M17)) -> 63.77325987 | G17: kg | I17: James Formula | L17: =1.1*I14-128*I14*I14/J13/J13 -> 63.77325987 | M17: =1.07*I14-148*I14*I14/J13/J13 -> 52.33908173 | P17: Weight to calculate CrCl & Ke | T17: CrCl AdjBW | V17: =IF(T18>0,T18,IF(T17<1,"",VLOOKUP(T17,D14:F20,2,FALSE))) -> 50.44573855 | W17: =IF(ISERROR(I14>DLsheet!H6*EmpiricAMGcalc!E16),"TBW",IF(EmpiricAMGcalc!I14>DLsheet!H6*EmpiricAMGcalc!E16,"AdjBW","TBW")) -> AdjBW | X17: Recommended for this patient
D18: CrCl TBW | E18: =IF(E14<1,"",IF(E11="Male",(140-E10)*E14/72/E12,0.85*(140-E10)*E14/72/E12)) -> 67.47685185 | G18: mL/min | I18: (140-Age)*TBW/[72*SCr] (females * 0.85) | P18: Manual CrCl (override) | W18: mL/min
D19: CrCl AdjBW | E19: =IF(E14<1,"",IF(E11="Male",(140-E10)*E15/72/E12,0.85*(140-E10)*E15/72/E12)) -> 50.44573855 | G19: mL/min | I19: (140-Age)*AdjBW/[72*SCr] (females * 0.85) | P19: Infusion time | T19: 0.5 | W19: hours
D20: CrCl IBW | E20: =IF(E14<1,"",IF(E11="Male",(140-E10)*E16/72/E12,0.85*(140-E10)*E16/72/E12)) -> 39.09166302 | G20: mL/min | I20: (140-Age)*IBW/[72*SCr] (females * 0.85)
B21: Treatment | E21: Gent/Tobra | G21: Gram Negative Infections | I21: =_xlfn.CONCAT(E21,G21) -> Gent/TobraGram Negative Infections
K22: 0.003*CrCl + 0.01 | L22: =V17*0.003+0.01 -> 0.1613372157
K23: CrCl/Vd | L23: =V17/J25*60/1000 -> 0.09518063878
G24: AUC-based Dosing Regimen
I25: Vd | J25: =IF(E14<1,"",T13*V14) -> 31.8 | M25: L | N25: =_xlfn.CONCAT(ROUND(V14,1),"kg * ",T13," L/kg") -> 106kg * 0.3 L/kg
I26: Ke | J26: =IF(E14<1,"",VLOOKUP(T16,K22:L23,2,FALSE)) -> 0.1613372157 | M26: h-1 | N26: =_xlfn.CONCAT("CrCl = ",ROUND(V17,1)," Ke equation = ",T16) -> CrCl = 50.4 Ke equation = 0.003*CrCl + 0.01
I27: t 1/2 | J27: =IF(E14<1,"",ROUND(0.693/J26,1)) -> 4.3 | M27: hours | N27: =_xlfn.CONCAT("ln(2)/", ROUND(J26,3)) -> ln(2)/0.161
I28: Calculated dose | J28: =IF(E14<1,"",(T11-T12)*J25) -> 628.05 | M28: mg | N28: ([Desired Cmax] - [Desired Cmin]) * Vd
I29: Calculated interval | J29: =IF(E14<1,"",(LN(T12/T11)/-J26)+T19) -> 27.66066852 | M29: hours | N29: (ln[desired trough]/[desired peak] / [-Ke]) + infusion time
I31: Dose | J31: =AmgEmpWS!Z1 -> 600 | M31: mg
I32: Interval | J32: =AmgEmpWS!AA1 -> 24 | M32: hours
I33: Infusion Time | J33: 0.5 | M33: hours
I34: Calculated Css max | J34: =(J31/J25)/(1-EXP(-J26*J32)) -> 19.26900413 | M34: mcg/mL
I35: Calculated Css min | J35: =J34*EXP(-J26*(J32-J33)) -> 0.4347749374 | M35: mcg/mL

Sheet AmgEmpWS (hidden)
A1: =EmpiricAMGcalc!J26 -> 0.1613372157 | B1: =EmpiricAMGcalc!J25 -> 31.8 | C1: 8 | D1: 12 | E1: 18 | F1: 24 | G1: 36 | H1: 48 | J1: Cmax Error | K1: Cmin Error | L1: Daily dose | M1: interval | N1: Total Error | O1: Dose | P1: Infusion | Q1: Cmax | R1: Cmin | S1: AUC | U1: =DLsheet!B120 -> 0 | V1: 12 | W1: N2:N19 | X1: =MIN(INDIRECT(W1)) -> 11.23753318 | Y1: =VLOOKUP(X1,N:O,2,FALSE) -> 200 | Z1: =VLOOKUP(AA1,V1:Y5,4,FALSE) -> 600 | AA1: =LOOKUP(EmpiricAMGcalc!J29,AmgEmpWS!U1:U5,AmgEmpWS!V1:V5) -> 24
A2: -0.5 | B2: 0 | C2: 0 | D2: 0 | E2: 0 | F2: 0 | G2: 0 | H2: 0 | J2: =((Q2-EmpiricAMGcalc!$T$11)^2)/EmpiricAMGcalc!$T$11 -> 10.49474322 | K2: =((R2-EmpiricAMGcalc!$T$12)^2)/EmpiricAMGcalc!$T$12 -> 1.498577569 | L2: =O2*24/M2 -> 300 | M2: 12 | N2: =SUM(J2:K2) -> 11.99332079 | O2: 150 | P2: 0.5 | Q2: =O2/$B$1/(1-EXP(-$A$1*M2)) -> 5.51225123 | R2: =Q2*EXP(-$A$1*(M2-P2)) -> 0.8620820142 | S2: =O2*24/M2/$B$1/$A$1 -> 58.4735656 | U2: =DLsheet!B121 -> 7.01 | V2: 18 | W2: N20:N37 | X2: =MIN(INDIRECT(W2)) -> 2.745786647 | Y2: =VLOOKUP(X2,N:O,2,FALSE) -> 500
A3: 0 | B3: =HLOOKUP(EmpiricAMGcalc!$J$32,AmgEmpWS!$C$1:$H$100,I3,FALSE) -> 18.86792453 | C3: =EmpiricAMGcalc!J31/EmpiricAMGcalc!J25 -> 18.86792453 | D3: =EmpiricAMGcalc!J31/EmpiricAMGcalc!J25 -> 18.86792453 | E3: =EmpiricAMGcalc!J31/EmpiricAMGcalc!J25 -> 18.86792453 | F3: =EmpiricAMGcalc!J31/EmpiricAMGcalc!J25 -> 18.86792453 | G3: =EmpiricAMGcalc!J31/EmpiricAMGcalc!J25 -> 18.86792453 | H3: =EmpiricAMGcalc!J31/EmpiricAMGcalc!J25 -> 18.86792453 | I3: 3 | J3: =((Q3-EmpiricAMGcalc!$T$11)^2)/EmpiricAMGcalc!$T$11 -> 8.001544598 | K3: =((R3-EmpiricAMGcalc!$T$12)^2)/EmpiricAMGcalc!$T$12 -> 3.235988579 | L3: 400 | M3: 12 | N3: 11.23753318 | O3: 200 | P3: 0.5 | Q3: 7.349668306 | R3: 1.149442686 | S3: 77.96475414 | U3: =DLsheet!B122 -> 16.01 | V3: 24 | W3: N38:N55 | X3: =MIN(INDIRECT(W3)) -> 0.2989842992 | Y3: =VLOOKUP(X3,N:O,2,FALSE) -> 600
A4: 0.5 | B4: =HLOOKUP(EmpiricAMGcalc!$J$32,AmgEmpWS!$C$1:$H$100,I4,FALSE) -> 17.40564811 | C4: =$C$3*EXP(-$A$1*AmgEmpWS!$A4) -> 17.40564811 | D4: =$C$3*EXP(-$A$1*AmgEmpWS!$A4) -> 17.40564811 | E4: =$C$3*EXP(-$A$1*AmgEmpWS!$A4) -> 17.40564811 | F4: =$C$3*EXP(-$A$1*AmgEmpWS!$A4) -> 17.40564811 | G4: =$C$3*EXP(-$A$1*AmgEmpWS!$A4) -> 17.40564811 | H4: =$C$3*EXP(-$A$1*AmgEmpWS!$A4) -> 17.40564811 | I4: 4 | J4: =((Q4-EmpiricAMGcalc!$T$11)^2)/EmpiricAMGcalc!$T$11 -> 5.845956126 | K4: =((R4-EmpiricAMGcalc!$T$12)^2)/EmpiricAMGcalc!$T$12 -> 5.634008833 | L4: 500 | M4: 12 | N4: 11.47996496 | O4: 250 | P4: 0.5 | Q4: 9.187085383 | R4: 1.436803357 | S4: 97.45594267 | U4: =DLsheet!B123 -> 33.01 | V4: 36 | W4: N56:N73 | X4: =MIN(INDIRECT(W4)) -> 2.092301252 | Y4: =VLOOKUP(X4,N:O,2,FALSE) -> 500
A5: 1 | B5: =HLOOKUP(EmpiricAMGcalc!$J$32,AmgEmpWS!$C$1:$H$100,I5,FALSE) -> 16.05669907 | C5: =$C$3*EXP(-$A$1*AmgEmpWS!$A5) -> 16.05669907 | D5: =$C$3*EXP(-$A$1*AmgEmpWS!$A5) -> 16.05669907 | E5: =$C$3*EXP(-$A$1*AmgEmpWS!$A5) -> 16.05669907 | F5: =$C$3*EXP(-$A$1*AmgEmpWS!$A5) -> 16.05669907 | G5: =$C$3*EXP(-$A$1*AmgEmpWS!$A5) -> 16.05669907 | H5: =$C$3*EXP(-$A$1*AmgEmpWS!$A5) -> 16.05669907 | I5: 5 | J5: =((Q5-EmpiricAMGcalc!$T$11)^2)/EmpiricAMGcalc!$T$11 -> 4.027977805 | K5: =((R5-EmpiricAMGcalc!$T$12)^2)/EmpiricAMGcalc!$T$12 -> 8.692638331 | L5: 600 | M5: 12 | N5: 12.72061614 | O5: 300 | P5: 0.5 | Q5: 11.02450246 | R5: 1.724164028 | S5: 116.9471312 | U5: =DLsheet!B124 -> 44.01 | V5: 48 | W5: N74:N91 | X5: =MIN(INDIRECT(W5)) -> 5.746660658 | Y5: =VLOOKUP(X5,N:O,2,FALSE) -> 350
A6: 1.5 | B6: =HLOOKUP(EmpiricAMGcalc!$J$32,AmgEmpWS!$C$1:$H$100,I6,FALSE) -> 14.81229445 | C6: =$C$3*EXP(-$A$1*AmgEmpWS!$A6) -> 14.81229445 | D6: =$C$3*EXP(-$A$1*AmgEmpWS!$A6) -> 14.81229445 | E6: =$C$3*EXP(-$A$1*AmgEmpWS!$A6) -> 14.81229445 | F6: =$C$3*EXP(-$A$1*AmgEmpWS!$A6) -> 14.81229445 | G6: =$C$3*EXP(-$A$1*AmgEmpWS!$A6) -> 14.81229445 | H6: =$C$3*EXP(-$A$1*AmgEmpWS!$A6) -> 14.81229445 | I6: 6 | J6: =((Q6-EmpiricAMGcalc!$T$11)^2)/EmpiricAMGcalc!$T$11 -> 2.547609636 | K6: =((R6-EmpiricAMGcalc!$T$12)^2)/EmpiricAMGcalc!$T$12 -> 12.41187707 | L6: 700 | M6: 12 | N6: 14.95948671 | O6: 350 | P6: 0.5 | Q6: 12.86191954 | R6: 2.0115247 | S6: 136.4383197
A7: 2 | B7: =HLOOKUP(EmpiricAMGcalc!$J$32,AmgEmpWS!$C$1:$H$100,I7,FALSE) -> 13.664332 | C7: =$C$3*EXP(-$A$1*AmgEmpWS!$A7) -> 13.664332 | D7: =$C$3*EXP(-$A$1*AmgEmpWS!$A7) -> 13.664332 | E7: =$C$3*EXP(-$A$1*AmgEmpWS!$A7) -> 13.664332 | F7: =$C$3*EXP(-$A$1*AmgEmpWS!$A7) -> 13.664332 | G7: =$C$3*EXP(-$A$1*AmgEmpWS!$A7) -> 13.664332 | H7: =$C$3*EXP(-$A$1*AmgEmpWS!$A7) -> 13.664332 | I7: 7 | J7: =((Q7-EmpiricAMGcalc!$T$11)^2)/EmpiricAMGcalc!$T$11 -> 1.404851617 | K7: =((R7-EmpiricAMGcalc!$T$12)^2)/EmpiricAMGcalc!$T$12 -> 16.79172506 | L7: 800 | M7: 12 | N7: 18.19657668 | O7: 400 | P7: 0.5 | Q7: 14.69933661 | R7: 2.298885371 | S7: 155.9295083
A8: 2.5 | B8: =HLOOKUP(EmpiricAMGcalc!$J$32,AmgEmpWS!$C$1:$H$100,I8,FALSE) -> 12.60533739 | C8: =$C$3*EXP(-$A$1*AmgEmpWS!$A8) -> 12.60533739 | D8: =$C$3*EXP(-$A$1*AmgEmpWS!$A8) -> 12.60533739 | E8: =$C$3*EXP(-$A$1*AmgEmpWS!$A8) -> 12.60533739 | F8: =$C$3*EXP(-$A$1*AmgEmpWS!$A8) -> 12.60533739 | G8: =$C$3*EXP(-$A$1*AmgEmpWS!$A8) -> 12.60533739 | H8: =$C$3*EXP(-$A$1*AmgEmpWS!$A8) -> 12.60533739 | I8: 8 | J8: =((Q8-EmpiricAMGcalc!$T$11)^2)/EmpiricAMGcalc!$T$11 -> 0.5997037505 | K8: =((R8-EmpiricAMGcalc!$T$12)^2)/EmpiricAMGcalc!$T$12 -> 21.83218229 | L8: 900 | M8: 12 | N8: 22.43188604 | O8: 450 | P8: 0.5 | Q8: 16.53675369 | R8: 2.586246043 | S8: 175.4206968
A9: 3 | B9: =HLOOKUP(EmpiricAMGcalc!$J$32,AmgEmpWS!$C$1:$H$100,I9,FALSE) -> 11.62841554 | C9: =$C$3*EXP(-$A$1*AmgEmpWS!$A9) -> 11.62841554 | D9: =$C$3*EXP(-$A$1*AmgEmpWS!$A9) -> 11.62841554 | E9: =$C$3*EXP(-$A$1*AmgEmpWS!$A9) -> 11.62841554 | F9: =$C$3*EXP(-$A$1*AmgEmpWS!$A9) -> 11.62841554 | G9: =$C$3*EXP(-$A$1*AmgEmpWS!$A9) -> 11.62841554 | H9: =$C$3*EXP(-$A$1*AmgEmpWS!$A9) -> 11.62841554 | I9: 9 | J9: =((Q9-EmpiricAMGcalc!$T$11)^2)/EmpiricAMGcalc!$T$11 -> 0.132166035 | K9: =((R9-EmpiricAMGcalc!$T$12)^2)/EmpiricAMGcalc!$T$12 -> 27.53324876 | L9: 1000 | M9: 12 | N9: 27.6654148 | O9: 500 | P9: 0.5 | Q9: 18.37417077 | R9: 2.873606714 | S9: 194.9118853
A10: 3.5 | B10: =HLOOKUP(EmpiricAMGcalc!$J$32,AmgEmpWS!$C$1:$H$100,I10,FALSE) -> 10.72720578 | C10: =$C$3*EXP(-$A$1*AmgEmpWS!$A10) -> 10.72720578 | D10: =$C$3*EXP(-$A$1*AmgEmpWS!$A10) -> 10.72720578 | E10: =$C$3*EXP(-$A$1*AmgEmpWS!$A10) -> 10.72720578 | F10: =$C$3*EXP(-$A$1*AmgEmpWS!$A10) -> 10.72720578 | G10: =$C$3*EXP(-$A$1*AmgEmpWS!$A10) -> 10.72720578 | H10: =$C$3*EXP(-$A$1*AmgEmpWS!$A10) -> 10.72720578 | I10: 10 | J10: =((Q10-EmpiricAMGcalc!$T$11)^2)/EmpiricAMGcalc!$T$11 -> 0.00223847075 | K10: =((R10-EmpiricAMGcalc!$T$12)^2)/EmpiricAMGcalc!$T$12 -> 33.89492448 | L10: 1100 | M10: 12 | N10: 33.89716295 | O10: 550 | P10: 0.5 | Q10: 20.21158784 | R10: 3.160967385 | S10: 214.4030739
A11: 4 | B11: =HLOOKUP(EmpiricAMGcalc!$J$32,AmgEmpWS!$C$1:$H$100,I11,FALSE) -> 9.895840356 | C11: =$C$3*EXP(-$A$1*AmgEmpWS!$A11) -> 9.895840356 | D11: =$C$3*EXP(-$A$1*AmgEmpWS!$A11) -> 9.895840356 | E11: =$C$3*EXP(-$A$1*AmgEmpWS!$A11) -> 9.895840356 | F11: =$C$3*EXP(-$A$1*AmgEmpWS!$A11) -> 9.895840356 | G11: =$C$3*EXP(-$A$1*AmgEmpWS!$A11) -> 9.895840356 | H11: =$C$3*EXP(-$A$1*AmgEmpWS!$A11) -> 9.895840356 | I11: 11 | J11: =((Q11-EmpiricAMGcalc!$T$11)^2)/EmpiricAMGcalc!$T$11 -> 0.2099210579 | K11: =((R11-EmpiricAMGcalc!$T$12)^2)/EmpiricAMGcalc!$T$12 -> 40.91720944 | L11: 1200 | M11: 12 | N11: 41.1271305 | O11: 600 | P11: 0.5 | Q11: 22.04900492 | R11: 3.448328057 | S11: 233.8942624
A12: 4.5 | B12: =HLOOKUP(EmpiricAMGcalc!$J$32,AmgEmpWS!$C$1:$H$100,I12,FALSE) -> 9.128906295 | C12: =$C$3*EXP(-$A$1*AmgEmpWS!$A12) -> 9.128906295 | D12: =$C$3*EXP(-$A$1*AmgEmpWS!$A12) -> 9.128906295 | E12: =$C$3*EXP(-$A$1*AmgEmpWS!$A12) -> 9.128906295 | F12: =$C$3*EXP(-$A$1*AmgEmpWS!$A12) -> 9.128906295 | G12: =$C$3*EXP(-$A$1*AmgEmpWS!$A12) -> 9.128906295 | H12: =$C$3*EXP(-$A$1*AmgEmpWS!$A12) -> 9.128906295 | I12: 12 | J12: =((Q12-EmpiricAMGcalc!$T$11)^2)/EmpiricAMGcalc!$T$11 -> 0.7552137963 | K12: =((R12-EmpiricAMGcalc!$T$12)^2)/EmpiricAMGcalc!$T$12 -> 48.60010364 | L12: 1300 | M12: 12 | N12: 49.35531744 | O12: 650 | P12: 0.5 | Q12: 23.886422 | R12: 3.735688728 | S12: 253.3854509
A13: 5 | B13: =HLOOKUP(EmpiricAMGcalc!$J$32,AmgEmpWS!$C$1:$H$100,I13,FALSE) -> 8.421410122 | C13: =$C$3*EXP(-$A$1*AmgEmpWS!$A13) -> 8.421410122 | D13: =$C$3*EXP(-$A$1*AmgEmpWS!$A13) -> 8.421410122 | E13: =$C$3*EXP(-$A$1*AmgEmpWS!$A13) -> 8.421410122 | F13: =$C$3*EXP(-$A$1*AmgEmpWS!$A13) -> 8.421410122 | G13: =$C$3*EXP(-$A$1*AmgEmpWS!$A13) -> 8.421410122 | H13: =$C$3*EXP(-$A$1*AmgEmpWS!$A13) -> 8.421410122 | I13: 13 | J13: =((Q13-EmpiricAMGcalc!$T$11)^2)/EmpiricAMGcalc!$T$11 -> 1.638116686 | K13: =((R13-EmpiricAMGcalc!$T$12)^2)/EmpiricAMGcalc!$T$12 -> 56.94360709 | L13: 1400 | M13: 12 | N13: 58.58172378 | O13: 700 | P13: 0.5 | Q13: 25.72383907 | R13: 4.0230494 | S13: 272.8766395
A14: 5.5 | B14: =HLOOKUP(EmpiricAMGcalc!$J$32,AmgEmpWS!$C$1:$H$100,I14,FALSE) -> 7.768745362 | C14: =$C$3*EXP(-$A$1*AmgEmpWS!$A14) -> 7.768745362 | D14: =$C$3*EXP(-$A$1*AmgEmpWS!$A14) -> 7.768745362 | E14: =$C$3*EXP(-$A$1*AmgEmpWS!$A14) -> 7.768745362 | F14: =$C$3*EXP(-$A$1*AmgEmpWS!$A14) -> 7.768745362 | G14: =$C$3*EXP(-$A$1*AmgEmpWS!$A14) -> 7.768745362 | H14: =$C$3*EXP(-$A$1*AmgEmpWS!$A14) -> 7.768745362 | I14: 14 | J14: =((Q14-EmpiricAMGcalc!$T$11)^2)/EmpiricAMGcalc!$T$11 -> 2.858629727 | K14: =((R14-EmpiricAMGcalc!$T$12)^2)/EmpiricAMGcalc!$T$12 -> 65.94771978 | L14: 1500 | M14: 12 | N14: 68.80634951 | O14: 750 | P14: 0.5 | Q14: 27.56125615 | R14: 4.310410071 | S14: 292.367828
A15: 6 | B15: =HLOOKUP(EmpiricAMGcalc!$J$32,AmgEmpWS!$C$1:$H$100,I15,FALSE) -> 7.166662546 | C15: =$C$3*EXP(-$A$1*AmgEmpWS!$A15) -> 7.166662546 | D15: =$C$3*EXP(-$A$1*AmgEmpWS!$A15) -> 7.166662546 | E15: =$C$3*EXP(-$A$1*AmgEmpWS!$A15) -> 7.166662546 | F15: =$C$3*EXP(-$A$1*AmgEmpWS!$A15) -> 7.166662546 | G15: =$C$3*EXP(-$A$1*AmgEmpWS!$A15) -> 7.166662546 | H15: =$C$3*EXP(-$A$1*AmgEmpWS!$A15) -> 7.166662546 | I15: 15 | J15: =((Q15-EmpiricAMGcalc!$T$11)^2)/EmpiricAMGcalc!$T$11 -> 4.41675292 | K15: =((R15-EmpiricAMGcalc!$T$12)^2)/EmpiricAMGcalc!$T$12 -> 75.61244172 | L15: 1600 | M15: 12 | N15: 80.02919464 | O15: 800 | P15: 0.5 | Q15: 29.39867323 | R15: 4.597770743 | S15: 311.8590165
A16: 6.5 | B16: =HLOOKUP(EmpiricAMGcalc!$J$32,AmgEmpWS!$C$1:$H$100,I16,FALSE) -> 6.611241539 | C16: =$C$3*EXP(-$A$1*AmgEmpWS!$A16) -> 6.611241539 | D16: =$C$3*EXP(-$A$1*AmgEmpWS!$A16) -> 6.611241539 | E16: =$C$3*EXP(-$A$1*AmgEmpWS!$A16) -> 6.611241539 | F16: =$C$3*EXP(-$A$1*AmgEmpWS!$A16) -> 6.611241539 | G16: =$C$3*EXP(-$A$1*AmgEmpWS!$A16) -> 6.611241539 | H16: =$C$3*EXP(-$A$1*AmgEmpWS!$A16) -> 6.611241539 | I16: 16 | J16: =((Q16-EmpiricAMGcalc!$T$11)^2)/EmpiricAMGcalc!$T$11 -> 6.312486263 | K16: =((R16-EmpiricAMGcalc!$T$12)^2)/EmpiricAMGcalc!$T$12 -> 85.9377729 | L16: 1700 | M16: 12 | N16: 92.25025916 | O16: 850 | P16: 0.5 | Q16: 31.2360903 | R16: 4.885131414 | S16: 331.3502051
A17: 7 | B17: =HLOOKUP(EmpiricAMGcalc!$J$32,AmgEmpWS!$C$1:$H$100,I17,FALSE) -> 6.098866022 | C17: =$C$3*EXP(-$A$1*AmgEmpWS!$A17) -> 6.098866022 | D17: =$C$3*EXP(-$A$1*AmgEmpWS!$A17) -> 6.098866022 | E17: =$C$3*EXP(-$A$1*AmgEmpWS!$A17) -> 6.098866022 | F17: =$C$3*EXP(-$A$1*AmgEmpWS!$A17) -> 6.098866022 | G17: =$C$3*EXP(-$A$1*AmgEmpWS!$A17) -> 6.098866022 | H17: =$C$3*EXP(-$A$1*AmgEmpWS!$A17) -> 6.098866022 | I17: 17 | J17: =((Q17-EmpiricAMGcalc!$T$11)^2)/EmpiricAMGcalc!$T$11 -> 8.545829759 | K17: =((R17-EmpiricAMGcalc!$T$12)^2)/EmpiricAMGcalc!$T$12 -> 96.92371332 | L17: 1800 | M17: 12 | N17: 105.4695431 | O17: 900 | P17: 0.5 | Q17: 33.07350738 | R17: 5.172492085 | S17: 350.8413936
A18: 7.5 | B18: =HLOOKUP(EmpiricAMGcalc!$J$32,AmgEmpWS!$C$1:$H$100,I18,FALSE) -> 5.62619994 | C18: =$C$3*EXP(-$A$1*AmgEmpWS!$A18) -> 5.62619994 | D18: =$C$3*EXP(-$A$1*AmgEmpWS!$A18) -> 5.62619994 | E18: =$C$3*EXP(-$A$1*AmgEmpWS!$A18) -> 5.62619994 | F18: =$C$3*EXP(-$A$1*AmgEmpWS!$A18) -> 5.62619994 | G18: =$C$3*EXP(-$A$1*AmgEmpWS!$A18) -> 5.62619994 | H18: =$C$3*EXP(-$A$1*AmgEmpWS!$A18) -> 5.62619994 | I18: 18 | J18: =((Q18-EmpiricAMGcalc!$T$11)^2)/EmpiricAMGcalc!$T$11 -> 11.1167834 | K18: =((R18-EmpiricAMGcalc!$T$12)^2)/EmpiricAMGcalc!$T$12 -> 108.570263 | L18: 1900 | M18: 12 | N18: 119.6870464 | O18: 950 | P18: 0.5 | Q18: 34.91092445 | R18: 5.459852757 | S18: 370.3325822
A19: 8 | B19: =HLOOKUP(EmpiricAMGcalc!$J$32,AmgEmpWS!$C$1:$H$100,I19,FALSE) -> 5.190165787 | C19: =$C$3*EXP(-$A$1*AmgEmpWS!$A19) -> 5.190165787 | D19: =$C$3*EXP(-$A$1*AmgEmpWS!$A19) -> 5.190165787 | E19: =$C$3*EXP(-$A$1*AmgEmpWS!$A19) -> 5.190165787 | F19: =$C$3*EXP(-$A$1*AmgEmpWS!$A19) -> 5.190165787 | G19: =$C$3*EXP(-$A$1*AmgEmpWS!$A19) -> 5.190165787 | H19: =$C$3*EXP(-$A$1*AmgEmpWS!$A19) -> 5.190165787 | I19: 19 | J19: =((Q19-EmpiricAMGcalc!$T$11)^2)/EmpiricAMGcalc!$T$11 -> 14.0253472 | K19: =((R19-EmpiricAMGcalc!$T$12)^2)/EmpiricAMGcalc!$T$12 -> 120.8774219 | L19: 2000 | M19: 12 | N19: 134.9027691 | O19: 1000 | P19: 0.5 | Q19: 36.74834153 | R19: 5.747213428 | S19: 389.8237707
A20: 8.5 | B20: =HLOOKUP(EmpiricAMGcalc!$J$32,AmgEmpWS!$C$1:$H$100,I20,FALSE) -> 4.787924564 | C20: =C19+C3 -> 24.05809031 | D20: =$C$3*EXP(-$A$1*AmgEmpWS!$A20) -> 4.787924564 | E20: =$C$3*EXP(-$A$1*AmgEmpWS!$A20) -> 4.787924564 | F20: =$C$3*EXP(-$A$1*AmgEmpWS!$A20) -> 4.787924564 | G20: =$C$3*EXP(-$A$1*AmgEmpWS!$A20) -> 4.787924564 | H20: =$C$3*EXP(-$A$1*AmgEmpWS!$A20) -> 4.787924564 | I20: 20 | J20: =((Q20-EmpiricAMGcalc!$T$11)^2)/EmpiricAMGcalc!$T$11 -> 11.26431927 | K20: =((R20-EmpiricAMGcalc!$T$12)^2)/EmpiricAMGcalc!$T$12 -> 0.008630728879 | L20: 200 | M20: 18 | N20: 11.27295 | O20: 150 | P20: 0.5 | Q20: 4.990456856 | R20: 0.2964508581 | S20: 38.98237707
A21: 9 | B21: =HLOOKUP(EmpiricAMGcalc!$J$32,AmgEmpWS!$C$1:$H$100,I21,FALSE) -> 4.416857297 | C21: =$C$20*EXP(-$A$1*(A21-8.5)) -> 22.19357267 | D21: =$C$3*EXP(-$A$1*AmgEmpWS!$A21) -> 4.416857297 | E21: =$C$3*EXP(-$A$1*AmgEmpWS!$A21) -> 4.416857297 | F21: =$C$3*EXP(-$A$1*AmgEmpWS!$A21) -> 4.416857297 | G21: =$C$3*EXP(-$A$1*AmgEmpWS!$A21) -> 4.416857297 | H21: =$C$3*EXP(-$A$1*AmgEmpWS!$A21) -> 4.416857297 | I21: 21 | J21: =((Q21-EmpiricAMGcalc!$T$11)^2)/EmpiricAMGcalc!$T$11 -> 8.905862574 | K21: =((R21-EmpiricAMGcalc!$T$12)^2)/EmpiricAMGcalc!$T$12 -> 0.08441094745 | L21: 266.6666667 | M21: 18 | N21: 8.990273521 | O21: 200 | P21: 0.5 | Q21: 6.653942475 | R21: 0.3952678108 | S21: 51.97650276
A22: 9.5 | B22: =HLOOKUP(EmpiricAMGcalc!$J$32,AmgEmpWS!$C$1:$H$100,I22,FALSE) -> 4.074547985 | C22: 20.47355636 | D22: =$C$3*EXP(-$A$1*AmgEmpWS!$A22) -> 4.074547985 | E22: =$C$3*EXP(-$A$1*AmgEmpWS!$A22) -> 4.074547985 | F22: =$C$3*EXP(-$A$1*AmgEmpWS!$A22) -> 4.074547985 | G22: =$C$3*EXP(-$A$1*AmgEmpWS!$A22) -> 4.074547985 | H22: =$C$3*EXP(-$A$1*AmgEmpWS!$A22) -> 4.074547985 | I22: 22 | J22: =((Q22-EmpiricAMGcalc!$T$11)^2)/EmpiricAMGcalc!$T$11 -> 6.824124318 | K22: =((R22-EmpiricAMGcalc!$T$12)^2)/EmpiricAMGcalc!$T$12 -> 0.2383094871 | L22: 333.3333333 | M22: 18 | N22: 7.062433805 | O22: 250 | P22: 0.5 | Q22: 8.317428093 | R22: 0.4940847635 | S22: 64.97062845
A23: 10 | B23: =HLOOKUP(EmpiricAMGcalc!$J$32,AmgEmpWS!$C$1:$H$100,I23,FALSE) -> 3.758767867 | C23: 18.88684243 | D23: =$C$3*EXP(-$A$1*AmgEmpWS!$A23) -> 3.758767867 | E23: =$C$3*EXP(-$A$1*AmgEmpWS!$A23) -> 3.758767867 | F23: =$C$3*EXP(-$A$1*AmgEmpWS!$A23) -> 3.758767867 | G23: =$C$3*EXP(-$A$1*AmgEmpWS!$A23) -> 3.758767867 | H23: =$C$3*EXP(-$A$1*AmgEmpWS!$A23) -> 3.758767867 | I23: 23 | J23: =((Q23-EmpiricAMGcalc!$T$11)^2)/EmpiricAMGcalc!$T$11 -> 5.019104502 | K23: =((R23-EmpiricAMGcalc!$T$12)^2)/EmpiricAMGcalc!$T$12 -> 0.470326348 | L23: 400 | M23: 18 | N23: 5.48943085 | O23: 300 | P23: 0.5 | Q23: 9.980913712 | R23: 0.5929017162 | S23: 77.96475414
A24: 10.5 | B24: =HLOOKUP(EmpiricAMGcalc!$J$32,AmgEmpWS!$C$1:$H$100,I24,FALSE) -> 3.467460914 | C24: 17.42309987 | D24: =$C$3*EXP(-$A$1*AmgEmpWS!$A24) -> 3.467460914 | E24: =$C$3*EXP(-$A$1*AmgEmpWS!$A24) -> 3.467460914 | F24: =$C$3*EXP(-$A$1*AmgEmpWS!$A24) -> 3.467460914 | G24: =$C$3*EXP(-$A$1*AmgEmpWS!$A24) -> 3.467460914 | H24: =$C$3*EXP(-$A$1*AmgEmpWS!$A24) -> 3.467460914 | I24: 24 | J24: =((Q24-EmpiricAMGcalc!$T$11)^2)/EmpiricAMGcalc!$T$11 -> 3.490803127 | K24: =((R24-EmpiricAMGcalc!$T$12)^2)/EmpiricAMGcalc!$T$12 -> 0.78046153 | L24: 466.6666667 | M24: 18 | N24: 4.271264657 | O24: 350 | P24: 0.5 | Q24: 11.64439933 | R24: 0.6917186689 | S24: 90.95887983
A25: 11 | B25: =HLOOKUP(EmpiricAMGcalc!$J$32,AmgEmpWS!$C$1:$H$100,I25,FALSE) -> 3.198730439 | C25: 16.0727983 | D25: =$C$3*EXP(-$A$1*AmgEmpWS!$A25) -> 3.198730439 | E25: =$C$3*EXP(-$A$1*AmgEmpWS!$A25) -> 3.198730439 | F25: =$C$3*EXP(-$A$1*AmgEmpWS!$A25) -> 3.198730439 | G25: =$C$3*EXP(-$A$1*AmgEmpWS!$A25) -> 3.198730439 | H25: =$C$3*EXP(-$A$1*AmgEmpWS!$A25) -> 3.198730439 | I25: 25 | J25: =((Q25-EmpiricAMGcalc!$T$11)^2)/EmpiricAMGcalc!$T$11 -> 2.239220193 | K25: =((R25-EmpiricAMGcalc!$T$12)^2)/EmpiricAMGcalc!$T$12 -> 1.168715033 | L25: 533.3333333 | M25: 18 | N25: 3.407935226 | O25: 400 | P25: 0.5 | Q25: 13.30788495 | R25: 0.7905356216 | S25: 103.9530055
A26: 11.5 | B26: =HLOOKUP(EmpiricAMGcalc!$J$32,AmgEmpWS!$C$1:$H$100,I26,FALSE) -> 2.95082675 | C26: 14.82714598 | D26: =$C$3*EXP(-$A$1*AmgEmpWS!$A26) -> 2.95082675 | E26: =$C$3*EXP(-$A$1*AmgEmpWS!$A26) -> 2.95082675 | F26: =$C$3*EXP(-$A$1*AmgEmpWS!$A26) -> 2.95082675 | G26: =$C$3*EXP(-$A$1*AmgEmpWS!$A26) -> 2.95082675 | H26: =$C$3*EXP(-$A$1*AmgEmpWS!$A26) -> 2.95082675 | I26: 26 | J26: =((Q26-EmpiricAMGcalc!$T$11)^2)/EmpiricAMGcalc!$T$11 -> 1.264355698 | K26: =((R26-EmpiricAMGcalc!$T$12)^2)/EmpiricAMGcalc!$T$12 -> 1.635086857 | L26: 600 | M26: 18 | N26: 2.899442556 | O26: 450 | P26: 0.5 | Q26: 14.97137057 | R26: 0.8893525744 | S26: 116.9471312
A27: 12 | B27: =HLOOKUP(EmpiricAMGcalc!$J$32,AmgEmpWS!$C$1:$H$100,I27,FALSE) -> 2.722135758 | C27: 13.67803253 | D27: =$C$3*EXP(-$A$1*AmgEmpWS!$A27) -> 2.722135758 | E27: =$C$3*EXP(-$A$1*AmgEmpWS!$A27) -> 2.722135758 | F27: =$C$3*EXP(-$A$1*AmgEmpWS!$A27) -> 2.722135758 | G27: =$C$3*EXP(-$A$1*AmgEmpWS!$A27) -> 2.722135758 | H27: =$C$3*EXP(-$A$1*AmgEmpWS!$A27) -> 2.722135758 | I27: 27 | J27: =((Q27-EmpiricAMGcalc!$T$11)^2)/EmpiricAMGcalc!$T$11 -> 0.5662096443 | K27: =((R27-EmpiricAMGcalc!$T$12)^2)/EmpiricAMGcalc!$T$12 -> 2.179577003 | L27: 666.6666667 | M27: 18 | N27: 2.745786647 | O27: 500 | P27: 0.5 | Q27: 16.63485619 | R27: 0.9881695271 | S27: 129.9412569
A28: 12.5 | B28: =HLOOKUP(EmpiricAMGcalc!$J$32,AmgEmpWS!$C$1:$H$100,I28,FALSE) -> 2.511168467 | C28: 12.61797611 | D28: =D27+D3 -> 21.59006029 | E28: =$C$3*EXP(-$A$1*AmgEmpWS!$A28) -> 2.511168467 | F28: =$C$3*EXP(-$A$1*AmgEmpWS!$A28) -> 2.511168467 | G28: =$C$3*EXP(-$A$1*AmgEmpWS!$A28) -> 2.511168467 | H28: =$C$3*EXP(-$A$1*AmgEmpWS!$A28) -> 2.511168467 | I28: 28 | J28: =((Q28-EmpiricAMGcalc!$T$11)^2)/EmpiricAMGcalc!$T$11 -> 0.1447820306 | K28: =((R28-EmpiricAMGcalc!$T$12)^2)/EmpiricAMGcalc!$T$12 -> 2.802185469 | L28: 733.3333333 | M28: 18 | N28: 2.9469675 | O28: 550 | P28: 0.5 | Q28: 18.29834181 | R28: 1.08698648 | S28: 142.9353826
A29: 13 | B29: =HLOOKUP(EmpiricAMGcalc!$J$32,AmgEmpWS!$C$1:$H$100,I29,FALSE) -> 2.316551279 | C29: 11.64007476 | D29: =$D$28*EXP(-$A$1*(A29-12.5)) -> 19.91681658 | E29: =$C$3*EXP(-$A$1*AmgEmpWS!$A29) -> 2.316551279 | F29: =$C$3*EXP(-$A$1*AmgEmpWS!$A29) -> 2.316551279 | G29: =$C$3*EXP(-$A$1*AmgEmpWS!$A29) -> 2.316551279 | H29: =$C$3*EXP(-$A$1*AmgEmpWS!$A29) -> 2.316551279 | I29: 29 | J29: =((Q29-EmpiricAMGcalc!$T$11)^2)/EmpiricAMGcalc!$T$11 -> 7.285727864e-05 | K29: =((R29-EmpiricAMGcalc!$T$12)^2)/EmpiricAMGcalc!$T$12 -> 3.502912257 | L29: 800 | M29: 18 | N29: 3.502985114 | O29: 600 | P29: 0.5 | Q29: 19.96182742 | R29: 1.185803432 | S29: 155.9295083
A30: 13.5 | B30: =HLOOKUP(EmpiricAMGcalc!$J$32,AmgEmpWS!$C$1:$H$100,I30,FALSE) -> 2.137017048 | C30: 10.7379614 | D30: 18.37325034 | E30: =$C$3*EXP(-$A$1*AmgEmpWS!$A30) -> 2.137017048 | F30: =$C$3*EXP(-$A$1*AmgEmpWS!$A30) -> 2.137017048 | G30: =$C$3*EXP(-$A$1*AmgEmpWS!$A30) -> 2.137017048 | H30: =$C$3*EXP(-$A$1*AmgEmpWS!$A30) -> 2.137017048 | I30: 30 | J30: =((Q30-EmpiricAMGcalc!$T$11)^2)/EmpiricAMGcalc!$T$11 -> 0.1320821243 | K30: =((R30-EmpiricAMGcalc!$T$12)^2)/EmpiricAMGcalc!$T$12 -> 4.281757366 | L30: 866.6666667 | M30: 18 | N30: 4.41383949 | O30: 650 | P30: 0.5 | Q30: 21.62531304 | R30: 1.284620385 | S30: 168.923634
A31: 14 | B31: =HLOOKUP(EmpiricAMGcalc!$J$32,AmgEmpWS!$C$1:$H$100,I31,FALSE) -> 1.971396838 | C31: 9.905762411 | D31: 16.9493115 | E31: =$C$3*EXP(-$A$1*AmgEmpWS!$A31) -> 1.971396838 | F31: =$C$3*EXP(-$A$1*AmgEmpWS!$A31) -> 1.971396838 | G31: =$C$3*EXP(-$A$1*AmgEmpWS!$A31) -> 1.971396838 | H31: =$C$3*EXP(-$A$1*AmgEmpWS!$A31) -> 1.971396838 | I31: 31 | J31: =((Q31-EmpiricAMGcalc!$T$11)^2)/EmpiricAMGcalc!$T$11 -> 0.5408098317 | K31: =((R31-EmpiricAMGcalc!$T$12)^2)/EmpiricAMGcalc!$T$12 -> 5.138720796 | L31: 933.3333333 | M31: 18 | N31: 5.679530627 | O31: 700 | P31: 0.5 | Q31: 23.28879866 | R31: 1.383437338 | S31: 181.9177597
A32: 14.5 | B32: =HLOOKUP(EmpiricAMGcalc!$J$32,AmgEmpWS!$C$1:$H$100,I32,FALSE) -> 1.818612301 | C32: 9.138059384 | D32: 15.63572884 | E32: =$C$3*EXP(-$A$1*AmgEmpWS!$A32) -> 1.818612301 | F32: =$C$3*EXP(-$A$1*AmgEmpWS!$A32) -> 1.818612301 | G32: =$C$3*EXP(-$A$1*AmgEmpWS!$A32) -> 1.818612301 | H32: =$C$3*EXP(-$A$1*AmgEmpWS!$A32) -> 1.818612301 | I32: 32 | J32: =((Q32-EmpiricAMGcalc!$T$11)^2)/EmpiricAMGcalc!$T$11 -> 1.226255979 | K32: =((R32-EmpiricAMGcalc!$T$12)^2)/EmpiricAMGcalc!$T$12 -> 6.073802547 | L32: 1000 | M32: 18 | N32: 7.300058526 | O32: 750 | P32: 0.5 | Q32: 24.95228428 | R32: 1.482254291 | S32: 194.9118853
A33: 15 | B33: =HLOOKUP(EmpiricAMGcalc!$J$32,AmgEmpWS!$C$1:$H$100,I33,FALSE) -> 1.677668665 | C33: 8.42985384 | D33: 14.42394969 | E33: =$C$3*EXP(-$A$1*AmgEmpWS!$A33) -> 1.677668665 | F33: =$C$3*EXP(-$A$1*AmgEmpWS!$A33) -> 1.677668665 | G33: =$C$3*EXP(-$A$1*AmgEmpWS!$A33) -> 1.677668665 | H33: =$C$3*EXP(-$A$1*AmgEmpWS!$A33) -> 1.677668665 | I33: 33 | J33: =((Q33-EmpiricAMGcalc!$T$11)^2)/EmpiricAMGcalc!$T$11 -> 2.188420567 | K33: =((R33-EmpiricAMGcalc!$T$12)^2)/EmpiricAMGcalc!$T$12 -> 7.087002619 | L33: 1066.666667 | M33: 18 | N33: 9.275423186 | O33: 800 | P33: 0.5 | Q33: 26.6157699 | R33: 1.581071243 | S33: 207.906011
A34: 15.5 | B34: =HLOOKUP(EmpiricAMGcalc!$J$32,AmgEmpWS!$C$1:$H$100,I34,FALSE) -> 1.547648253 | C34: 7.776534687 | D34: 13.30608421 | E34: =$C$3*EXP(-$A$1*AmgEmpWS!$A34) -> 1.547648253 | F34: =$C$3*EXP(-$A$1*AmgEmpWS!$A34) -> 1.547648253 | G34: =$C$3*EXP(-$A$1*AmgEmpWS!$A34) -> 1.547648253 | H34: =$C$3*EXP(-$A$1*AmgEmpWS!$A34) -> 1.547648253 | I34: 34 | J34: =((Q34-EmpiricAMGcalc!$T$11)^2)/EmpiricAMGcalc!$T$11 -> 3.427303596 | K34: =((R34-EmpiricAMGcalc!$T$12)^2)/EmpiricAMGcalc!$T$12 -> 8.178321012 | L34: =O34*24/M34 -> 1133.333333 | M34: 18 | N34: =SUM(J34:K34) -> 11.60562461 | O34: 850 | P34: 0.5 | Q34: =O34/$B$1/(1-EXP(-$A$1*M34)) -> 28.27925552 | R34: 1.679888196 | S34: =O34*24/M34/$B$1/$A$1 -> 220.9001367
A35: 16 | B35: =HLOOKUP(EmpiricAMGcalc!$J$32,AmgEmpWS!$C$1:$H$100,I35,FALSE) -> 1.427704507 | C35: 7.173848193 | D35: 12.27485403 | E35: =$C$3*EXP(-$A$1*AmgEmpWS!$A35) -> 1.427704507 | F35: =$C$3*EXP(-$A$1*AmgEmpWS!$A35) -> 1.427704507 | G35: =$C$3*EXP(-$A$1*AmgEmpWS!$A35) -> 1.427704507 | H35: =$C$3*EXP(-$A$1*AmgEmpWS!$A35) -> 1.427704507 | I35: 35 | J35: =((Q35-EmpiricAMGcalc!$T$11)^2)/EmpiricAMGcalc!$T$11 -> 4.942905065 | K35: =((R35-EmpiricAMGcalc!$T$12)^2)/EmpiricAMGcalc!$T$12 -> 9.347757727 | L35: 1200 | M35: 18 | N35: 14.29066279 | O35: 900 | P35: 0.5 | Q35: 29.94274114 | R35: 1.778705149 | S35: 233.8942624
A36: 16.5 | B36: =HLOOKUP(EmpiricAMGcalc!$J$32,AmgEmpWS!$C$1:$H$100,I36,FALSE) -> 1.31705648 | C36: =C35+C3 -> 26.04177272 | D36: 11.32354486 | E36: =$C$3*EXP(-$A$1*AmgEmpWS!$A36) -> 1.31705648 | F36: =$C$3*EXP(-$A$1*AmgEmpWS!$A36) -> 1.31705648 | G36: =$C$3*EXP(-$A$1*AmgEmpWS!$A36) -> 1.31705648 | H36: =$C$3*EXP(-$A$1*AmgEmpWS!$A36) -> 1.31705648 | I36: 36 | J36: =((Q36-EmpiricAMGcalc!$T$11)^2)/EmpiricAMGcalc!$T$11 -> 6.735224974 | K36: =((R36-EmpiricAMGcalc!$T$12)^2)/EmpiricAMGcalc!$T$12 -> 10.59531276 | L36: 1266.666667 | M36: 18 | N36: 17.33053774 | O36: 950 | P36: 0.5 | Q36: 31.60622675 | R36: 1.877522101 | S36: 246.8883881
A37: 17 | B37: =HLOOKUP(EmpiricAMGcalc!$J$32,AmgEmpWS!$C$1:$H$100,I37,FALSE) -> 1.214983746 | C37: =$C$36*EXP(-$A$1*(A37-16.5)) -> 24.0235184 | D37: 10.44596277 | E37: =$C$3*EXP(-$A$1*AmgEmpWS!$A37) -> 1.214983746 | F37: =$C$3*EXP(-$A$1*AmgEmpWS!$A37) -> 1.214983746 | G37: =$C$3*EXP(-$A$1*AmgEmpWS!$A37) -> 1.214983746 | H37: =$C$3*EXP(-$A$1*AmgEmpWS!$A37) -> 1.214983746 | I37: 37 | J37: =((Q37-EmpiricAMGcalc!$T$11)^2)/EmpiricAMGcalc!$T$11 -> 8.804263323 | K37: =((R37-EmpiricAMGcalc!$T$12)^2)/EmpiricAMGcalc!$T$12 -> 11.92098612 | L37: 1333.333333 | M37: 18 | N37: 20.72524944 | O37: 1000 | P37: 0.5 | Q37: 33.26971237 | R37: 1.976339054 | S37: 259.8825138
A38: 17.5 | B38: =HLOOKUP(EmpiricAMGcalc!$J$32,AmgEmpWS!$C$1:$H$100,I38,FALSE) -> 1.120821716 | C38: 22.16168011 | D38: 9.636393868 | E38: =$C$3*EXP(-$A$1*AmgEmpWS!$A38) -> 1.120821716 | F38: =$C$3*EXP(-$A$1*AmgEmpWS!$A38) -> 1.120821716 | G38: =$C$3*EXP(-$A$1*AmgEmpWS!$A38) -> 1.120821716 | H38: =$C$3*EXP(-$A$1*AmgEmpWS!$A38) -> 1.120821716 | I38: 38 | J38: =((Q38-EmpiricAMGcalc!$T$11)^2)/EmpiricAMGcalc!$T$11 -> 11.52579331 | K38: =((R38-EmpiricAMGcalc!$T$12)^2)/EmpiricAMGcalc!$T$12 -> 0.07986984284 | L38: 150 | M38: 24 | N38: 11.60566316 | O38: 150 | P38: 0.5 | Q38: 4.817251031 | R38: 0.1086937344 | S38: 29.2367828
A39: 18 | B39: =HLOOKUP(EmpiricAMGcalc!$J$32,AmgEmpWS!$C$1:$H$100,I39,FALSE) -> 1.033957304 | C39: 20.44413549 | D39: 8.889567078 | E39: =$C$3*EXP(-$A$1*AmgEmpWS!$A39) -> 1.033957304 | F39: =$C$3*EXP(-$A$1*AmgEmpWS!$A39) -> 1.033957304 | G39: =$C$3*EXP(-$A$1*AmgEmpWS!$A39) -> 1.033957304 | H39: =$C$3*EXP(-$A$1*AmgEmpWS!$A39) -> 1.033957304 | I39: 39 | J39: =((Q39-EmpiricAMGcalc!$T$11)^2)/EmpiricAMGcalc!$T$11 -> 9.216744583 | K39: =((R39-EmpiricAMGcalc!$T$12)^2)/EmpiricAMGcalc!$T$12 -> 0.04416304003 | L39: 200 | M39: 24 | N39: 9.260907623 | O39: 200 | P39: 0.5 | Q39: 6.423001375 | R39: 0.1449249791 | S39: 38.98237707
A40: 18.5 | B40: =HLOOKUP(EmpiricAMGcalc!$J$32,AmgEmpWS!$C$1:$H$100,I40,FALSE) -> 0.9538249411 | C40: 18.8597017 | D40: 8.20061985 | E40: =E39+E3 -> 19.90188183 | F40: =$C$3*EXP(-$A$1*AmgEmpWS!$A40) -> 0.9538249411 | G40: =$C$3*EXP(-$A$1*AmgEmpWS!$A40) -> 0.9538249411 | H40: =$C$3*EXP(-$A$1*AmgEmpWS!$A40) -> 0.9538249411 | I40: 40 | J40: =((Q40-EmpiricAMGcalc!$T$11)^2)/EmpiricAMGcalc!$T$11 -> 7.16553927 | K40: =((R40-EmpiricAMGcalc!$T$12)^2)/EmpiricAMGcalc!$T$12 -> 0.01895786201 | L40: 250 | M40: 24 | N40: 7.184497132 | O40: 250 | P40: 0.5 | Q40: 8.028751719 | R40: 0.1811562239 | S40: 48.72797134
A41: 19 | B41: =HLOOKUP(EmpiricAMGcalc!$J$32,AmgEmpWS!$C$1:$H$100,I41,FALSE) -> 0.879902888 | C41: 17.39806256 | D41: 7.56506648 | E41: =$E$40*EXP(-$A$1*(A41-18.5)) -> 18.35947305 | F41: =$C$3*EXP(-$A$1*AmgEmpWS!$A41) -> 0.879902888 | G41: =$C$3*EXP(-$A$1*AmgEmpWS!$A41) -> 0.879902888 | H41: =$C$3*EXP(-$A$1*AmgEmpWS!$A41) -> 0.879902888 | I41: 41 | J41: =((Q41-EmpiricAMGcalc!$T$11)^2)/EmpiricAMGcalc!$T$11 -> 5.372177374 | K41: =((R41-EmpiricAMGcalc!$T$12)^2)/EmpiricAMGcalc!$T$12 -> 0.004254308786 | L41: 300 | M41: 24 | N41: 5.376431683 | O41: 300 | P41: 0.5 | Q41: 9.634502063 | R41: 0.2173874687 | S41: 58.4735656
A42: 19.5 | B42: =HLOOKUP(EmpiricAMGcalc!$J$32,AmgEmpWS!$C$1:$H$100,I42,FALSE) -> 0.8117098421 | C42: 16.0497014 | D42: 6.97876891 | E42: 16.93660195 | F42: =$C$3*EXP(-$A$1*AmgEmpWS!$A42) -> 0.8117098421 | G42: =$C$3*EXP(-$A$1*AmgEmpWS!$A42) -> 0.8117098421 | H42: =$C$3*EXP(-$A$1*AmgEmpWS!$A42) -> 0.8117098421 | I42: 42 | J42: =((Q42-EmpiricAMGcalc!$T$11)^2)/EmpiricAMGcalc!$T$11 -> 3.836658895 | K42: =((R42-EmpiricAMGcalc!$T$12)^2)/EmpiricAMGcalc!$T$12 -> 5.238034974e-05 | L42: 350 | M42: 24 | N42: 3.836711275 | O42: 350 | P42: 0.5 | Q42: 11.24025241 | R42: 0.2536187135 | S42: 68.21915987
A43: 20 | B43: =HLOOKUP(EmpiricAMGcalc!$J$32,AmgEmpWS!$C$1:$H$100,I43,FALSE) -> 0.7488018016 | C43: 14.8058391 | D43: 6.437909782 | E43: 15.62400429 | F43: =$C$3*EXP(-$A$1*AmgEmpWS!$A43) -> 0.7488018016 | G43: =$C$3*EXP(-$A$1*AmgEmpWS!$A43) -> 0.7488018016 | H43: =$C$3*EXP(-$A$1*AmgEmpWS!$A43) -> 0.7488018016 | I43: 43 | J43: =((Q43-EmpiricAMGcalc!$T$11)^2)/EmpiricAMGcalc!$T$11 -> 2.558983832 | K43: =((R43-EmpiricAMGcalc!$T$12)^2)/EmpiricAMGcalc!$T$12 -> 0.006352076704 | L43: 400 | M43: 24 | N43: 2.565335909 | O43: 400 | P43: 0.5 | Q43: 12.84600275 | R43: 0.2898499583 | S43: 77.96475414
A44: 20.5 | B44: =HLOOKUP(EmpiricAMGcalc!$J$32,AmgEmpWS!$C$1:$H$100,I44,FALSE) -> 0.6907691752 | C44: 13.65837695 | D44: 5.938967588 | E44: 14.4131338 | F44: =$C$3*EXP(-$A$1*AmgEmpWS!$A44) -> 0.6907691752 | G44: =$C$3*EXP(-$A$1*AmgEmpWS!$A44) -> 0.6907691752 | H44: =$C$3*EXP(-$A$1*AmgEmpWS!$A44) -> 0.6907691752 | I44: 44 | J44: =((Q44-EmpiricAMGcalc!$T$11)^2)/EmpiricAMGcalc!$T$11 -> 1.539152186 | K44: =((R44-EmpiricAMGcalc!$T$12)^2)/EmpiricAMGcalc!$T$12 -> 0.02315339785 | L44: 450 | M44: 24 | N44: 1.562305584 | O44: 450 | P44: 0.5 | Q44: 14.45175309 | R44: 0.3260812031 | S44: 87.7103484
A45: 21 | B45: =HLOOKUP(EmpiricAMGcalc!$J$32,AmgEmpWS!$C$1:$H$100,I45,FALSE) -> 0.637234115 | C45: 12.59984385 | D45: 5.478693739 | E45: 13.29610656 | F45: =$C$3*EXP(-$A$1*AmgEmpWS!$A45) -> 0.637234115 | G45: =$C$3*EXP(-$A$1*AmgEmpWS!$A45) -> 0.637234115 | H45: =$C$3*EXP(-$A$1*AmgEmpWS!$A45) -> 0.637234115 | I45: 45 | J45: =((Q45-EmpiricAMGcalc!$T$11)^2)/EmpiricAMGcalc!$T$11 -> 0.7771639571 | K45: =((R45-EmpiricAMGcalc!$T$12)^2)/EmpiricAMGcalc!$T$12 -> 0.05045634378 | L45: 500 | M45: 24 | N45: 0.8276203009 | O45: 500 | P45: 0.5 | Q45: 16.05750344 | R45: 0.3623124479 | S45: 97.45594267
A46: 21.5 | B46: =HLOOKUP(EmpiricAMGcalc!$J$32,AmgEmpWS!$C$1:$H$100,I46,FALSE) -> 0.5878480568 | C46: 11.62334776 | D46: 5.054091412 | E46: 12.26564966 | F46: =$C$3*EXP(-$A$1*AmgEmpWS!$A46) -> 0.5878480568 | G46: =$C$3*EXP(-$A$1*AmgEmpWS!$A46) -> 0.5878480568 | H46: =$C$3*EXP(-$A$1*AmgEmpWS!$A46) -> 0.5878480568 | I46: 46 | J46: =((Q46-EmpiricAMGcalc!$T$11)^2)/EmpiricAMGcalc!$T$11 -> 0.2730191445 | K46: =((R46-EmpiricAMGcalc!$T$12)^2)/EmpiricAMGcalc!$T$12 -> 0.08826091451 | L46: 550 | M46: 24 | N46: 0.361280059 | O46: 550 | P46: 0.5 | Q46: 17.66325378 | R46: 0.3985436927 | S46: 107.2015369
A47: 22 | B47: =HLOOKUP(EmpiricAMGcalc!$J$32,AmgEmpWS!$C$1:$H$100,I47,FALSE) -> 0.5422894502 | C47: 10.72253076 | D47: 4.662396042 | E47: 11.31505383 | F47: =$C$3*EXP(-$A$1*AmgEmpWS!$A47) -> 0.5422894502 | G47: =$C$3*EXP(-$A$1*AmgEmpWS!$A47) -> 0.5422894502 | H47: =$C$3*EXP(-$A$1*AmgEmpWS!$A47) -> 0.5422894502 | I47: 47 | J47: =((Q47-EmpiricAMGcalc!$T$11)^2)/EmpiricAMGcalc!$T$11 -> 0.02671774843 | K47: =((R47-EmpiricAMGcalc!$T$12)^2)/EmpiricAMGcalc!$T$12 -> 0.2722665508 | L47: 600 | M47: 24 | N47: 0.2989842992 | O47: 600 | P47: 1.5 | Q47: 19.26900413 | R47: =Q47*EXP(-$A$1*(M47-P47)) -> 0.5108958369 | S47: 116.9471312
A48: 22.5 | B48: =HLOOKUP(EmpiricAMGcalc!$J$32,AmgEmpWS!$C$1:$H$100,I48,FALSE) -> 0.5002616653 | C48: 9.891527651 | D48: 4.301057317 | E48: 10.43812981 | F48: =$C$3*EXP(-$A$1*AmgEmpWS!$A48) -> 0.5002616653 | G48: =$C$3*EXP(-$A$1*AmgEmpWS!$A48) -> 0.5002616653 | H48: =$C$3*EXP(-$A$1*AmgEmpWS!$A48) -> 0.5002616653 | I48: 48 | J48: =((Q48-EmpiricAMGcalc!$T$11)^2)/EmpiricAMGcalc!$T$11 -> 0.03825976907 | K48: =((R48-EmpiricAMGcalc!$T$12)^2)/EmpiricAMGcalc!$T$12 -> 0.6411933369 | L48: 650 | M48: 24 | N48: 0.679453106 | O48: 650 | P48: 2.5 | Q48: 20.87475447 | R48: 0.6503727441 | S48: 126.6927255
A49: 23 | B49: =HLOOKUP(EmpiricAMGcalc!$J$32,AmgEmpWS!$C$1:$H$100,I49,FALSE) -> 0.461491061 | C49: 9.124927827 | D49: 3.967722579 | E49: 9.62916796 | F49: =$C$3*EXP(-$A$1*AmgEmpWS!$A49) -> 0.461491061 | G49: =$C$3*EXP(-$A$1*AmgEmpWS!$A49) -> 0.461491061 | H49: =$C$3*EXP(-$A$1*AmgEmpWS!$A49) -> 0.461491061 | I49: 49 | J49: =((Q49-EmpiricAMGcalc!$T$11)^2)/EmpiricAMGcalc!$T$11 -> 0.3076452064 | K49: =((R49-EmpiricAMGcalc!$T$12)^2)/EmpiricAMGcalc!$T$12 -> 1.313446682 | L49: 700 | M49: 24 | N49: 1.621091889 | O49: 700 | P49: 3.5 | Q49: 22.48050481 | R49: 0.8230285077 | S49: 136.4383197
A50: 23.5 | B50: =HLOOKUP(EmpiricAMGcalc!$J$32,AmgEmpWS!$C$1:$H$100,I50,FALSE) -> 0.4257252037 | C50: 8.417739988 | D50: 3.6602215 | E50: 8.882901183 | F50: =$C$3*EXP(-$A$1*AmgEmpWS!$A50) -> 0.4257252037 | G50: =$C$3*EXP(-$A$1*AmgEmpWS!$A50) -> 0.4257252037 | H50: =$C$3*EXP(-$A$1*AmgEmpWS!$A50) -> 0.4257252037 | I50: 50 | J50: =((Q50-EmpiricAMGcalc!$T$11)^2)/EmpiricAMGcalc!$T$11 -> 0.8348740603 | K50: =((R50-EmpiricAMGcalc!$T$12)^2)/EmpiricAMGcalc!$T$12 -> 2.47247742 | L50: 750 | M50: 24 | N50: 3.30735148 | O50: 750 | P50: 4.5 | Q50: 24.08625516 | R50: 1.03620567 | S50: 146.183914
A51: 24 | B51: =HLOOKUP(EmpiricAMGcalc!$J$32,AmgEmpWS!$C$1:$H$100,I51,FALSE) -> 0.3927312236 | C51: 7.765359666 | D51: 3.376551954 | E51: 8.194470566 | F51: =$C$3*EXP(-$A$1*AmgEmpWS!$A51) -> 0.3927312236 | G51: =$C$3*EXP(-$A$1*AmgEmpWS!$A51) -> 0.3927312236 | H51: =$C$3*EXP(-$A$1*AmgEmpWS!$A51) -> 0.3927312236 | I51: 51 | J51: =((Q51-EmpiricAMGcalc!$T$11)^2)/EmpiricAMGcalc!$T$11 -> 1.619946331 | K51: =((R51-EmpiricAMGcalc!$T$12)^2)/EmpiricAMGcalc!$T$12 -> 4.399932544 | L51: 800 | M51: 24 | N51: 6.019878875 | O51: 800 | P51: 5.5 | Q51: 25.6920055 | R51: 1.298800809 | S51: 155.9295083
A52: 24.5 | B52: =HLOOKUP(EmpiricAMGcalc!$J$32,AmgEmpWS!$C$1:$H$100,I52,FALSE) -> 19.26065575 | C52: =C51+C3 -> 26.63328419 | D52: =D51+D3 -> 22.24447648 | E52: 7.559393769 | F52: =F51+F3 -> 19.26065575 | G52: =$C$3*EXP(-$A$1*AmgEmpWS!$A52) -> 0.3622942985 | H52: =$C$3*EXP(-$A$1*AmgEmpWS!$A52) -> 0.3622942985 | I52: 52 | J52: =((Q52-EmpiricAMGcalc!$T$11)^2)/EmpiricAMGcalc!$T$11 -> 2.662862018 | K52: =((R52-EmpiricAMGcalc!$T$12)^2)/EmpiricAMGcalc!$T$12 -> 7.524966618 | L52: 850 | M52: 24 | N52: 10.18782864 | O52: 850 | P52: 6.5 | Q52: 27.29775584 | R52: 1.62158363 | S52: 165.6751025
A53: 25 | B53: =HLOOKUP(EmpiricAMGcalc!$J$32,AmgEmpWS!$C$1:$H$100,I53,FALSE) -> 17.76794241 | C53: =$C$52*EXP(-$A$1*(A53-24.5)) -> 24.56918735 | D53: =$D$52*EXP(-$A$1*(A53-24.5)) -> 20.52051509 | E53: 6.973535838 | F53: =$F$52*EXP(-$A$1*(A53-24.5)) -> 17.76794241 | G53: =$C$3*EXP(-$A$1*AmgEmpWS!$A53) -> 0.3342162548 | H53: =$C$3*EXP(-$A$1*AmgEmpWS!$A53) -> 0.3342162548 | I53: 53 | J53: =((Q53-EmpiricAMGcalc!$T$11)^2)/EmpiricAMGcalc!$T$11 -> 3.963621122 | K53: =((R53-EmpiricAMGcalc!$T$12)^2)/EmpiricAMGcalc!$T$12 -> 12.49735843 | L53: 900 | M53: 24 | N53: 16.46097955 | O53: 900 | P53: 7.5 | Q53: 28.90350619 | R53: 2.017580156 | S53: 175.4206968
A54: 25.5 | B54: =HLOOKUP(EmpiricAMGcalc!$J$32,AmgEmpWS!$C$1:$H$100,I54,FALSE) -> 16.39091532 | C54: 22.66505936 | D54: 18.93016183 | E54: 6.433082276 | F54: 16.39091532 | G54: =$C$3*EXP(-$A$1*AmgEmpWS!$A54) -> 0.3083142778 | H54: =$C$3*EXP(-$A$1*AmgEmpWS!$A54) -> 0.3083142778 | I54: 54 | J54: =((Q54-EmpiricAMGcalc!$T$11)^2)/EmpiricAMGcalc!$T$11 -> 5.522223643 | K54: =((R54-EmpiricAMGcalc!$T$12)^2)/EmpiricAMGcalc!$T$12 -> 20.29561375 | L54: 950 | M54: 24 | N54: 25.81783739 | O54: 950 | P54: 8.5 | Q54: 30.50925653 | R54: 2.502532672 | S54: 185.1662911
A55: 26 | B55: =HLOOKUP(EmpiricAMGcalc!$J$32,AmgEmpWS!$C$1:$H$100,I55,FALSE) -> 15.12060873 | C55: 20.90850252 | D55: 17.46306198 | E55: 5.934514218 | F55: 15.12060873 | G55: =$C$3*EXP(-$A$1*AmgEmpWS!$A55) -> 0.2844197208 | H55: =$C$3*EXP(-$A$1*AmgEmpWS!$A55) -> 0.2844197208 | I55: 55 | J55: =((Q55-EmpiricAMGcalc!$T$11)^2)/EmpiricAMGcalc!$T$11 -> 7.33866958 | K55: =((R55-EmpiricAMGcalc!$T$12)^2)/EmpiricAMGcalc!$T$12 -> 32.38637849 | L55: 1000 | M55: 24 | N55: 39.72504807 | O55: 1000 | P55: 9.5 | Q55: 32.11500688 | R55: 3.095451567 | S55: 194.9118853
A56: 26.5 | B56: =HLOOKUP(EmpiricAMGcalc!$J$32,AmgEmpWS!$C$1:$H$100,I56,FALSE) -> 13.94875172 | C56: 19.28807999 | D56: 16.10966333 | E56: 5.474585507 | F56: 13.94875172 | G56: =$C$3*EXP(-$A$1*AmgEmpWS!$A56) -> 0.2623770075 | H56: =$C$3*EXP(-$A$1*AmgEmpWS!$A56) -> 0.2623770075 | I56: 56 | J56: =((Q56-EmpiricAMGcalc!$T$11)^2)/EmpiricAMGcalc!$T$11 -> 11.65682955 | K56: =((R56-EmpiricAMGcalc!$T$12)^2)/EmpiricAMGcalc!$T$12 -> 0.1192863298 | L56: 100 | M56: 36 | N56: 11.77611588 | O56: 150 | P56: 10.5 | Q56: 4.731188945 | R56: 0.07731073444 | S56: 19.49118853
A57: 27 | B57: =HLOOKUP(EmpiricAMGcalc!$J$32,AmgEmpWS!$C$1:$H$100,I57,FALSE) -> 12.86771439 | C57: 17.79324125 | D57: 14.86115394 | E57: 5.050301571 | F57: 12.86771439 | G57: =$C$3*EXP(-$A$1*AmgEmpWS!$A57) -> 0.2420426188 | H57: =$C$3*EXP(-$A$1*AmgEmpWS!$A57) -> 0.2420426188 | I57: 57 | J57: =((Q57-EmpiricAMGcalc!$T$11)^2)/EmpiricAMGcalc!$T$11 -> 9.373198264 | K57: =((R57-EmpiricAMGcalc!$T$12)^2)/EmpiricAMGcalc!$T$12 -> 0.06643143709 | L57: 133.3333333 | M57: 36 | N57: 9.439629702 | O57: 200 | P57: 11.5 | Q57: 6.308251927 | R57: 0.1211285164 | S57: 25.98825138
A58: 27.5 | B58: =HLOOKUP(EmpiricAMGcalc!$J$32,AmgEmpWS!$C$1:$H$100,I58,FALSE) -> 11.87045816 | C58: 16.41425348 | D58: 13.70940485 | E58: 4.658899916 | F58: 11.87045816 | G58: =$C$3*EXP(-$A$1*AmgEmpWS!$A58) -> 0.2232841585 | H58: =$C$3*EXP(-$A$1*AmgEmpWS!$A58) -> 0.2232841585 | I58: 58 | J58: =((Q58-EmpiricAMGcalc!$T$11)^2)/EmpiricAMGcalc!$T$11 -> 7.338279743 | K58: =((R58-EmpiricAMGcalc!$T$12)^2)/EmpiricAMGcalc!$T$12 -> 0.02078222284 | L58: 166.6666667 | M58: 36 | N58: 7.359061966 | O58: 250 | P58: 12.5 | Q58: 7.885314909 | R58: 0.1779197967 | S58: 32.48531422
A59: 28 | B59: =HLOOKUP(EmpiricAMGcalc!$J$32,AmgEmpWS!$C$1:$H$100,I59,FALSE) -> 10.95048994 | C59: 15.14213817 | D59: 12.64691706 | E59: 4.297832144 | F59: 10.95048994 | G59: =$C$3*EXP(-$A$1*AmgEmpWS!$A59) -> 0.2059794911 | H59: =$C$3*EXP(-$A$1*AmgEmpWS!$A59) -> 0.2059794911 | I59: 59 | J59: =((Q59-EmpiricAMGcalc!$T$11)^2)/EmpiricAMGcalc!$T$11 -> 5.552073986 | K59: =((R59-EmpiricAMGcalc!$T$12)^2)/EmpiricAMGcalc!$T$12 -> 3.127527253e-06 | L59: 200 | M59: 36 | N59: 5.552077113 | O59: 300 | P59: 13.5 | Q59: 9.462377891 | R59: 0.2508842408 | S59: 38.98237707
A60: 28.5 | B60: =HLOOKUP(EmpiricAMGcalc!$J$32,AmgEmpWS!$C$1:$H$100,I60,FALSE) -> 10.10181985 | C60: 13.96861261 | D60: 11.66677277 | E60: 3.964747358 | F60: 10.10181985 | G60: =$C$3*EXP(-$A$1*AmgEmpWS!$A60) -> 0.1900159466 | H60: =$C$3*EXP(-$A$1*AmgEmpWS!$A60) -> 0.1900159466 | I60: 60 | J60: =((Q60-EmpiricAMGcalc!$T$11)^2)/EmpiricAMGcalc!$T$11 -> 4.014580994 | K60: =((R60-EmpiricAMGcalc!$T$12)^2)/EmpiricAMGcalc!$T$12 -> 0.03530207705 | L60: 233.3333333 | M60: 36 | N60: 4.049883071 | O60: 350 | P60: 14.5 | Q60: 11.03944087 | R60: 0.3439442349 | S60: 45.47943991
A61: 29 | B61: =HLOOKUP(EmpiricAMGcalc!$J$32,AmgEmpWS!$C$1:$H$100,I61,FALSE) -> 9.318922241 | C61: 12.88603605 | D61: 10.76259029 | E61: 3.65747686 | F61: 9.318922241 | G61: =$C$3*EXP(-$A$1*AmgEmpWS!$A61) -> 0.1752895872 | H61: =$C$3*EXP(-$A$1*AmgEmpWS!$A61) -> 0.1752895872 | I61: 61 | J61: =((Q61-EmpiricAMGcalc!$T$11)^2)/EmpiricAMGcalc!$T$11 -> 2.725800767 | K61: =((R61-EmpiricAMGcalc!$T$12)^2)/EmpiricAMGcalc!$T$12 -> 0.1796062263 | L61: 266.6666667 | M61: 36 | N61: 2.905406993 | O61: 400 | P61: 15.5 | Q61: 12.61650385 | R61: 0.4618998739 | S61: 51.97650276
A62: 29.5 | B62: =HLOOKUP(EmpiricAMGcalc!$J$32,AmgEmpWS!$C$1:$H$100,I62,FALSE) -> 8.596699709 | C62: 11.88735988 | D62: 9.928482548 | E62: 3.374020026 | F62: 8.596699709 | G62: =$C$3*EXP(-$A$1*AmgEmpWS!$A62) -> 0.1617045302 | H62: =$C$3*EXP(-$A$1*AmgEmpWS!$A62) -> 0.1617045302 | I62: 62 | J62: =((Q62-EmpiricAMGcalc!$T$11)^2)/EmpiricAMGcalc!$T$11 -> 1.685733304 | K62: =((R62-EmpiricAMGcalc!$T$12)^2)/EmpiricAMGcalc!$T$12 -> 0.5201757954 | L62: 300 | M62: 36 | N62: 2.2059091 | O62: 450 | P62: 16.5 | Q62: 14.19356684 | R62: 0.6106160685 | S62: 58.4735656
A63: 30 | B63: =HLOOKUP(EmpiricAMGcalc!$J$32,AmgEmpWS!$C$1:$H$100,I63,FALSE) -> 7.930449892 | C63: 10.96608176 | D63: 9.159018696 | E63: 3.11253128 | F63: 7.930449892 | G63: =$C$3*EXP(-$A$1*AmgEmpWS!$A63) -> 0.149172324 | H63: =$C$3*EXP(-$A$1*AmgEmpWS!$A63) -> 0.149172324 | I63: 63 | J63: =((Q63-EmpiricAMGcalc!$T$11)^2)/EmpiricAMGcalc!$T$11 -> 0.8943786068 | K63: =((R63-EmpiricAMGcalc!$T$12)^2)/EmpiricAMGcalc!$T$12 -> 1.197922646 | L63: 333.3333333 | M63: 36 | N63: 2.092301252 | O63: 500 | P63: 17.5 | Q63: 15.77062982 | R63: 0.797248263 | S63: 64.97062845
A64: 30.5 | B64: =HLOOKUP(EmpiricAMGcalc!$J$32,AmgEmpWS!$C$1:$H$100,I64,FALSE) -> 7.31583487 | C64: 10.1162033 | D64: 8.449188792 | E64: 2.871308082 | F64: 7.31583487 | G64: =$C$3*EXP(-$A$1*AmgEmpWS!$A64) -> 0.1376113719 | H64: =$C$3*EXP(-$A$1*AmgEmpWS!$A64) -> 0.1376113719 | I64: 64 | J64: =((Q64-EmpiricAMGcalc!$T$11)^2)/EmpiricAMGcalc!$T$11 -> 0.3517366742 | K64: =((R64-EmpiricAMGcalc!$T$12)^2)/EmpiricAMGcalc!$T$12 -> 2.436811871 | L64: 366.6666667 | M64: 36 | N64: 2.788548545 | O64: 550 | P64: 18.5 | Q64: 17.3476928 | R64: 1.030514553 | S64: 71.46769129
A65: 31 | B65: =HLOOKUP(EmpiricAMGcalc!$J$32,AmgEmpWS!$C$1:$H$100,I65,FALSE) -> 6.748852911 | C65: 9.332190964 | D65: 7.794371168 | E65: 2.648779839 | F65: 6.748852911 | G65: =$C$3*EXP(-$A$1*AmgEmpWS!$A65) -> 0.1269464011 | H65: =$C$3*EXP(-$A$1*AmgEmpWS!$A65) -> 0.1269464011 | I65: 65 | J65: =((Q65-EmpiricAMGcalc!$T$11)^2)/EmpiricAMGcalc!$T$11 -> 0.05780750645 | K65: =((R65-EmpiricAMGcalc!$T$12)^2)/EmpiricAMGcalc!$T$12 -> 4.588365592 | L65: 400 | M65: 36 | N65: 4.646173099 | O65: 600 | P65: 19.5 | Q65: 18.92475578 | R65: 1.321023528 | S65: 77.96475414
A66: 31.5 | B66: =HLOOKUP(EmpiricAMGcalc!$J$32,AmgEmpWS!$C$1:$H$100,I66,FALSE) -> 6.225812423 | C66: 8.608940097 | D66: 7.190302335 | E66: 2.44349768 | F66: 6.225812423 | G66: =$C$3*EXP(-$A$1*AmgEmpWS!$A66) -> 0.1171079725 | H66: =$C$3*EXP(-$A$1*AmgEmpWS!$A66) -> 0.1171079725 | I66: 66 | J66: =((Q66-EmpiricAMGcalc!$T$11)^2)/EmpiricAMGcalc!$T$11 -> 0.01259110357 | K66: =((R66-EmpiricAMGcalc!$T$12)^2)/EmpiricAMGcalc!$T$12 -> 8.198704637 | L66: =O66*24/M66 -> 433.3333333 | M66: 36 | N66: =SUM(J66:K66) -> 8.21129574 | O66: 650 | P66: 20.5 | Q66: =O66/$B$1/(1-EXP(-$A$1*M66)) -> 20.50181876 | R66: 1.681669012 | S66: =O66*24/M66/$B$1/$A$1 -> 84.46181698
A67: 32 | B67: =HLOOKUP(EmpiricAMGcalc!$J$32,AmgEmpWS!$C$1:$H$100,I67,FALSE) -> 5.743307912 | C67: 7.941741642 | D67: 6.633049229 | E67: 2.254125021 | F67: 5.743307912 | G67: =$C$3*EXP(-$A$1*AmgEmpWS!$A67) -> 0.1080320285 | H67: =$C$3*EXP(-$A$1*AmgEmpWS!$A67) -> 0.1080320285 | I67: 67 | J67: =((Q67-EmpiricAMGcalc!$T$11)^2)/EmpiricAMGcalc!$T$11 -> 0.2160874655 | K67: =((R67-EmpiricAMGcalc!$T$12)^2)/EmpiricAMGcalc!$T$12 -> 14.10911469 | L67: 466.6666667 | M67: 36 | N67: 14.32520215 | O67: 700 | P67: 21.5 | Q67: 22.07888175 | R67: 2.128105075 | S67: 90.95887983
A68: 32.5 | B68: =HLOOKUP(EmpiricAMGcalc!$J$32,AmgEmpWS!$C$1:$H$100,I68,FALSE) -> 5.298197815 | C68: =$C$67+C3 -> 26.80966617 | D68: 6.118983601 | E68: =E3+E67 -> 21.12204955 | F68: 5.298197815 | G68: =$C$3*EXP(-$A$1*AmgEmpWS!$A68) -> 0.09965947605 | H68: =$C$3*EXP(-$A$1*AmgEmpWS!$A68) -> 0.09965947605 | I68: 68 | J68: =((Q68-EmpiricAMGcalc!$T$11)^2)/EmpiricAMGcalc!$T$11 -> 0.6682965924 | K68: =((R68-EmpiricAMGcalc!$T$12)^2)/EmpiricAMGcalc!$T$12 -> 23.60633077 | L68: 500 | M68: 36 | N68: 24.27462736 | O68: 750 | P68: 22.5 | Q68: 23.65594473 | R68: 2.67931733 | S68: 97.45594267
A69: 33 | B69: =HLOOKUP(EmpiricAMGcalc!$J$32,AmgEmpWS!$C$1:$H$100,I69,FALSE) -> 4.88758404 | C69: =$C$68*EXP(-$A$1*(A69-32.5)) -> 24.73189961 | D69: 5.644758394 | E69: =$E$68*EXP(-$A$1*(A69-32.5)) -> 19.48507698 | F69: 4.88758404 | G69: =$C$3*EXP(-$A$1*AmgEmpWS!$A69) -> 0.09193580186 | H69: =$C$3*EXP(-$A$1*AmgEmpWS!$A69) -> 0.09193580186 | I69: 69 | J69: =((Q69-EmpiricAMGcalc!$T$11)^2)/EmpiricAMGcalc!$T$11 -> 1.369218484 | K69: =((R69-EmpiricAMGcalc!$T$12)^2)/EmpiricAMGcalc!$T$12 -> 38.64635589 | L69: 533.3333333 | M69: 36 | N69: 40.01557437 | O69: 800 | P69: 23.5 | Q69: 25.23300771 | R69: 3.358309665 | S69: 103.9530055
A70: 33.5 | B70: =HLOOKUP(EmpiricAMGcalc!$J$32,AmgEmpWS!$C$1:$H$100,I70,FALSE) -> 4.508793099 | C70: 22.81516131 | D70: 5.207285949 | E70: 17.97497084 | F70: 4.508793099 | G70: =$C$3*EXP(-$A$1*AmgEmpWS!$A70) -> 0.08481071745 | H70: =$C$3*EXP(-$A$1*AmgEmpWS!$A70) -> 0.08481071745 | I70: 70 | J70: =((Q70-EmpiricAMGcalc!$T$11)^2)/EmpiricAMGcalc!$T$11 -> 2.318853141 | K70: =((R70-EmpiricAMGcalc!$T$12)^2)/EmpiricAMGcalc!$T$12 -> 62.18676616 | L70: 566.6666667 | M70: 36 | N70: 64.5056193 | O70: 850 | P70: 24.5 | Q70: 26.81007069 | R70: 4.19292931 | S70: 110.4500684
A71: 34 | B71: =HLOOKUP(EmpiricAMGcalc!$J$32,AmgEmpWS!$C$1:$H$100,I71,FALSE) -> 4.159358703 | C71: 21.04697148 | D71: 4.803717902 | E71: 16.58189892 | F71: 4.159358703 | G71: =$C$3*EXP(-$A$1*AmgEmpWS!$A71) -> 0.0782378317 | H71: =$C$3*EXP(-$A$1*AmgEmpWS!$A71) -> 0.0782378317 | I71: 71 | J71: =((Q71-EmpiricAMGcalc!$T$11)^2)/EmpiricAMGcalc!$T$11 -> 3.517200562 | K71: =((R71-EmpiricAMGcalc!$T$12)^2)/EmpiricAMGcalc!$T$12 -> 98.67869977 | L71: 600 | M71: 36 | N71: 102.1959003 | O71: 900 | P71: 25.5 | Q71: 28.38713367 | R71: 5.216857653 | S71: 116.9471312
A72: 34.5 | B72: =HLOOKUP(EmpiricAMGcalc!$J$32,AmgEmpWS!$C$1:$H$100,I72,FALSE) -> 3.837005699 | C72: 19.41581751 | D72: 4.431426642 | E72: 15.29679097 | F72: 3.837005699 | G72: =$C$3*EXP(-$A$1*AmgEmpWS!$A72) -> 0.07217434888 | H72: =$C$3*EXP(-$A$1*AmgEmpWS!$A72) -> 0.07217434888 | I72: 72 | J72: =((Q72-EmpiricAMGcalc!$T$11)^2)/EmpiricAMGcalc!$T$11 -> 4.964260748 | K72: =((R72-EmpiricAMGcalc!$T$12)^2)/EmpiricAMGcalc!$T$12 -> 154.793387 | L72: 633.3333333 | M72: 36 | N72: 159.7576477 | O72: 950 | P72: 26.5 | Q72: 29.96419665 | R72: 6.470799527 | S72: 123.4441941
A73: 35 | B73: =HLOOKUP(EmpiricAMGcalc!$J$32,AmgEmpWS!$C$1:$H$100,I73,FALSE) -> 3.539635263 | C73: 17.91107903 | D73: 4.087988196 | E73: 14.11127972 | F73: 3.539635263 | G73: =$C$3*EXP(-$A$1*AmgEmpWS!$A73) -> 0.06658078992 | H73: =$C$3*EXP(-$A$1*AmgEmpWS!$A73) -> 0.06658078992 | I73: 73 | J73: =((Q73-EmpiricAMGcalc!$T$11)^2)/EmpiricAMGcalc!$T$11 -> 6.660033699 | K73: =((R73-EmpiricAMGcalc!$T$12)^2)/EmpiricAMGcalc!$T$12 -> 240.4924876 | L73: 666.6666667 | M73: 36 | N73: 247.1525213 | O73: 1000 | P73: 27.5 | Q73: 31.54125964 | R73: 8.003910105 | S73: 129.9412569
A74: 35.5 | B74: =HLOOKUP(EmpiricAMGcalc!$J$32,AmgEmpWS!$C$1:$H$100,I74,FALSE) -> 3.265311229 | C74: 16.52295876 | D74: 3.771166453 | E74: 13.01764637 | F74: 3.265311229 | G74: =$C$3*EXP(-$A$1*AmgEmpWS!$A74) -> 0.06142073541 | H74: =$C$3*EXP(-$A$1*AmgEmpWS!$A74) -> 0.06142073541 | I74: 74 | J74: =((Q74-EmpiricAMGcalc!$T$11)^2)/EmpiricAMGcalc!$T$11 -> 11.67540883 | K74: =((R74-EmpiricAMGcalc!$T$12)^2)/EmpiricAMGcalc!$T$12 -> 0.008830203866 | L74: 75 | M74: 48 | N74: 11.68423903 | O74: 150 | P74: 28.5 | Q74: 4.719025669 | R74: 0.2030154178 | S74: 14.6183914
A75: 36 | B75: =HLOOKUP(EmpiricAMGcalc!$J$32,AmgEmpWS!$C$1:$H$100,I75,FALSE) -> 3.012247485 | C75: 15.24241871 | D75: 3.478898601 | E75: 12.00877031 | F75: 3.012247485 | G75: =G3+G74 -> 18.92934526 | H75: =$C$3*EXP(-$A$1*AmgEmpWS!$A75) -> 0.05666058849 | I75: 75 | J75: =((Q75-EmpiricAMGcalc!$T$11)^2)/EmpiricAMGcalc!$T$11 -> 9.395416284 | K75: =((R75-EmpiricAMGcalc!$T$12)^2)/EmpiricAMGcalc!$T$12 -> 0.01853924944 | L75: 100 | M75: 48 | N75: 9.413955534 | O75: 200 | P75: 29.5 | Q75: 6.292034225 | R75: 0.3180794562 | S75: 19.49118853
A76: 36.5 | B76: =HLOOKUP(EmpiricAMGcalc!$J$32,AmgEmpWS!$C$1:$H$100,I76,FALSE) -> 2.778796347 | C76: 14.06112135 | D76: =D3+D75 -> 22.34682313 | E76: 11.07808281 | F76: 2.778796347 | G76: =$G$75*EXP(-$A$1*(A76-36)) -> 17.4623087 | H76: =$C$3*EXP(-$A$1*AmgEmpWS!$A76) -> 0.05226935604 | I76: 76 | J76: =((Q76-EmpiricAMGcalc!$T$11)^2)/EmpiricAMGcalc!$T$11 -> 7.362859335 | K76: =((R76-EmpiricAMGcalc!$T$12)^2)/EmpiricAMGcalc!$T$12 -> 0.1887232901 | L76: 125 | M76: 48 | N76: 7.551582625 | O76: 250 | P76: 30.5 | Q76: 7.865042782 | R76: 0.4672114696 | S76: 24.36398567
A77: 37 | B77: =HLOOKUP(EmpiricAMGcalc!$J$32,AmgEmpWS!$C$1:$H$100,I77,FALSE) -> 2.563437823 | C77: 12.9713753 | D77: =$D$76*EXP(-$A$1*(A77-36.5)) -> 20.61492981 | E77: 10.21952419 | F77: 2.563437823 | G77: 16.10896842 | H77: =$C$3*EXP(-$A$1*AmgEmpWS!$A77) -> 0.04821844697 | I77: 77 | J77: =((Q77-EmpiricAMGcalc!$T$11)^2)/EmpiricAMGcalc!$T$11 -> 5.577737977 | K77: =((R77-EmpiricAMGcalc!$T$12)^2)/EmpiricAMGcalc!$T$12 -> 0.6685144788 | L77: 150 | M77: 48 | N77: 6.246252456 | O77: 300 | P77: 31.5 | Q77: 9.438051338 | R77: 0.6588136736 | S77: 29.2367828
A78: 37.5 | B78: =HLOOKUP(EmpiricAMGcalc!$J$32,AmgEmpWS!$C$1:$H$100,I78,FALSE) -> 2.364769726 | C78: 11.96608528 | D78: 19.01725935 | E78: 9.427504419 | F78: 2.364769726 | G78: 14.8605129 | H78: =$C$3*EXP(-$A$1*AmgEmpWS!$A78) -> 0.04448148598 | I78: 78 | J78: =((Q78-EmpiricAMGcalc!$T$11)^2)/EmpiricAMGcalc!$T$11 -> 4.040052211 | K78: =((R78-EmpiricAMGcalc!$T$12)^2)/EmpiricAMGcalc!$T$12 -> 1.706608447 | L78: 175 | M78: 48 | N78: 5.746660658 | O78: 350 | P78: 32.5 | Q78: 11.01105989 | R78: 0.9031861233 | S78: 34.10957994
A79: 38 | B79: =HLOOKUP(EmpiricAMGcalc!$J$32,AmgEmpWS!$C$1:$H$100,I79,FALSE) -> 2.181498534 | C79: 11.0387059 | D79: 17.54340938 | E79: 8.696866697 | F79: 2.181498534 | G79: 13.70881349 | H79: =$C$3*EXP(-$A$1*AmgEmpWS!$A79) -> 0.04103414189 | I79: 79 | J79: =((Q79-EmpiricAMGcalc!$T$11)^2)/EmpiricAMGcalc!$T$11 -> 2.749802037 | K79: =((R79-EmpiricAMGcalc!$T$12)^2)/EmpiricAMGcalc!$T$12 -> 3.708965313 | L79: 200 | M79: 48 | N79: 6.45876735 | O79: 400 | P79: 33.5 | Q79: 12.58406845 | R79: 1.212933709 | S79: 38.98237707
A80: 38.5 | B80: =HLOOKUP(EmpiricAMGcalc!$J$32,AmgEmpWS!$C$1:$H$100,I80,FALSE) -> 2.01243098 | C80: 10.18319901 | D80: 16.18378375 | E80: 8.022853874 | F80: 2.01243098 | G80: 12.64637153 | H80: =$C$3*EXP(-$A$1*AmgEmpWS!$A80) -> 0.03785396922 | I80: 80 | J80: =((Q80-EmpiricAMGcalc!$T$11)^2)/EmpiricAMGcalc!$T$11 -> 1.706987455 | K80: =((R80-EmpiricAMGcalc!$T$12)^2)/EmpiricAMGcalc!$T$12 -> 7.327388716 | L80: 225 | M80: 48 | N80: 9.034376171 | O80: 450 | P80: 34.5 | Q80: 14.15707701 | R80: 1.603457491 | S80: 43.8551742
A81: 39 | B81: =HLOOKUP(EmpiricAMGcalc!$J$32,AmgEmpWS!$C$1:$H$100,I81,FALSE) -> 1.85646627 | C81: 9.393994468 | D81: 14.92952999 | E81: 7.401077483 | F81: 1.85646627 | G81: 11.66626951 | H81: =$C$3*EXP(-$A$1*AmgEmpWS!$A81) -> 0.03492026199 | I81: 81 | J81: =((Q81-EmpiricAMGcalc!$T$11)^2)/EmpiricAMGcalc!$T$11 -> 0.9116084649 | K81: =((R81-EmpiricAMGcalc!$T$12)^2)/EmpiricAMGcalc!$T$12 -> 13.59466847 | L81: 250 | M81: 48 | N81: 14.50627693 | O81: 500 | P81: 35.5 | Q81: 15.73008556 | R81: 2.093547427 | S81: 48.72797134
A82: 39.5 | B82: =HLOOKUP(EmpiricAMGcalc!$J$32,AmgEmpWS!$C$1:$H$100,I82,FALSE) -> 1.712588927 | C82: 8.665953789 | D82: 13.77248171 | E82: 6.827489166 | F82: 1.712588927 | G82: 10.76212604 | H82: =$C$3*EXP(-$A$1*AmgEmpWS!$A82) -> 0.03221391899 | I82: 82 | J82: =((Q82-EmpiricAMGcalc!$T$11)^2)/EmpiricAMGcalc!$T$11 -> 0.3636650665 | K82: =((R82-EmpiricAMGcalc!$T$12)^2)/EmpiricAMGcalc!$T$12 -> 24.12964888 | L82: 275 | M82: 48 | N82: 24.49331394 | O82: 550 | P82: 36.5 | Q82: 17.30309412 | R82: 2.706096948 | S82: 53.60076847
A83: 40 | B83: =HLOOKUP(EmpiricAMGcalc!$J$32,AmgEmpWS!$C$1:$H$100,I83,FALSE) -> 1.579862172 | C83: 7.994336736 | D83: 12.70510542 | E83: 6.298354317 | F83: 1.579862172 | G83: 9.928054275 | H83: =$C$3*EXP(-$A$1*AmgEmpWS!$A83) -> 0.02971731932 | I83: 83 | J83: =((Q83-EmpiricAMGcalc!$T$11)^2)/EmpiricAMGcalc!$T$11 -> 0.06315725978 | K83: =((R83-EmpiricAMGcalc!$T$12)^2)/EmpiricAMGcalc!$T$12 -> 41.44691323 | L83: 300 | M83: 48 | N83: 41.51007049 | O83: 600 | P83: 37.5 | Q83: 18.87610268 | R83: 3.468963856 | S83: 58.4735656
A84: 40.5 | B84: =HLOOKUP(EmpiricAMGcalc!$J$32,AmgEmpWS!$C$1:$H$100,I84,FALSE) -> 1.457421827 | C84: =$C$3+C83 -> 26.86226126 | D84: 11.72045149 | E84: 5.810227762 | F84: 1.457421827 | G84: 9.158623614 | H84: =$C$3*EXP(-$A$1*AmgEmpWS!$A84) -> 0.02741420775 | I84: 84 | J84: =((Q84-EmpiricAMGcalc!$T$11)^2)/EmpiricAMGcalc!$T$11 -> 0.01008504493 | K84: =((R84-EmpiricAMGcalc!$T$12)^2)/EmpiricAMGcalc!$T$12 -> 69.42245407 | L84: 325 | M84: 48 | N84: 69.43253912 | O84: 650 | P84: 38.5 | Q84: 20.44911123 | R84: 4.416006903 | S84: 63.34636274
A85: 41 | B85: =HLOOKUP(EmpiricAMGcalc!$J$32,AmgEmpWS!$C$1:$H$100,I85,FALSE) -> 1.344470688 | C85: =$C$84*EXP(-$A$1*(A85-40.5)) -> 24.78041855 | D85: 10.81210888 | E85: 5.359931333 | F85: 1.344470688 | G85: 8.44882433 | H85: =$C$3*EXP(-$A$1*AmgEmpWS!$A85) -> 0.02528958883 | I85: 85 | J85: =((Q85-EmpiricAMGcalc!$T$11)^2)/EmpiricAMGcalc!$T$11 -> 0.2044484219 | K85: =((R85-EmpiricAMGcalc!$T$12)^2)/EmpiricAMGcalc!$T$12 -> 113.9912037 | L85: 350 | M85: 48 | N85: 114.1956521 | O85: 700 | P85: 39.5 | Q85: 22.02211979 | R85: 5.588333159 | S85: 68.21915987
A86: 41.5 | B86: =HLOOKUP(EmpiricAMGcalc!$J$32,AmgEmpWS!$C$1:$H$100,I86,FALSE) -> 1.240273335 | C86: 22.85992 | D86: 9.974163412 | E86: 4.94453317 | F86: 1.240273335 | G86: 7.794034951 | H86: =$C$3*EXP(-$A$1*AmgEmpWS!$A86) -> 0.02332962925 | I86: 86 | J86: =((Q86-EmpiricAMGcalc!$T$11)^2)/EmpiricAMGcalc!$T$11 -> 0.6462473907 | K86: =((R86-EmpiricAMGcalc!$T$12)^2)/EmpiricAMGcalc!$T$12 -> 184.1882295 | L86: 375 | M86: 48 | N86: 184.8344769 | O86: 750 | P86: 40.5 | Q86: 23.59512834 | R86: 7.035798213 | S86: 73.091957
A87: 42 | B87: =HLOOKUP(EmpiricAMGcalc!$J$32,AmgEmpWS!$C$1:$H$100,I87,FALSE) -> 1.144151345 | C87: 21.08826134 | D87: 9.201159263 | E87: 4.561328635 | F87: 1.144151345 | G87: 7.189992175 | H87: =$C$3*EXP(-$A$1*AmgEmpWS!$A87) -> 0.02152156782 | I87: 87 | J87: =((Q87-EmpiricAMGcalc!$T$11)^2)/EmpiricAMGcalc!$T$11 -> 1.335481951 | K87: =((R87-EmpiricAMGcalc!$T$12)^2)/EmpiricAMGcalc!$T$12 -> 293.6979852 | L87: 400 | M87: 48 | N87: 295.0334672 | O87: 800 | P87: 41.5 | Q87: 25.1681369 | R87: 8.818809504 | S87: 77.96475414
A88: 42.5 | B88: =HLOOKUP(EmpiricAMGcalc!$J$32,AmgEmpWS!$C$1:$H$100,I88,FALSE) -> 1.055478872 | C88: 19.45390738 | D88: 8.488063438 | E88: 4.2078227 | F88: 1.055478872 | G88: 6.632763107 | H88: =$C$3*EXP(-$A$1*AmgEmpWS!$A88) -> 0.01985363232 | I88: 88 | J88: =((Q88-EmpiricAMGcalc!$T$11)^2)/EmpiricAMGcalc!$T$11 -> 2.272152104 | K88: =((R88-EmpiricAMGcalc!$T$12)^2)/EmpiricAMGcalc!$T$12 -> 463.152833 | L88: 425 | M88: 48 | N88: 465.4249851 | O88: 850 | P88: 42.5 | Q88: 26.74114546 | R88: 11.01049294 | S88: 82.83755127
A89: 43 | B89: =HLOOKUP(EmpiricAMGcalc!$J$32,AmgEmpWS!$C$1:$H$100,I89,FALSE) -> 0.9736785734 | C89: 17.94621691 | D89: 7.830233003 | E89: 3.881713705 | F89: 0.9736785734 | G89: 6.118719654 | H89: =$C$3*EXP(-$A$1*AmgEmpWS!$A89) -> 0.01831496291 | I89: 89 | J89: =((Q89-EmpiricAMGcalc!$T$11)^2)/EmpiricAMGcalc!$T$11 -> 3.456257848 | K89: =((R89-EmpiricAMGcalc!$T$12)^2)/EmpiricAMGcalc!$T$12 -> 723.5341135 | L89: 450 | M89: 48 | N89: 726.9903713 | O89: 900 | P89: 43.5 | Q89: 28.31415401 | R89: 13.69929472 | S89: 87.7103484
A90: 43.5 | B90: =HLOOKUP(EmpiricAMGcalc!$J$32,AmgEmpWS!$C$1:$H$100,I90,FALSE) -> 0.8982178509 | C90: 16.55537343 | D90: 7.223384855 | E90: 3.580878369 | F90: 0.8982178509 | G90: 5.644514903 | H90: =$C$3*EXP(-$A$1*AmgEmpWS!$A90) -> 0.01689554138 | I90: 90 | J90: =((Q90-EmpiricAMGcalc!$T$11)^2)/EmpiricAMGcalc!$T$11 -> 4.887799184 | K90: =((R90-EmpiricAMGcalc!$T$12)^2)/EmpiricAMGcalc!$T$12 -> 1121.192236 | L90: 475 | M90: 48 | N90: 1126.080035 | O90: 950 | P90: 44.5 | Q90: 29.88716257 | R90: 16.99210438 | S90: 92.58314554
A91: 44 | B91: =HLOOKUP(EmpiricAMGcalc!$J$32,AmgEmpWS!$C$1:$H$100,I91,FALSE) -> 0.8286053835 | C91: 15.27232123 | D91: 6.663567832 | E91: 3.303357968 | F91: 0.8286053835 | G91: 5.207061328 | H91: =$C$3*EXP(-$A$1*AmgEmpWS!$A91) -> 0.01558612593 | I91: 91 | J91: =((Q91-EmpiricAMGcalc!$T$11)^2)/EmpiricAMGcalc!$T$11 -> 6.566776112 | K91: =((R91-EmpiricAMGcalc!$T$12)^2)/EmpiricAMGcalc!$T$12 -> 1725.239591 | L91: 500 | M91: 48 | N91: 1731.806367 | O91: 1000 | P91: 45.5 | Q91: 31.46017113 | R91: 21.01800178 | S91: 97.45594267
A92: 44.5 | B92: =HLOOKUP(EmpiricAMGcalc!$J$32,AmgEmpWS!$C$1:$H$100,I92,FALSE) -> 0.7643879276 | C92: 14.0887064 | D92: 6.147136993 | E92: 3.047345578 | F92: 0.7643879276 | G92: 4.80351069 | H92: =$C$3*EXP(-$A$1*AmgEmpWS!$A92) -> 0.01437819104 | I92: 92
A93: 45 | B93: =HLOOKUP(EmpiricAMGcalc!$J$32,AmgEmpWS!$C$1:$H$100,I93,FALSE) -> 0.7051473662 | C93: 12.9968225 | D93: 5.670729879 | E93: 2.811174314 | F93: 0.7051473662 | G93: 4.431235488 | H93: =$C$3*EXP(-$A$1*AmgEmpWS!$A93) -> 0.01326387189 | I93: 93
A94: 45.5 | B94: =HLOOKUP(EmpiricAMGcalc!$J$32,AmgEmpWS!$C$1:$H$100,I94,FALSE) -> 0.6504979869 | C94: 11.9895603 | D94: 5.231244627 | E94: 2.593306477 | F94: 0.6504979869 | G94: 4.087811857 | H94: =$C$3*EXP(-$A$1*AmgEmpWS!$A94) -> 0.01223591319 | I94: 94
A95: 46 | B95: =HLOOKUP(EmpiricAMGcalc!$J$32,AmgEmpWS!$C$1:$H$100,I95,FALSE) -> 0.60008397 | C95: 11.06036158 | D95: 4.825819767 | E95: 2.392323539 | F95: 0.60008397 | G95: 3.77100378 | H95: =$C$3*EXP(-$A$1*AmgEmpWS!$A95) -> 0.01128762197 | I95: 95
A96: 46.5 | B96: =HLOOKUP(EmpiricAMGcalc!$J$32,AmgEmpWS!$C$1:$H$100,I96,FALSE) -> 0.5535770722 | C96: 10.20317637 | D96: 4.451815598 | E96: 2.206916909 | F96: 0.5535770722 | G96: 3.478748536 | H96: =$C$3*EXP(-$A$1*AmgEmpWS!$A96) -> 0.01041282392 | I96: 96
A97: 47 | B97: =HLOOKUP(EmpiricAMGcalc!$J$32,AmgEmpWS!$C$1:$H$100,I97,FALSE) -> 0.5106744892 | C97: 9.412423568 | D97: 4.106796995 | E97: 2.035879414 | F97: 0.5106744892 | G97: 3.209143263 | H97: =$C$3*EXP(-$A$1*AmgEmpWS!$A97) -> 0.0096058233 | I97: 97
A98: 47.5 | B98: =HLOOKUP(EmpiricAMGcalc!$J$32,AmgEmpWS!$C$1:$H$100,I98,FALSE) -> 0.4710968843 | C98: 8.682954622 | D98: 3.788517558 | E98: 1.878097436 | F98: 0.4710968843 | G98: 2.960432573 | H98: =$C$3*EXP(-$A$1*AmgEmpWS!$A98) -> 0.008861365749 | I98: 98
A99: 48 | B99: =HLOOKUP(EmpiricAMGcalc!$J$32,AmgEmpWS!$C$1:$H$100,I99,FALSE) -> 0.4345865694 | C99: 8.010019994 | D99: 3.494904984 | E99: 1.732543664 | F99: 0.4345865694 | G99: 2.730997124 | H99: =$C$3*EXP(-$A$1*AmgEmpWS!$A99) -> 0.008174604143 | I99: 99
A100: 48.5 | B100: =HLOOKUP(EmpiricAMGcalc!$J$32,AmgEmpWS!$C$1:$H$100,I100,FALSE) -> 19.3025111 | C100: 7.389238237 | D100: =D99+D3 -> 22.36282951 | E100: 1.598270403 | F100: =F99+F3 -> 19.3025111 | G100: 2.519343072 | H100: =$C$3*EXP(-$A$1*AmgEmpWS!$A100) -> 0.007541067007 | I100: 100

Sheet DLsheet
A1: Hidden sheet | J1: Case-sensitive password for this page: | K1: SIDP | U1: Yes
A2: Remember to SAVE all work after making edits | U2: No
B5: Gender | C5: SCr Limits | D5: Height Toggle | E5: Weight Toggle | F5: AdjBodyWeightRules | I5: CrCl DropDown | J5: Weight DropDown
B6: Male | C6: 0.4 | D6: cm | E6: kg | F6: If over by | G6: 0.3 | H6: =1+G6 -> 1.3 | I6: CrCl TBW | J6: TBW | K6: First Dose
B7: Female | C7: 9.9 | D7: inches | E7: pounds | F7: Add ___ of excess | G7: 0.4 | H7: =G7 -> 0.4 | I7: CrCl AdjBW | J7: AdjBW | K7: Steady State
I8: CrCl IBW | J8: IBW
I9: Override | J9: Override
B12: Vancomycin | E12: Infusion Duration (how long do you infuse at your center, in hours) | K12: Vancomycin
B13: Right side defaults | E13: 500 | F13: 0.5 | K13: Ke equations | L13: Ke eq Explanations
E14: 750 | F14: 1 | I14: Do you use this interval at your site (q#h)? | K14: CrCl*0.0016 | L14: Results in most aggressive dosing. Derived from study of younger, mostly male patients at DMC in Det, MI
A15: Desired AUC | B15: 500 | E15: 1000 | F15: 1 | I15: 8 | J15: Yes | K15: CrCl*0.00083+0.0044 | L15: Less aggressive equation. Study included patienst with varying degrees of renal dysfunction. Consider in patients with significant comorbidities (e.g. long-standing DM, CHF, CKD).
A16: Desired Cmax | B16: 35 | E16: 1250 | F16: 1.5 | I16: 12 | J16: Yes | K16: CrCl/Vd | L16: Basic PK/PD equation, with estimated Ke usually falling between the two equations above. Note, this equation has NOT been validated in clinical studies
A17: Desired Cmin | B17: 12.5 | E17: 1500 | F17: 1.5 | I17: 18 | J17: No
A18: Weight to calculate CrCl & Ke | B18: CrCl TBW | E18: 1750 | F18: 2 | I18: 24 | J18: Yes
A19: Weight to calculate Vd | B19: TBW | E19: 2000 | F19: 2 | I19: 36 | J19: No
A20: Vd coefficient | B20: 0.65 | E20: 2250 | F20: 2.5 | I20: 48 | J20: Yes
A21: Ke equation | B21: CrCl*0.00083+0.0044 | E21: 2500 | F21: 2.5
A22: Manual CrCl (override)
A23: Manual Dosing Weight (override)
A24: Infusion time | B24: 1
B31: Type your note text here: | I31: Empiric output here: | O31: Type your note text here: | T31: Two level output here:
A32: Empiric Dosing EMR Note | B32: This is a | C32: year old | D32: patient with [insert PMH, infection source, and culture data here]. | I32: =CONCATENATE(B32," ",EmpiricVANCOMYCINcalc!E10," ",DLsheet!C32," ",EmpiricVANCOMYCINcalc!E11," ",D32) -> This is a year old patient with [insert PMH, infection source, and culture data here]. | N32: Two Level EMR Note | O32: This is a | P32: follow up dosing note | T32: =CONCATENATE(O32," ",TwoLevelVANCOMYCINcalc!E10,P32) -> This is a Steady State follow up dosing note
B33: Measured serum creatinine (SCr) is | C33: mg/dL. | I33: =CONCATENATE(B33," ", EmpiricVANCOMYCINcalc!E12," ",C33) -> Measured serum creatinine (SCr) is mg/dL. | O33: Current dosing regimen: | T33: =CONCATENATE(O33," ",TwoLevelVANCOMYCINcalc!E11,TwoLevelVANCOMYCINcalc!G11," q",TwoLevelVANCOMYCINcalc!E12,TwoLevelVANCOMYCINcalc!G12) -> Current dosing regimen: mg qhrs
B34: Given a height of | C34: and a weight of | D34: estimated creatinine clearance is | E34: mL/min (using the | F34: body weight). | I34: =CONCATENATE(B34," ",EmpiricVANCOMYCINcalc!E13," ",EmpiricVANCOMYCINcalc!G13," ",DLsheet!C34,EmpiricVANCOMYCINcalc!E14," ",EmpiricVANCOMYCINcalc!G14,", ",DLsheet!D34," ",ROUND(EmpiricVANCOMYCINcalc!V17,1)," ",DLsheet!E34," ",EmpiricVANCOMYCINcalc!T17," ",DLsheet!F34) ->  | O34: Levels were collected with the following data after the | P34: dose: | T34: =CONCATENATE(O34,TEXT(TwoLevelVANCOMYCINcalc!E14,"MM/DD/YYYY")," ",TEXT(TwoLevelVANCOMYCINcalc!F14,"HH:MM AM/PM"),P34) -> Levels were collected with the following data after the 06/17/2021 06:00 AM dose:
B35: The following targets were selected for dosing: | I35: =B35 -> The following targets were selected for dosing: | O35: Level 1: | P35: mcg/mL | T35: =CONCATENATE(" - ",O35,CHAR(10),TwoLevelVANCOMYCINcalc!E16,P35," ", TEXT(TwoLevelVANCOMYCINcalc!E17,"MM/DD/YYYY")," @ ",TEXT(TwoLevelVANCOMYCINcalc!F17,"HH:MM AM/PM")) -> - Level 1: mcg/mL 06/17/2021 @ 12:00 PM
B36: Desired AUC = | C36: mcg*h/mL | I36: =CONCATENATE(" - ",B36,EmpiricVANCOMYCINcalc!T10, " ",C36) -> - Desired AUC = 500 mcg*h/mL | O36: Level 2: | P36: mcg/mL | T36: =CONCATENATE(" - ",O36,CHAR(10),TwoLevelVANCOMYCINcalc!E19,P36," ", TEXT(TwoLevelVANCOMYCINcalc!E20,"MM/DD/YYYY")," @ ",TEXT(TwoLevelVANCOMYCINcalc!F20,"HH:MM AM/PM")) -> - Level 2: mcg/mL 06/17/2021 @ 06:00 PM
B37: Desired Cmax = | C37: mcg/mL | I37: =CONCATENATE(" - ",B37,EmpiricVANCOMYCINcalc!T11," ",C37) -> - Desired Cmax = 35 mcg/mL | O37: Desired AUC = | P37: mcg*h/mL | T37: =CONCATENATE(" - ",O37,TwoLevelVANCOMYCINcalc!M10,DLsheet!P37) -> - Desired AUC = 500mcg*h/mL
B38: Desired Cmin = | C38: mcg/mL | I38: =CONCATENATE(" - ",B38,EmpiricVANCOMYCINcalc!T12," ",C38) -> - Desired Cmin = 12.5 mcg/mL | O38: Desired Cmax = | P38: mcg/mL | T38: =CONCATENATE(" - ",O38,TwoLevelVANCOMYCINcalc!M11,DLsheet!P38) -> - Desired Cmax = 35mcg/mL
B39: Vd coefficient = | C39: L/kg | I39: =CONCATENATE(" - ",B39,EmpiricVANCOMYCINcalc!T13," ",DLsheet!C39) -> - Vd coefficient = 0.65 L/kg | O39: Desired Cmin = | P39: mcg/mL | T39: =CONCATENATE(" - ",O39,TwoLevelVANCOMYCINcalc!M12,DLsheet!P39) -> - Desired Cmin = 12.5mcg/mL
B40: Ke equation = | I40: =CONCATENATE(" - ",B40,EmpiricVANCOMYCINcalc!T16) -> - Ke equation = CrCl*0.00083+0.0044 | O40: Calculated Ke = | P40: inverse hours | T40: =CONCATENATE(" - ",O40,ROUND(TwoLevelVANCOMYCINcalc!E23,3)," ",P40) -> 
B41: Based on above, the following are calculated parameters for AUC-based vancomycin dosing in this patient: | I41: =B41 -> Based on above, the following are calculated parameters for AUC-based vancomycin dosing in this patient: | O41: Calculated half life = | P41: hours | T41: =CONCATENATE(" - ",O41,ROUND(TwoLevelVANCOMYCINcalc!E24,1)," ",P41) -> 
B42: Calculated Vd = | C42: L | I42: =CONCATENATE(" - ",B42,EmpiricVANCOMYCINcalc!E26,C42) -> - Calculated Vd = L | O42: Calculated Vd = | P42: Liters | T42: =CONCATENATE(" - ",O42,ROUND(TwoLevelVANCOMYCINcalc!E27,1)," ",P42) -> 
B43: Calculated Ke = | C43: inverse hours | I43: =CONCATENATE(" - ",B43,ROUND(EmpiricVANCOMYCINcalc!E27,3)," ",C43) ->  | O43: Updated dose will be vancomycin IV | T43: =CONCATENATE(O43,TwoLevelVANCOMYCINcalc!M23,TwoLevelVANCOMYCINcalc!P23," q",TwoLevelVANCOMYCINcalc!M24,TwoLevelVANCOMYCINcalc!P24) -> 
B44: Calculated half-life = | C44: hours | I44: =CONCATENATE(" - ",B44,ROUND(EmpiricVANCOMYCINcalc!E28,1)," ",DLsheet!C44) ->  | O44: Which is predicted to achieve the following parameters: | T44: =O44 -> Which is predicted to achieve the following parameters:
B45: Empiric dose will be vancomycin IV | I45: =CONCATENATE(B45,EmpiricVANCOMYCINcalc!Q26,EmpiricVANCOMYCINcalc!T26," q",EmpiricVANCOMYCINcalc!Q27,EmpiricVANCOMYCINcalc!T27) ->  | O45: Estimated AUC = | P45: mcg*h/mL | T45: =CONCATENATE(" - ",O45,ROUND(TwoLevelVANCOMYCINcalc!M26,1)," ",P45) -> 
B46: Which is predicted to achieve the following parameters: | I46: =B46 -> Which is predicted to achieve the following parameters: | O46: Estimated Cmax = | P46: mcg/mL | T46: =CONCATENATE(" - ",O46,ROUND(TwoLevelVANCOMYCINcalc!M27,1)," ",P46) -> 
B47: Estimated AUC = | C47: mcg*h/mL | I47: =CONCATENATE(" - ",B47,ROUND(EmpiricVANCOMYCINcalc!Q29,1), " ",C47) ->  | O47: Estimated Cmin = | P47: mcg/mL | T47: =CONCATENATE(" - ",O47,ROUND(TwoLevelVANCOMYCINcalc!M28,1)," ",P47) -> 
B48: Estimated Cmax = | C48: mcg/mL | I48: =CONCATENATE(" - ",B48,ROUND(EmpiricVANCOMYCINcalc!Q30,1)," ",C48) -> 
B49: Estimated Cmin = | C49: mcg/mL | I49: =CONCATENATE(" - ",B49,ROUND(EmpiricVANCOMYCINcalc!Q31,1)," ",C49) -> 
K52: Empiric Note | T52: Two-level Note
A53: Subjective and Objective Data: | B53: =CONCATENATE(I32,I33,I34) ->  | L53: =CONCATENATE(A53,CHAR(10),I32,I33,CHAR(10),CHAR(10),I34,CHAR(10),CHAR(10),I35,CHAR(10),CHAR(10),I36,CHAR(10),I37,CHAR(10),I38,CHAR(10),I39,CHAR(10),I40,CHAR(10),CHAR(10),A66,CHAR(10),I41,CHAR(10),I42,CHAR(10),I43,CHAR(10),I44,CHAR(10),CHAR(10),A72,CHAR(10),I45,CHAR(10),CHAR(10),I46,CHAR(10),I47,CHAR(10),I48,CHAR(10),I49) ->  | V53: =CONCATENATE(A53,CHAR(10),T32,CHAR(10),T33,CHAR(10),CHAR(10),T34,CHAR(10),CHAR(10),T35,CHAR(10),CHAR(10),T36,CHAR(10),CHAR(10),T37,CHAR(10),T38,CHAR(10),T39,CHAR(10),CHAR(10),CHAR(10),A66,CHAR(10),T40,CHAR(10),T41,CHAR(10),T42,CHAR(10),CHAR(10),A72,CHAR(10),T43,CHAR(10),CHAR(10),T44,CHAR(10),T45,CHAR(10),T46,CHAR(10),T47) -> 
A58: Dosing Targets: | B58: The following targets were selected for dosing: -Desired AUC = 500 mcg*h/mL -Desired Cmax = 35 mcg/mL -Desired Cmin = 12.5 mcg/mL -Vd coefficient = 0.65 L/kg -Ke equation = CrCl*0.00083+0.0044
A66: Calculations: | B66: =CONCATENATE(I41,CHAR(10)," -",I42,CHAR(10)," -",I43,CHAR(10)," -",I44) -> 
A72: Prescribed Dosing: | B72: =I45 -> 
A74: Predicted Outcomes: | B74: =CONCATENATE(I46,CHAR(10)," -",I47,CHAR(10)," -",I48,CHAR(10)," -",I49) -> 
B104: Aminoglycoside | E104: Infusion Duration (how long do you infuse at your center, in hours) | K104: Aminoglycosides
B105: Right side defaults | E105: 250 | F105: 0.5 | K105: Ke equations | L105: Ke eq Explanations
E106: 300 | F106: 0.5 | K106: 0.003*CrCl + 0.01
E107: 350 | F107: 0.5 | K107: CrCl/Vd | L107: Basic PK/PD equation, with estimated Ke usually falling between the two equations above. Note, this equation has NOT been validated in clinical studies
E108: 400 | F108: 0.5
E109: 450 | F109: 0.5
A110: Weight to calculate CrCl & Ke | E110: 500 | F110: 0.5
A111: Weight to calculate Vd | E111: 550 | F111: 0.5 | J111: Treatment | K111: Treatment | N111: Desired Cmax | O111: Desired Cmin
A112: Vd coefficient | B112: 0.3 | E112: 600 | F112: 0.5 | J112: Gent/Tobra | K112: Cystitis | M112: Gent/TobraCystitis | N112: 4 | O112: 1
A113: Ke equation | B113: 0.003*CrCl + 0.01 | E113: 650 | F113: 0.5 | J113: Amikacin | K113: Gram Negative Infections | M113: Gent/TobraGram Negative Infections | N113: 20 | O113: 0.25
A114: Manual CrCl (override) | E114: 700 | F114: 0.5 | K114: Synergy | M114: Gent/TobraSynergy | N114: 4 | O114: 1
A115: Manual Dosing Weight (override) | E115: 750 | F115: 0.5 | M115: AmikacinCystitis | N115: 17.5 | O115: 4
A116: Infusion time | B116: 0.5 | E116: 800 | F116: 0.5 | M116: AmikacinGram Negative Infections | N116: 70 | O116: 1
E117: 850 | F117: 0.5 | M117: AmikacinSynergy | N117: Use gentamicin | O117: Use gentamicin
E118: 900 | F118: 0.5
A119: Interval | B119: Calculated interval between | E119: 950 | F119: 0.5
A120: 12 | B120: 0 | C120: 7 | D120: hours | E120: 1000 | F120: 0.5
A121: 18 | B121: 7.01 | C121: 16 | D121: hours
A122: 24 | B122: 16.01 | C122: 33 | D122: hours
A123: 36 | B123: 33.01 | C123: 44 | D123: hours
A124: 48 | B124: 44.01 | C124: 100 | D124: hours

Sheet WeMadeThis
R5: Back to Main Menu
L8: Acknowledgements
F11: Chief Designer | L11: Raymond Yost, PharmD
L13: Manager, Pharmacy Services
L14: DMC Detroit Receiving Hospital
L15: Detroit, MI USA
F19: Associate Editors | L19: Jason Pogue, PharmD, BCPS, BCIDP
L21: Clinical Pharmacist Specialist, Infectious Diseases
L22: University of Michigan, College of Pharmacy
L23: Ann Arbor, MI USA
L24: Past President, SIDP
L27: Ryan Mynatt, PharmD, BCIDP
L29: Clinical Pharmacist Specialist, Infectious Diseases
L30: University of Kentucky Medical Center
L31: Lexington, KY USA
F35: Key Contributors
L36: Michael Rybak, DMC Detroit Receiving Hospital and Wayne State University
L37: Kyle Murray, DMC Harper University Hospital
L38: Jing Zhao, DMC Harper University Hospital
L39: Christine Yost, Beaumont Health
